Workbook

Sheet (1)Front Sheet
A2: Energyline Limited, York House, 9 York Place, Knaresborough, HG5 0AD: 01423799950
A5: Client
A11: Project Description
A12: SSEN003 NeSTS
A16: Document Title
A17: Support Assessment Matrix
A18: for Outline General Arrangements
A21: Protection Password
A22: 686
A27: ConductorConfiguration
A28: Vertical
A29: Tri-form
A30: Horizontal
A32: While this document has been prepared in good faith, no representation, warranty, assurance or undertaking (express or implied) is or will be made, and no responsibility or liability is or will be accepted by Scottish Hydro Electric Transmission PLC or any of its group companies or by any of their respective officers, employees or agents (“the SHE-T Parties”) in relation to the adequacy, accuracy, completeness or reasonableness of the information contained in this document. In particular, but without prejudice to the generality of the foregoing, no representation, warranty, assurance or undertaking is given as to the suitability of the designs referred to in this document for any purpose and/or for any user. Relevant legal and regulatory requirements are out with the scope of this document. Each Transmission Owner and Distribution Network Operator has different requirements for their equipment and any user must satisfy itself that the principals outlined within this document are suitable to the Transmission Owner or Distribution Network Operator's requirements and compliant with all relevant legal and regulatory requirements which may be in force from time to time. The SHE-T Parties shall not be liable to any third party which relies on any information contained in this document.
A46: Scottish and Southern Electricity Networks is a trading name of: Scottish and Southern Energy Power Distribution Limited Registered in Scotland No. SC213459; Scottish Hydro Electric Transmission plc Registered in Scotland No. SC213461; Scottish Hydro Electric Power Distribution plc Registered in Scotland No. SC213460; (all having their Registered Offices at Inveralmond House 200 Dunkeld Road Perth PH1 3AQ); and Southern Electric Power Distribution plc Registered in England & Wales No. 04094290 having its Registered Office at 55 Vastern Road Reading Berkshire RG1 8BU which are members of the SSE Group. www.ssen.co.uk

Sheet (2)SupportAssessMatrix
A1: MDA Weightings | N1: L8RD M4.9 | Q1: Support 1 | T1: Support 2 | W1: Support 3 | Z1: Support 4 | AC1: Support 5 | AF1: Support 6 | AI1: Support 7 | AL1: Support 8 | AO1: Support 9
A3: =A26 -> Electrical | C3: 13 | E3: =C3/(C17+C15+C11+C9+C7+C5+C3+C13) -> 0.13
A5: =A37 -> Supports & Foundations | C5: 13 | E5: =C5/(C17+C15+C11+C9+C7+C5+C3+C13) -> 0.13 | I5: Support Type | N5: L8RD M4.9 | Q5: XXX | T5: XXX | W5: XXX | Z5: XXX | AC5: XXX | AF5: XXX | AI5: XXX | AL5: XXX | AO5: XXX
A7: =A53 -> Mechanical & Electrical | C7: 13 | E7: =C7/(C17+C15+C11+C9+C7+C5+C3+C13) -> 0.13
I8: Conductor configuration | N8: Vertical | Q8: Vertical | T8: Vertical | W8: Vertical | Z8: Vertical | AC8: Vertical | AF8: Vertical | AI8: Vertical | AL8: Vertical | AO8: Vertical
A9: =A63 -> Construction | C9: 13 | E9: =C9/(C17+C15+C11+C9+C7+C5+C3+C13) -> 0.13 | I9: Nominal standard span (m) | N9: 305 | Q9: 0 | T9: 0 | W9: 0 | Z9: 0 | AC9: 0 | AF9: 0 | AI9: 0 | AL9: 0 | AO9: 0
A11: =A81 -> Maintenance | C11: 12 | E11: =C11/(C17+C15+C11+C9+C7+C5+C3+C13) -> 0.12
A13: =A91 -> Operational Safety | C13: 12 | E13: =C13/(C3+C17+C13+C11+C9+C7+C5+C15) -> 0.12
A15: =A96 -> Environmental | C15: 12 | E15: =C15/(C17+C15+C11+C9+C7+C5+C3+C13) -> 0.12
A17: =A109 -> Other | C17: 12 | E17: =C17/(C17+C15+C11+C9+C7+C13+C5+C3) -> 0.12
A19: [Adjust total MDA weightings to 100] | C19: =C3+C5+C7+C9+C11+C15+C17+C13 -> 100 | N19: =N1 -> L8RD M4.9 | Q19: =Q1 -> Support 1 | T19: =T1 -> Support 2 | W19: =W1 -> Support 3 | Z19: =Z1 -> Support 4 | AC19: =AC1 -> Support 5 | AF19: =AF1 -> Support 6 | AI19: =AI1 -> Support 7 | AL19: =AL1 -> Support 8 | AO19: =AO1 -> Support 9
N20: (BENCHMARK)
C23: Totals | L23: =L36+L52+L62+L80+L90+L108+L115+L95 -> 1 | N23: =(N36+N52+N62+N80+N90+N95+N108+N115)*10 -> 0 | Q23: =(Q36+Q52+Q62+Q80+Q90+Q95+Q108+Q115)*10 -> 0 | T23: =(T36+T52+T62+T80+T90+T95+T108+T115)*10 -> 0 | W23: =(W36+W52+W62+W80+W90+W95+W108+W115)*10 -> 0 | Z23: =(Z36+Z52+Z62+Z80+Z90+Z95+Z108+Z115)*10 -> 0 | AC23: =(AC36+AC52+AC62+AC80+AC90+AC95+AC108+AC115)*10 -> 0 | AF23: =(AF36+AF52+AF62+AF80+AF90+AF95+AF108+AF115)*10 -> 0 | AI23: =(AI36+AI52+AI62+AI80+AI90+AI95+AI108+AI115)*10 -> 0 | AL23: =(AL36+AL52+AL62+AL80+AL90+AL95+AL108+AL115)*10 -> 0 | AO23: =(AO36+AO52+AO62+AO80+AO90+AO95+AO108+AO115)*10 -> 0
A25: Main Design Aspect (MDA) | B25: Ref | C25: Design Aspect (DA) | D25: Status (Prov/ comp) | E25: Quant/ Qual | G25: MDA weighting (from top left) | I25: Sub DA adjust't | J25: Sub DA weighting | L25: Overall weighting (%) | N25: Score | O25: Weighted score | Q25: Score | R25: Weighted score | T25: Score | U25: Weighted score | W25: Score | X25: Weighted score | Z25: Score | AA25: Weighted score | AC25: Score | AD25: Weighted score | AF25: Score | AG25: Weighted score | AI25: Score | AJ25: Weighted score | AL25: Score | AM25: Weighted score | AO25: Score | AP25: Weighted score
A26: Electrical | B26: E.1 | C26: Audible Noise | D26: Complete | E26: Quant've | G26: =$E$3 -> 0.13 | I26: 1 | J26: =I26/$I$36 -> 0.1 | L26: =G26*J26 -> 0.013 | N26: 0 | O26: =N26*$L26 -> 0 | Q26: 0 | R26: =Q26*$L26 -> 0 | T26: 0 | U26: =T26*$L26 -> 0 | W26: 0 | X26: =W26*$L26 -> 0 | Z26: 0 | AA26: =Z26*$L26 -> 0 | AC26: 0 | AD26: =AC26*$L26 -> 0 | AF26: 0 | AG26: =AF26*$L26 -> 0 | AI26: 0 | AJ26: =AI26*$L26 -> 0 | AL26: 0 | AM26: =AL26*$L26 -> 0 | AO26: 0 | AP26: =AO26*$L26 -> 0 | AR26: =MIN(N26,Q26,W26,Z26,AC26,AF26,AI26,AL26,AO26) -> 0 | AS26: =MAX(N26,Q26,W26,Z26,AC26,AF26,AI26,AL26,AO26) -> 0 | AT26: =IF(AND(AR26=1,AS26=9),"","check") -> check
A27: Electrical | B27: E.2 | C27: Magnetic Fields (external) | D27: Complete | E27: Quant've | G27: 0.13 | I27: 1 | J27: =I27/$I$36 -> 0.1 | L27: =G27*J27 -> 0.013 | N27: 0 | O27: =N27*$L27 -> 0 | Q27: 0 | R27: 0 | T27: 0 | U27: 0 | W27: 0 | X27: 0 | Z27: 0 | AA27: 0 | AC27: 0 | AD27: 0 | AF27: 0 | AG27: 0 | AI27: 0 | AJ27: 0 | AL27: 0 | AM27: 0 | AO27: 0 | AP27: 0 | AR27: =MIN(N27,Q27,W27,Z27,AC27,AF27,AI27,AL27,AO27) -> 0 | AS27: =MAX(N27,Q27,W27,Z27,AC27,AF27,AI27,AL27,AO27) -> 0 | AT27: =IF(AND(AR27=1,AS27=9),"","check") -> check
A28: Electrical | B28: E.3 | C28: Electric Fields (external) | D28: Complete | E28: Quant've | G28: 0.13 | I28: 1 | J28: 0.1 | L28: 0.013 | N28: 0 | O28: 0 | Q28: 0 | R28: 0 | T28: 0 | U28: 0 | W28: 0 | X28: 0 | Z28: 0 | AA28: 0 | AC28: 0 | AD28: 0 | AF28: 0 | AG28: 0 | AI28: 0 | AJ28: 0 | AL28: 0 | AM28: 0 | AO28: 0 | AP28: 0 | AR28: 0 | AS28: 0 | AT28: check
A29: Electrical | B29: E.4 | C29: Radio Interference | D29: Complete | E29: Quant've | G29: 0.13 | I29: 1 | J29: 0.1 | L29: 0.013 | N29: 0 | O29: 0 | Q29: 0 | R29: 0 | T29: 0 | U29: 0 | W29: 0 | X29: 0 | Z29: 0 | AA29: 0 | AC29: 0 | AD29: 0 | AF29: 0 | AG29: 0 | AI29: 0 | AJ29: 0 | AL29: 0 | AM29: 0 | AO29: 0 | AP29: 0 | AR29: 0 | AS29: 0 | AT29: check
A30: Electrical | B30: E.5 | C30: Earthing Performance | D30: Complete | E30: Qual | G30: 0.13 | I30: 1 | J30: 0.1 | L30: 0.013 | N30: 0 | O30: 0 | Q30: 0 | R30: 0 | T30: 0 | U30: 0 | W30: 0 | X30: 0 | Z30: 0 | AA30: 0 | AC30: 0 | AD30: 0 | AF30: 0 | AG30: 0 | AI30: 0 | AJ30: 0 | AL30: 0 | AM30: 0 | AO30: 0 | AP30: 0 | AR30: 0 | AS30: 0 | AT30: check
A31: Electrical | B31: E.6 | C31: Lightning Performance | D31: Complete | E31: Quant've | G31: 0.13 | I31: 1 | J31: 0.1 | L31: 0.013 | N31: 0 | O31: 0 | Q31: 0 | R31: 0 | T31: 0 | U31: 0 | W31: 0 | X31: 0 | Z31: 0 | AA31: 0 | AC31: 0 | AD31: 0 | AF31: 0 | AG31: 0 | AI31: 0 | AJ31: 0 | AL31: 0 | AM31: 0 | AO31: 0 | AP31: 0 | AR31: 0 | AS31: 0 | AT31: check
A32: Electrical | B32: E.7 | C32: Insulation Coordination | D32: Complete | E32: Quant've | G32: 0.13 | I32: 1 | J32: 0.1 | L32: 0.013 | N32: 0 | O32: 0 | Q32: 0 | R32: 0 | T32: 0 | U32: 0 | W32: 0 | X32: 0 | Z32: 0 | AA32: 0 | AC32: 0 | AD32: 0 | AF32: 0 | AG32: 0 | AI32: 0 | AJ32: 0 | AL32: 0 | AM32: 0 | AO32: 0 | AP32: 0 | AR32: 0 | AS32: 0 | AT32: check
A33: Electrical | B33: E.8 | C33: Surge Impedance Loading (SIL) | D33: Complete | E33: Quant've | G33: 0.13 | I33: 1 | J33: 0.1 | L33: 0.013 | N33: 0 | O33: 0 | Q33: 0 | R33: 0 | T33: 0 | U33: 0 | W33: 0 | X33: 0 | Z33: 0 | AA33: 0 | AC33: 0 | AD33: 0 | AF33: 0 | AG33: 0 | AI33: 0 | AJ33: 0 | AL33: 0 | AM33: 0 | AO33: 0 | AP33: 0 | AR33: 0 | AS33: 0 | AT33: check
A34: Electrical | B34: E.9 | C34: Electric Fields within/near structure | D34: Complete | E34: Quant've | G34: 0.13 | I34: 1 | J34: 0.1 | L34: 0.013 | N34: 0 | O34: 0 | Q34: 0 | R34: 0 | T34: 0 | U34: 0 | W34: 0 | X34: 0 | Z34: 0 | AA34: 0 | AC34: 0 | AD34: 0 | AF34: 0 | AG34: 0 | AI34: 0 | AJ34: 0 | AL34: 0 | AM34: 0 | AO34: 0 | AP34: 0 | AR34: 0 | AS34: 0 | AT34: check
A35: Electrical | B35: E.10 | C35: Magnetic Fields within/ near structure | D35: Complete | E35: Quant've | G35: 0.13 | I35: 1 | J35: 0.1 | L35: 0.013 | N35: 0 | O35: 0 | Q35: 0 | R35: 0 | T35: 0 | U35: 0 | W35: 0 | X35: 0 | Z35: 0 | AA35: 0 | AC35: 0 | AD35: 0 | AF35: 0 | AG35: 0 | AI35: 0 | AJ35: 0 | AL35: 0 | AM35: 0 | AO35: 0 | AP35: 0 | AR35: 0 | AS35: 0 | AT35: check
A36: Electrical Totals | I36: =SUM(I26:I35) -> 10 | J36: =SUM(J26:J35) -> 1 | L36: =SUM(L26:L35) -> 0.13 | N36: =SUM(O26:O35) -> 0 | Q36: =SUM(R26:R35) -> 0 | T36: =SUM(U26:U35) -> 0 | W36: =SUM(X26:X35) -> 0 | Z36: =SUM(AA26:AA35) -> 0 | AC36: =SUM(AD26:AD35) -> 0 | AF36: =SUM(AG26:AG35) -> 0 | AI36: =SUM(AJ26:AJ35) -> 0 | AL36: =SUM(AM26:AM35) -> 0 | AO36: =SUM(AP26:AP35) -> 0
A37: Supports & Foundations | B37: S.1 | C37: Number of elements | D37: Complete | E37: Quant've | G37: =$E$5 -> 0.13 | I37: 1 | J37: =I37/$I$52 -> 0.06666666667 | L37: =G37*J37 -> 0.008666666667 | N37: 0 | O37: =N37*$L37 -> 0 | Q37: 0 | R37: =Q37*$L37 -> 0 | T37: 0 | U37: =T37*$L37 -> 0 | W37: 0 | X37: =W37*$L37 -> 0 | Z37: 0 | AA37: =Z37*$L37 -> 0 | AC37: 0 | AD37: =AC37*$L37 -> 0 | AF37: 0 | AG37: =AF37*$L37 -> 0 | AI37: 0 | AJ37: =AI37*$L37 -> 0 | AL37: 0 | AM37: =AL37*$L37 -> 0 | AO37: 0 | AP37: =AO37*$L37 -> 0 | AR37: 0 | AS37: 0 | AT37: check
A38: Supports & Foundations | B38: S.2 | C38: Number of joints | D38: Complete | E38: Quant've | G38: 0.13 | I38: 1 | J38: 0.06666666667 | L38: =G38*J38 -> 0.008666666667 | N38: 0 | O38: =N38*$L38 -> 0 | Q38: 0 | R38: =Q38*$L38 -> 0 | T38: 0 | U38: =T38*$L38 -> 0 | W38: 0 | X38: =W38*$L38 -> 0 | Z38: 0 | AA38: =Z38*$L38 -> 0 | AC38: 0 | AD38: =AC38*$L38 -> 0 | AF38: 0 | AG38: =AF38*$L38 -> 0 | AI38: 0 | AJ38: =AI38*$L38 -> 0 | AL38: 0 | AM38: =AL38*$L38 -> 0 | AO38: 0 | AP38: =AO38*$L38 -> 0 | AR38: 0 | AS38: 0 | AT38: check
A39: Supports & Foundations | B39: S.3 | C39: Side slope added complexity | D39: Complete | E39: Quant've | G39: 0.13 | I39: 1 | J39: 0.06666666667 | L39: =G39*J39 -> 0.008666666667 | N39: 0 | O39: =N39*$L39 -> 0 | Q39: 0 | R39: =Q39*$L39 -> 0 | T39: 0 | U39: =T39*$L39 -> 0 | W39: 0 | X39: =W39*$L39 -> 0 | Z39: 0 | AA39: =Z39*$L39 -> 0 | AC39: 0 | AD39: =AC39*$L39 -> 0 | AF39: 0 | AG39: =AF39*$L39 -> 0 | AI39: 0 | AJ39: =AI39*$L39 -> 0 | AL39: 0 | AM39: =AL39*$L39 -> 0 | AO39: 0 | AP39: =AO39*$L39 -> 0 | AR39: 0 | AS39: 0 | AT39: check
A40: Supports & Foundations | B40: S.4 | C40: Weight of structure (per km) | D40: Complete | E40: Quant've | G40: 0.13 | I40: 1 | J40: 0.06666666667 | L40: =G40*J40 -> 0.008666666667 | N40: 0 | O40: =N40*$L40 -> 0 | Q40: 0 | R40: =Q40*$L40 -> 0 | T40: 0 | U40: =T40*$L40 -> 0 | W40: 0 | X40: =W40*$L40 -> 0 | Z40: 0 | AA40: =Z40*$L40 -> 0 | AC40: 0 | AD40: =AC40*$L40 -> 0 | AF40: 0 | AG40: =AF40*$L40 -> 0 | AI40: 0 | AJ40: =AI40*$L40 -> 0 | AL40: 0 | AM40: =AL40*$L40 -> 0 | AO40: 0 | AP40: =AO40*$L40 -> 0 | AR40: 0 | AS40: 0 | AT40: check
A41: Supports & Foundations | B41: S.5 | C41: Suitability to use of alternative materials | D41: Complete | E41: Qual | G41: 0.13 | I41: 1 | J41: 0.06666666667 | L41: 0.008666666667 | N41: 0 | O41: 0 | Q41: 0 | R41: 0 | T41: 0 | U41: 0 | W41: 0 | X41: 0 | Z41: 0 | AA41: 0 | AC41: 0 | AD41: 0 | AF41: 0 | AG41: 0 | AI41: 0 | AJ41: 0 | AL41: 0 | AM41: 0 | AO41: 0 | AP41: 0 | AR41: 0 | AS41: 0 | AT41: check
A42: Supports & Foundations | B42: S.6 | C42: Reduction in reliability in single circuit configuration (i.e. strung one side) | D42: Complete | E42: Quant've | G42: 0.13 | I42: 1 | J42: 0.06666666667 | L42: 0.008666666667 | N42: 0 | O42: 0 | Q42: 0 | R42: 0 | T42: 0 | U42: 0 | W42: 0 | X42: 0 | Z42: 0 | AA42: 0 | AC42: 0 | AD42: 0 | AF42: 0 | AG42: 0 | AI42: 0 | AJ42: 0 | AL42: 0 | AM42: 0 | AO42: 0 | AP42: 0 | AR42: 0 | AS42: 0 | AT42: check
A43: Supports & Foundations | B43: S.7 | C43: Ice accretion performance | D43: Complete | E43: Quant've | G43: 0.13 | I43: 1 | J43: 0.06666666667 | L43: 0.008666666667 | N43: 0 | O43: 0 | Q43: 0 | R43: 0 | T43: 0 | U43: 0 | W43: 0 | X43: 0 | Z43: 0 | AA43: 0 | AC43: 0 | AD43: 0 | AF43: 0 | AG43: 0 | AI43: 0 | AJ43: 0 | AL43: 0 | AM43: 0 | AO43: 0 | AP43: 0 | AR43: 0 | AS43: 0 | AT43: check
A44: Supports & Foundations | B44: S.8 | C44: Area for painting | D44: Complete | E44: Quant've | G44: 0.13 | I44: 1 | J44: 0.06666666667 | L44: 0.008666666667 | N44: 0 | O44: 0 | Q44: 0 | R44: 0 | T44: 0 | U44: 0 | W44: 0 | X44: 0 | Z44: 0 | AA44: 0 | AC44: 0 | AD44: 0 | AF44: 0 | AG44: 0 | AI44: 0 | AJ44: 0 | AL44: 0 | AM44: 0 | AO44: 0 | AP44: 0 | AR44: 0 | AS44: 0 | AT44: check
A45: Supports & Foundations | B45: S.9 | C45: Implications of addition of extensions | D45: Complete | E45: Quant've | G45: 0.13 | I45: 1 | J45: 0.06666666667 | L45: 0.008666666667 | N45: 0 | O45: 0 | Q45: 0 | R45: 0 | T45: 0 | U45: 0 | W45: 0 | X45: 0 | Z45: 0 | AA45: 0 | AC45: 0 | AD45: 0 | AF45: 0 | AG45: 0 | AI45: 0 | AJ45: 0 | AL45: 0 | AM45: 0 | AO45: 0 | AP45: 0 | AR45: 0 | AS45: 0 | AT45: check
A46: Supports & Foundations | B46: S.10 | C46: Length of load path | D46: Complete | E46: Quant've | G46: 0.13 | I46: 1 | J46: 0.06666666667 | L46: 0.008666666667 | N46: 0 | O46: 0 | Q46: 0 | R46: 0 | T46: 0 | U46: 0 | W46: 0 | X46: 0 | Z46: 0 | AA46: 0 | AC46: 0 | AD46: 0 | AF46: 0 | AG46: 0 | AI46: 0 | AJ46: 0 | AL46: 0 | AM46: 0 | AO46: 0 | AP46: 0 | AR46: 0 | AS46: 0 | AT46: check
A47: Supports & Foundations | B47: S.11 | C47: Familiarity with Form (familiar forms score high) | D47: Complete | E47: Qual | G47: 0.13 | I47: 1 | J47: 0.06666666667 | L47: =G47*J47 -> 0.008666666667 | N47: 0 | O47: =N47*$L47 -> 0 | Q47: 0 | R47: =Q47*$L47 -> 0 | T47: 0 | U47: =T47*$L47 -> 0 | W47: 0 | X47: =W47*$L47 -> 0 | Z47: 0 | AA47: =Z47*$L47 -> 0 | AC47: 0 | AD47: =AC47*$L47 -> 0 | AF47: 0 | AG47: =AF47*$L47 -> 0 | AI47: 0 | AJ47: =AI47*$L47 -> 0 | AL47: 0 | AM47: =AL47*$L47 -> 0 | AO47: 0 | AP47: =AO47*$L47 -> 0 | AR47: 0 | AS47: 0 | AT47: check
A48: Supports & Foundations | B48: S.12 | C48: Foundation complexity | D48: Complete | E48: Qual | G48: 0.13 | I48: 1 | J48: 0.06666666667 | L48: =G48*J48 -> 0.008666666667 | N48: 0 | O48: =N48*$L48 -> 0 | Q48: 0 | R48: =Q48*$L48 -> 0 | T48: 0 | U48: =T48*$L48 -> 0 | W48: 0 | X48: =W48*$L48 -> 0 | Z48: 0 | AA48: =Z48*$L48 -> 0 | AC48: 0 | AD48: =AC48*$L48 -> 0 | AF48: 0 | AG48: =AF48*$L48 -> 0 | AI48: 0 | AJ48: =AI48*$L48 -> 0 | AL48: 0 | AM48: =AL48*$L48 -> 0 | AO48: 0 | AP48: =AO48*$L48 -> 0 | AR48: 0 | AS48: 0 | AT48: check
A49: Supports & Foundations | B49: S.13 | C49: Foundations (Volume of concrete per km) | D49: Complete | E49: Quant've | G49: 0.13 | I49: 1 | J49: 0.06666666667 | L49: =G49*J49 -> 0.008666666667 | N49: 0 | O49: =N49*$L49 -> 0 | Q49: 0 | R49: =Q49*$L49 -> 0 | T49: 0 | U49: =T49*$L49 -> 0 | W49: 0 | X49: =W49*$L49 -> 0 | Z49: 0 | AA49: =Z49*$L49 -> 0 | AC49: 0 | AD49: =AC49*$L49 -> 0 | AF49: 0 | AG49: =AF49*$L49 -> 0 | AI49: 0 | AJ49: =AI49*$L49 -> 0 | AL49: 0 | AM49: =AL49*$L49 -> 0 | AO49: 0 | AP49: =AO49*$L49 -> 0 | AR49: 0 | AS49: 0 | AT49: check
A50: Supports & Foundations | B50: S.14 | C50: Foundations (Volume of excavation per km) | D50: Complete | E50: Quant've | G50: 0.13 | I50: 1 | J50: 0.06666666667 | L50: =G50*J50 -> 0.008666666667 | N50: 0 | O50: =N50*$L50 -> 0 | Q50: 0 | R50: =Q50*$L50 -> 0 | T50: 0 | U50: =T50*$L50 -> 0 | W50: 0 | X50: =W50*$L50 -> 0 | Z50: 0 | AA50: =Z50*$L50 -> 0 | AC50: 0 | AD50: =AC50*$L50 -> 0 | AF50: 0 | AG50: =AF50*$L50 -> 0 | AI50: 0 | AJ50: =AI50*$L50 -> 0 | AL50: 0 | AM50: =AL50*$L50 -> 0 | AO50: 0 | AP50: =AO50*$L50 -> 0 | AR50: 0 | AS50: 0 | AT50: check
A51: Supports & Foundations | B51: S.15 | C51: Suitability for application of two earthwires | D51: Complete | E51: Qual | G51: 0.13 | I51: 1 | J51: =I51/$I$52 -> 0.06666666667 | L51: =G51*J51 -> 0.008666666667 | N51: 0 | O51: =N51*$L51 -> 0 | Q51: 0 | R51: =Q51*$L51 -> 0 | T51: 0 | U51: =T51*$L51 -> 0 | W51: 0 | X51: =W51*$L51 -> 0 | Z51: 0 | AA51: =Z51*$L51 -> 0 | AC51: 0 | AD51: =AC51*$L51 -> 0 | AF51: 0 | AG51: =AF51*$L51 -> 0 | AI51: 0 | AJ51: =AI51*$L51 -> 0 | AL51: 0 | AM51: =AL51*$L51 -> 0 | AO51: 0 | AP51: =AO51*$L51 -> 0 | AR51: 0 | AS51: 0 | AT51: check
A52: Supports & Foundations Totals | I52: =SUM(I37:I51) -> 15 | J52: =SUM(J37:J51) -> 1 | L52: =SUM(L37:L51) -> 0.13 | N52: =SUM(O37:O51) -> 0 | Q52: =SUM(R37:R51) -> 0 | T52: =SUM(U37:U51) -> 0 | W52: =SUM(X37:X51) -> 0 | Z52: =SUM(AA37:AA51) -> 0 | AC52: =SUM(AD37:AD51) -> 0 | AF52: =SUM(AG37:AG51) -> 0 | AI52: =SUM(AJ37:AJ51) -> 0 | AL52: =SUM(AM37:AM51) -> 0 | AO52: =SUM(AP37:AP51) -> 0
A53: Mechanical & Electrical | B53: M.1 | C53: Insulation Mechanical Reliability | D53: Complete | E53: Qual | G53: =$E$7 -> 0.13 | I53: 1 | J53: =I53/$I$62 -> 0.1111111111 | L53: =G53*J53 -> 0.01444444444 | N53: 0 | O53: =N53*$L53 -> 0 | Q53: 0 | R53: =Q53*$L53 -> 0 | T53: 0 | U53: =T53*$L53 -> 0 | W53: 0 | X53: =W53*$L53 -> 0 | Z53: 0 | AA53: =Z53*$L53 -> 0 | AC53: 0 | AD53: =AC53*$L53 -> 0 | AF53: 0 | AG53: =AF53*$L53 -> 0 | AI53: 0 | AJ53: =AI53*$L53 -> 0 | AL53: 0 | AM53: =AL53*$L53 -> 0 | AO53: 0 | AP53: =AO53*$L53 -> 0 | AR53: 0 | AS53: 0 | AT53: check
A54: Mechanical & Electrical | B54: M.2 | C54: Insulation Material Limitation | D54: Complete | E54: Qual | G54: 0.13 | I54: 1 | J54: =I54/$I$62 -> 0.1111111111 | L54: 0.01444444444 | N54: 0 | O54: 0 | Q54: 0 | R54: =Q54*$L54 -> 0 | T54: 0 | U54: =T54*$L54 -> 0 | W54: 0 | X54: =W54*$L54 -> 0 | Z54: 0 | AA54: =Z54*$L54 -> 0 | AC54: 0 | AD54: =AC54*$L54 -> 0 | AF54: 0 | AG54: =AF54*$L54 -> 0 | AI54: 0 | AJ54: =AI54*$L54 -> 0 | AL54: 0 | AM54: =AL54*$L54 -> 0 | AO54: 0 | AP54: =AO54*$L54 -> 0 | AR54: 0 | AS54: 0 | AT54: check
A55: Mechanical & Electrical | B55: M.3 | C55: Number of Insulators | D55: Complete | E55: Qual | G55: 0.13 | I55: 1 | J55: 0.1111111111 | L55: 0.01444444444 | N55: 0 | O55: 0 | Q55: 0 | R55: =Q55*$L55 -> 0 | T55: 0 | U55: =T55*$L55 -> 0 | W55: 0 | X55: =W55*$L55 -> 0 | Z55: 0 | AA55: =Z55*$L55 -> 0 | AC55: 0 | AD55: =AC55*$L55 -> 0 | AF55: 0 | AG55: =AF55*$L55 -> 0 | AI55: 0 | AJ55: =AI55*$L55 -> 0 | AL55: 0 | AM55: =AL55*$L55 -> 0 | AO55: 0 | AP55: =AO55*$L55 -> 0 | AR55: 0 | AS55: 0 | AT55: check
A56: Mechanical & Electrical | B56: M.4 | C56: Galloping (susceptibility to conductor clashing) | D56: Complete | E56: Qual | G56: 0.13 | I56: 1 | J56: =I56/$I$62 -> 0.1111111111 | L56: 0.01444444444 | N56: 0 | O56: 0 | Q56: 0 | R56: =Q56*$L56 -> 0 | T56: 0 | U56: =T56*$L56 -> 0 | W56: 0 | X56: =W56*$L56 -> 0 | Z56: 0 | AA56: =Z56*$L56 -> 0 | AC56: 0 | AD56: =AC56*$L56 -> 0 | AF56: 0 | AG56: =AF56*$L56 -> 0 | AI56: 0 | AJ56: =AI56*$L56 -> 0 | AL56: 0 | AM56: =AL56*$L56 -> 0 | AO56: 0 | AP56: =AO56*$L56 -> 0 | AR56: 0 | AS56: 0 | AT56: check
A57: Mechanical & Electrical | B57: M.5 | C57: Formation of Jumpers at Angle Supports | D57: Complete | E57: Qual | G57: 0.13 | I57: 1 | J57: =I57/$I$62 -> 0.1111111111 | L57: 0.01444444444 | N57: 0 | O57: 0 | Q57: 0 | R57: 0 | T57: 0 | U57: 0 | W57: 0 | X57: 0 | Z57: 0 | AA57: 0 | AC57: 0 | AD57: 0 | AF57: 0 | AG57: 0 | AI57: 0 | AJ57: 0 | AL57: 0 | AM57: 0 | AO57: 0 | AP57: 0 | AR57: 0 | AS57: 0 | AT57: check
A58: Mechanical & Electrical | B58: M.6 | C58: Angle Support Insulation | D58: Complete | E58: Qual | G58: 0.13 | I58: 1 | J58: =I58/$I$62 -> 0.1111111111 | L58: 0.01444444444 | N58: 0 | O58: 0 | Q58: 0 | R58: 0 | T58: 0 | U58: 0 | W58: 0 | X58: 0 | Z58: 0 | AA58: 0 | AC58: 0 | AD58: 0 | AF58: 0 | AG58: 0 | AI58: 0 | AJ58: 0 | AL58: 0 | AM58: 0 | AO58: 0 | AP58: 0 | AR58: 0 | AS58: 0 | AT58: check
A59: Mechanical & Electrical | B59: M.7 | C59: Type Testing Requirements | D59: Complete | E59: Qual | G59: 0.13 | I59: 1 | J59: =I59/$I$62 -> 0.1111111111 | L59: 0.01444444444 | N59: 0 | O59: 0 | Q59: 0 | R59: =Q59*$L59 -> 0 | T59: 0 | U59: =T59*$L59 -> 0 | W59: 0 | X59: =W59*$L59 -> 0 | Z59: 0 | AA59: =Z59*$L59 -> 0 | AC59: 0 | AD59: =AC59*$L59 -> 0 | AF59: 0 | AG59: =AF59*$L59 -> 0 | AI59: 0 | AJ59: =AI59*$L59 -> 0 | AL59: 0 | AM59: =AL59*$L59 -> 0 | AO59: 0 | AP59: =AO59*$L59 -> 0 | AR59: 0 | AS59: 0 | AT59: check
A60: Mechanical & Electrical | B60: M.8 | C60: Suitability for ICA adaption | D60: Complete | E60: Qual | G60: 0.13 | I60: 1 | J60: =I60/$I$62 -> 0.1111111111 | L60: 0.01444444444 | N60: 0 | O60: 0 | Q60: 0 | R60: =Q60*$L60 -> 0 | T60: 0 | U60: =T60*$L60 -> 0 | W60: 0 | X60: =W60*$L60 -> 0 | Z60: 0 | AA60: =Z60*$L60 -> 0 | AC60: 0 | AD60: =AC60*$L60 -> 0 | AF60: 0 | AG60: =AF60*$L60 -> 0 | AI60: 0 | AJ60: =AI60*$L60 -> 0 | AL60: 0 | AM60: =AL60*$L60 -> 0 | AO60: 0 | AP60: =AO60*$L60 -> 0 | AR60: 0 | AS60: 0 | AT60: check
A61: Mechanical & Electrical | B61: M.9 | C61: Familiarity with Attachment Arrangement | D61: Complete | E61: Qual | G61: 0.13 | I61: 1 | J61: 0.1111111111 | L61: 0.01444444444 | N61: 0 | O61: 0 | Q61: 0 | R61: =Q61*$L61 -> 0 | T61: 0 | U61: =T61*$L61 -> 0 | W61: 0 | X61: =W61*$L61 -> 0 | Z61: 0 | AA61: =Z61*$L61 -> 0 | AC61: 0 | AD61: =AC61*$L61 -> 0 | AF61: 0 | AG61: =AF61*$L61 -> 0 | AI61: 0 | AJ61: =AI61*$L61 -> 0 | AL61: 0 | AM61: =AL61*$L61 -> 0 | AO61: 0 | AP61: =AO61*$L61 -> 0 | AR61: 0 | AS61: 0 | AT61: check
A62: Mechanical & Electrical Totals | I62: =SUM(I53:I61) -> 9 | J62: =SUM(J53:J61) -> 1 | L62: =SUM(L53:L61) -> 0.13 | N62: =SUM(O53:O61) -> 0 | Q62: =SUM(R53:R61) -> 0 | T62: =SUM(U53:U61) -> 0 | W62: =SUM(X53:X61) -> 0 | Z62: =SUM(AA53:AA61) -> 0 | AC62: =SUM(AD53:AD61) -> 0 | AF62: =SUM(AG53:AG61) -> 0 | AI62: =SUM(AJ53:AJ61) -> 0 | AL62: =SUM(AM53:AM61) -> 0 | AO62: =SUM(AP53:AP61) -> 0
A63: Construction | B63: C.1 | C63: Support Supply Chain Familiarity | D63: Complete | E63: Qual | G63: =$E$9 -> 0.13 | I63: 1 | J63: =I63/$I$80 -> 0.05882352941 | L63: =G63*J63 -> 0.007647058824 | N63: 0 | O63: =N63*$L63 -> 0 | Q63: 0 | R63: =Q63*$L63 -> 0 | T63: 0 | U63: =T63*$L63 -> 0 | W63: 0 | X63: =W63*$L63 -> 0 | Z63: 0 | AA63: =Z63*$L63 -> 0 | AC63: 0 | AD63: =AC63*$L63 -> 0 | AF63: 0 | AG63: =AF63*$L63 -> 0 | AI63: 0 | AJ63: =AI63*$L63 -> 0 | AL63: 0 | AM63: =AL63*$L63 -> 0 | AO63: 0 | AP63: =AO63*$L63 -> 0 | AR63: 0 | AS63: 0 | AT63: check
A64: Construction | B64: C.2 | C64: Insulation Supply Chain Familiarity (Composite) | D64: Complete | E64: Qual | G64: 0.13 | I64: 1 | J64: 0.05882352941 | L64: =G64*J64 -> 0.007647058824 | N64: 0 | O64: =N64*$L64 -> 0 | Q64: 0 | R64: =Q64*$L64 -> 0 | T64: 0 | U64: =T64*$L64 -> 0 | W64: 0 | X64: =W64*$L64 -> 0 | Z64: 0 | AA64: =Z64*$L64 -> 0 | AC64: 0 | AD64: =AC64*$L64 -> 0 | AF64: 0 | AG64: =AF64*$L64 -> 0 | AI64: 0 | AJ64: =AI64*$L64 -> 0 | AL64: 0 | AM64: =AL64*$L64 -> 0 | AO64: 0 | AP64: 0 | AR64: 0 | AS64: 0 | AT64: check | AU64: OK | AV64: 510 1, L8RD 9
A65: Construction | B65: C.3 | C65: Support Type testing | D65: Complete | E65: Qual | G65: 0.13 | I65: 1 | J65: 0.05882352941 | L65: =G65*J65 -> 0.007647058824 | N65: 0 | O65: =N65*$L65 -> 0 | Q65: 0 | R65: =Q65*$L65 -> 0 | T65: 0 | U65: =T65*$L65 -> 0 | W65: 0 | X65: =W65*$L65 -> 0 | Z65: 0 | AA65: =Z65*$L65 -> 0 | AC65: 0 | AD65: =AC65*$L65 -> 0 | AF65: 0 | AG65: =AF65*$L65 -> 0 | AI65: 0 | AJ65: =AI65*$L65 -> 0 | AL65: 0 | AM65: =AL65*$L65 -> 0 | AO65: 0 | AP65: 0 | AR65: 0 | AS65: 0 | AT65: check | AU65: ok | AV65: Differentiate
A66: Construction | B66: C.4 | C66: Support check erect | D66: Complete | E66: Qual | G66: 0.13 | I66: 1 | J66: 0.05882352941 | L66: =G66*J66 -> 0.007647058824 | N66: 0 | O66: =N66*$L66 -> 0 | Q66: 0 | R66: =Q66*$L66 -> 0 | T66: 0 | U66: =T66*$L66 -> 0 | W66: 0 | X66: =W66*$L66 -> 0 | Z66: 0 | AA66: =Z66*$L66 -> 0 | AC66: 0 | AD66: =AC66*$L66 -> 0 | AF66: 0 | AG66: =AF66*$L66 -> 0 | AI66: 0 | AJ66: =AI66*$L66 -> 0 | AL66: 0 | AM66: =AL66*$L66 -> 0 | AO66: 0 | AP66: 0 | AR66: 0 | AS66: 0 | AT66: check
A67: Construction | B67: C.5 | C67: Complexity of support (Fabrication) | D67: Complete | E67: Qual | G67: 0.13 | I67: 1 | J67: 0.05882352941 | L67: 0.007647058824 | N67: 0 | O67: 0 | Q67: 0 | R67: 0 | T67: 0 | U67: 0 | W67: 0 | X67: 0 | Z67: 0 | AA67: 0 | AC67: 0 | AD67: 0 | AF67: 0 | AG67: 0 | AI67: 0 | AJ67: 0 | AL67: 0 | AM67: 0 | AO67: 0 | AP67: 0 | AR67: 0 | AS67: 0 | AT67: check
A68: Construction | B68: C.6 | C68: Area required for Foundation Construction | D68: Complete | E68: Qual | G68: 0.13 | I68: 1 | J68: 0.05882352941 | L68: =G68*J68 -> 0.007647058824 | N68: 0 | O68: =N68*$L68 -> 0 | Q68: 0 | R68: =Q68*$L68 -> 0 | T68: 0 | U68: =T68*$L68 -> 0 | W68: 0 | X68: =W68*$L68 -> 0 | Z68: 0 | AA68: =Z68*$L68 -> 0 | AC68: 0 | AD68: =AC68*$L68 -> 0 | AF68: 0 | AG68: =AF68*$L68 -> 0 | AI68: 0 | AJ68: =AI68*$L68 -> 0 | AL68: 0 | AM68: =AL68*$L68 -> 0 | AO68: 0 | AP68: 0 | AR68: 0 | AS68: 0 | AT68: check
A69: Construction | B69: C.7 | C69: Area required for Assembly & Erection | D69: Complete | E69: Qual | G69: 0.13 | I69: 1 | J69: 0.05882352941 | L69: =G69*J69 -> 0.007647058824 | N69: 0 | O69: =N69*$L69 -> 0 | Q69: 0 | R69: =Q69*$L69 -> 0 | T69: 0 | U69: =T69*$L69 -> 0 | W69: 0 | X69: =W69*$L69 -> 0 | Z69: 0 | AA69: =Z69*$L69 -> 0 | AC69: 0 | AD69: =AC69*$L69 -> 0 | AF69: 0 | AG69: =AF69*$L69 -> 0 | AI69: 0 | AJ69: =AI69*$L69 -> 0 | AL69: 0 | AM69: =AL69*$L69 -> 0 | AO69: 0 | AP69: 0 | AR69: 0 | AS69: 0 | AT69: check
A70: Construction | B70: C.8 | C70: Support Transport & Storage | D70: Complete | E70: Qual | G70: 0.13 | I70: 1 | J70: 0.05882352941 | L70: 0.007647058824 | N70: 0 | O70: 0 | Q70: 0 | R70: 0 | T70: 0 | U70: 0 | W70: 0 | X70: 0 | Z70: 0 | AA70: 0 | AC70: 0 | AD70: 0 | AF70: 0 | AG70: 0 | AI70: 0 | AJ70: 0 | AL70: 0 | AM70: 0 | AO70: 0 | AP70: 0 | AR70: 0 | AS70: 0 | AT70: check
A71: Construction | B71: C.9 | C71: Access Track Requirement | D71: Complete | E71: Qual | G71: 0.13 | I71: 1 | J71: 0.05882352941 | L71: 0.007647058824 | N71: 0 | O71: 0 | Q71: 0 | R71: 0 | T71: 0 | U71: 0 | W71: 0 | X71: 0 | Z71: 0 | AA71: 0 | AC71: 0 | AD71: 0 | AF71: 0 | AG71: 0 | AI71: 0 | AJ71: 0 | AL71: 0 | AM71: 0 | AO71: 0 | AP71: 0 | AR71: 0 | AS71: 0 | AT71: check
A72: Construction | B72: C.10 | C72: Ease of support assembly / erection | D72: Complete | E72: Qual | G72: 0.13 | I72: 1 | J72: 0.05882352941 | L72: 0.007647058824 | N72: 0 | O72: 0 | Q72: 0 | R72: 0 | T72: 0 | U72: 0 | W72: 0 | X72: 0 | Z72: 0 | AA72: 0 | AC72: 0 | AD72: 0 | AF72: 0 | AG72: 0 | AI72: 0 | AJ72: 0 | AL72: 0 | AM72: 0 | AO72: 0 | AP72: 0 | AR72: 0 | AS72: 0 | AT72: check
A73: Construction | B73: C.11 | C73: Support access/ egress/ rescue | D73: Complete | E73: Qual | G73: 0.13 | I73: 1 | J73: 0.05882352941 | L73: =G73*J73 -> 0.007647058824 | N73: 0 | O73: =N73*$L73 -> 0 | Q73: 0 | R73: =Q73*$L73 -> 0 | T73: 0 | U73: =T73*$L73 -> 0 | W73: 0 | X73: =W73*$L73 -> 0 | Z73: 0 | AA73: =Z73*$L73 -> 0 | AC73: 0 | AD73: =AC73*$L73 -> 0 | AF73: 0 | AG73: =AF73*$L73 -> 0 | AI73: 0 | AJ73: =AI73*$L73 -> 0 | AL73: 0 | AM73: =AL73*$L73 -> 0 | AO73: 0 | AP73: =AO73*$L73 -> 0 | AR73: 0 | AS73: 0 | AT73: check
A74: Construction | B74: C.12 | C74: Need for insulator temporary restraint | D74: Complete | E74: Qual | G74: 0.13 | I74: 1 | J74: 0.05882352941 | L74: =G74*J74 -> 0.007647058824 | N74: 0 | O74: =N74*$L74 -> 0 | Q74: 0 | R74: =Q74*$L74 -> 0 | T74: 0 | U74: =T74*$L74 -> 0 | W74: 0 | X74: =W74*$L74 -> 0 | Z74: 0 | AA74: =Z74*$L74 -> 0 | AC74: 0 | AD74: =AC74*$L74 -> 0 | AF74: 0 | AG74: =AF74*$L74 -> 0 | AI74: 0 | AJ74: =AI74*$L74 -> 0 | AL74: 0 | AM74: =AL74*$L74 -> 0 | AO74: 0 | AP74: =AO74*$L74 -> 0 | AR74: 0 | AS74: 0 | AT74: check
A75: Construction | B75: C.13 | C75: Conductor Installation Process | D75: Complete | E75: Qual | G75: 0.13 | I75: 1 | J75: 0.05882352941 | L75: 0.007647058824 | N75: 0 | O75: 0 | Q75: 0 | R75: 0 | T75: 0 | U75: 0 | W75: 0 | X75: 0 | Z75: 0 | AA75: 0 | AC75: 0 | AD75: 0 | AF75: 0 | AG75: 0 | AI75: 0 | AJ75: 0 | AL75: 0 | AM75: 0 | AO75: 0 | AP75: 0 | AR75: 0 | AS75: 0 | AT75: check
A76: Construction | B76: C.14 | C76: Insulator Conductor Attachment Point | D76: Complete | E76: Qual | G76: 0.13 | I76: 1 | J76: 0.05882352941 | L76: 0.007647058824 | N76: 0 | O76: 0 | Q76: 0 | R76: 0 | T76: 0 | U76: 0 | W76: 0 | X76: 0 | Z76: 0 | AA76: 0 | AC76: 0 | AD76: 0 | AF76: 0 | AG76: 0 | AI76: 0 | AJ76: 0 | AL76: 0 | AM76: 0 | AO76: 0 | AP76: 0 | AR76: 0 | AS76: 0 | AT76: check
A77: Construction | B77: C.15 | C77: Refurbishment inc. e/w- 1 cct live proximity | D77: Complete | E77: Qual | G77: 0.13 | I77: 1 | J77: 0.05882352941 | L77: =G77*J77 -> 0.007647058824 | N77: 0 | O77: =N77*$L77 -> 0 | Q77: 0 | R77: 0 | T77: 0 | U77: 0 | W77: 0 | X77: 0 | Z77: 0 | AA77: 0 | AC77: 0 | AD77: 0 | AF77: 0 | AG77: 0 | AI77: 0 | AJ77: 0 | AL77: 0 | AM77: 0 | AO77: 0 | AP77: =AO77*$L77 -> 0 | AR77: 0 | AS77: 0 | AT77: check
A78: Construction | B78: C.16 | C78: Route Dismantling | D78: Complete | E78: Qual | G78: 0.13 | I78: 1 | J78: 0.05882352941 | L78: =G78*J78 -> 0.007647058824 | N78: 0 | O78: =N78*$L78 -> 0 | Q78: 0 | R78: 0 | T78: 0 | U78: 0 | W78: 0 | X78: 0 | Z78: 0 | AA78: 0 | AC78: 0 | AD78: 0 | AF78: 0 | AG78: 0 | AI78: 0 | AJ78: 0 | AL78: 0 | AM78: 0 | AO78: 0 | AP78: =AO78*$L78 -> 0 | AR78: 0 | AS78: 0 | AT78: check
A79: Construction | B79: C.17 | C79: Tension Support (Conductor Installation) | D79: Complete | E79: Qual | G79: 0.13 | I79: 1 | J79: 0.05882352941 | L79: =G79*J79 -> 0.007647058824 | N79: 0 | O79: =N79*$L79 -> 0 | Q79: 0 | R79: 0 | T79: 0 | U79: 0 | W79: 0 | X79: 0 | Z79: 0 | AA79: 0 | AC79: 0 | AD79: 0 | AF79: 0 | AG79: 0 | AI79: 0 | AJ79: 0 | AL79: 0 | AM79: 0 | AO79: 0 | AP79: =AO79*$L79 -> 0 | AR79: 0 | AS79: 0 | AT79: check
A80: Construction Totals | I80: =SUM(I63:I79) -> 17 | J80: =SUM(J63:J79) -> 1 | L80: =SUM(L63:L79) -> 0.13 | N80: =SUM(O63:O79) -> 0 | Q80: =SUM(R63:R79) -> 0 | T80: =SUM(U63:U79) -> 0 | W80: =SUM(X63:X79) -> 0 | Z80: =SUM(AA63:AA79) -> 0 | AC80: =SUM(AD63:AD79) -> 0 | AF80: =SUM(AG63:AG79) -> 0 | AI80: =SUM(AJ63:AJ79) -> 0 | AL80: =SUM(AM63:AM79) -> 0 | AO80: =SUM(AP63:AP79) -> 0
A81: Maintenance | B81: R.1 | C81: Ancillary equipment (including third party) | D81: Complete | E81: Qual | G81: =$E$11 -> 0.12 | I81: 1 | J81: =I81/$I$90 -> 0.1111111111 | L81: =G81*J81 -> 0.01333333333 | N81: 0 | O81: =N81*$L81 -> 0 | Q81: 0 | R81: =Q81*$L81 -> 0 | T81: 0 | U81: =T81*$L81 -> 0 | W81: 0 | X81: =W81*$L81 -> 0 | Z81: 0 | AA81: =Z81*$L81 -> 0 | AC81: 0 | AD81: =AC81*$L81 -> 0 | AF81: 0 | AG81: =AF81*$L81 -> 0 | AI81: 0 | AJ81: =AI81*$L81 -> 0 | AL81: 0 | AM81: =AL81*$L81 -> 0 | AO81: 0 | AP81: =AO81*$L81 -> 0 | AR81: 0 | AS81: 0 | AT81: check
A82: Maintenance | B82: R.2 | C82: Main Component Replacement | D82: Complete | E82: Qual | G82: 0.12 | I82: 1 | J82: 0.1111111111 | L82: 0.01333333333 | N82: 0 | O82: 0 | Q82: 0 | R82: 0 | T82: 0 | U82: 0 | W82: 0 | X82: 0 | Z82: 0 | AA82: 0 | AC82: 0 | AD82: 0 | AF82: 0 | AG82: 0 | AI82: 0 | AJ82: 0 | AL82: 0 | AM82: 0 | AO82: 0 | AP82: 0 | AR82: 0 | AS82: 0 | AT82: check
A83: Maintenance | B83: R.3 | C83: Suitability for operational activities (e.g. isolation) | D83: Complete | E83: Qual | G83: 0.12 | I83: 1 | J83: 0.1111111111 | L83: 0.01333333333 | N83: 0 | O83: 0 | Q83: 0 | R83: 0 | T83: 0 | U83: 0 | W83: 0 | X83: 0 | Z83: 0 | AA83: 0 | AC83: 0 | AD83: 0 | AF83: 0 | AG83: 0 | AI83: 0 | AJ83: 0 | AL83: 0 | AM83: 0 | AO83: 0 | AP83: 0 | AR83: 0 | AS83: 0 | AT83: check
A84: Maintenance | B84: R.4 | C84: Main Component Replacement to Earthwires | D84: Complete | E84: Qual | G84: 0.12 | I84: 1 | J84: 0.1111111111 | L84: 0.01333333333 | N84: 0 | O84: =N84*$L84 -> 0 | Q84: 0 | R84: 0 | T84: 0 | U84: 0 | W84: 0 | X84: 0 | Z84: 0 | AA84: 0 | AC84: 0 | AD84: 0 | AF84: 0 | AG84: 0 | AI84: 0 | AJ84: 0 | AL84: 0 | AM84: 0 | AO84: 0 | AP84: =AO84*$L84 -> 0 | AR84: 0 | AS84: 0 | AT84: check
A85: Maintenance | B85: R.5 | C85: Phase Conductor System Repairs - 1 cct live proximity | D85: Complete | E85: Qual | G85: 0.12 | I85: 1 | J85: 0.1111111111 | L85: 0.01333333333 | N85: 0 | O85: =N85*$L85 -> 0 | Q85: 0 | R85: 0 | T85: 0 | U85: 0 | W85: 0 | X85: 0 | Z85: 0 | AA85: 0 | AC85: 0 | AD85: 0 | AF85: 0 | AG85: 0 | AI85: 0 | AJ85: 0 | AL85: 0 | AM85: 0 | AO85: 0 | AP85: =AO85*$L85 -> 0 | AR85: 0 | AS85: 0 | AT85: check
A86: Maintenance | B86: R.6 | C86: Earthwire Conductor System Repairs - 1cct live proximity | D86: Complete | E86: Qual | G86: 0.12 | I86: 1 | J86: 0.1111111111 | L86: 0.01333333333 | N86: 0 | O86: 0 | Q86: 0 | R86: 0 | T86: 0 | U86: 0 | W86: 0 | X86: 0 | Z86: 0 | AA86: 0 | AC86: 0 | AD86: 0 | AF86: 0 | AG86: 0 | AI86: 0 | AJ86: 0 | AL86: 0 | AM86: 0 | AO86: 0 | AP86: 0 | AR86: 0 | AS86: 0 | AT86: check
A87: Maintenance | B87: R.7 | C87: Surface Preparation & Treatment/ Deterioration Protection | D87: Complete | E87: Qual | G87: 0.12 | I87: 1 | J87: 0.1111111111 | L87: 0.01333333333 | N87: 0 | O87: 0 | Q87: 0 | R87: 0 | T87: 0 | U87: 0 | W87: 0 | X87: 0 | Z87: 0 | AA87: 0 | AC87: 0 | AD87: 0 | AF87: 0 | AG87: 0 | AI87: 0 | AJ87: 0 | AL87: 0 | AM87: 0 | AO87: 0 | AP87: 0 | AR87: 0 | AS87: 0 | AT87: check
A88: Maintenance | B88: R.8 | C88: Condition Assessment Remote (Ground/ Aerial) | D88: Complete | E88: Qual | G88: 0.12 | I88: 1 | J88: 0.1111111111 | L88: 0.01333333333 | N88: 0 | O88: 0 | Q88: 0 | R88: 0 | T88: 0 | U88: 0 | W88: 0 | X88: 0 | Z88: 0 | AA88: 0 | AC88: 0 | AD88: 0 | AF88: 0 | AG88: 0 | AI88: 0 | AJ88: 0 | AL88: 0 | AM88: 0 | AO88: 0 | AP88: 0 | AR88: 0 | AS88: 0 | AT88: check
A89: Maintenance | B89: R.9 | C89: Condition Assessment Intrusive (Climbing) | D89: Complete | E89: Qual | G89: 0.12 | I89: 1 | J89: 0.1111111111 | L89: 0.01333333333 | N89: 0 | O89: 0 | Q89: 0 | R89: 0 | T89: 0 | U89: 0 | W89: 0 | X89: 0 | Z89: 0 | AA89: 0 | AC89: 0 | AD89: 0 | AF89: 0 | AG89: 0 | AI89: 0 | AJ89: 0 | AL89: 0 | AM89: 0 | AO89: 0 | AP89: 0 | AR89: 0 | AS89: 0 | AT89: check
A90: Maintenance Totals | I90: =SUM(I81:I89) -> 9 | J90: =SUM(J81:J89) -> 1 | L90: =SUM(L81:L89) -> 0.12 | N90: =SUM(O81:O89) -> 0 | Q90: =SUM(R81:R89) -> 0 | T90: =SUM(U81:U89) -> 0 | W90: =SUM(X81:X89) -> 0 | Z90: =SUM(AA81:AA89) -> 0 | AC90: =SUM(AD81:AD89) -> 0 | AF90: =SUM(AG81:AG89) -> 0 | AI90: =SUM(AJ81:AJ89) -> 0 | AL90: =SUM(AM81:AM89) -> 0 | AO90: =SUM(AP81:AP89) -> 0
A91: Operational Safety | B91: O.1 | C91: Access/ Egress/ Rescue | D91: Complete | E91: Qual | G91: =$E$13 -> 0.12 | I91: 1 | J91: =I91/$I$95 -> 0.25 | L91: =G91*J91 -> 0.03 | N91: 0 | O91: =N91*$L91 -> 0 | Q91: 0 | R91: =Q91*$L91 -> 0 | T91: 0 | U91: =T91*$L91 -> 0 | W91: 0 | X91: =W91*$L91 -> 0 | Z91: 0 | AA91: =Z91*$L91 -> 0 | AC91: 0 | AD91: =AC91*$L91 -> 0 | AF91: 0 | AG91: =AF91*$L91 -> 0 | AI91: 0 | AJ91: =AI91*$L91 -> 0 | AL91: 0 | AM91: =AL91*$L91 -> 0 | AO91: 0 | AP91: =AO91*$L91 -> 0 | AR91: =MIN(N91,Q91,W91,Z91,AC91,AF91,AI91,AL91,AO91) -> 0 | AS91: =MAX(N91,Q91,W91,Z91,AC91,AF91,AI91,AL91,AO91) -> 0 | AT91: =IF(AND(AR91=1,AS91=9),"","check") -> check
A92: Operational Safety | B92: O.2 | C92: Live line working | D92: Complete | E92: Qual | G92: =$E$13 -> 0.12 | I92: 1 | J92: =I92/$I$95 -> 0.25 | L92: 0.03 | N92: 0 | O92: 0 | Q92: 0 | R92: 0 | T92: 0 | U92: 0 | W92: 0 | X92: =W92*$L92 -> 0 | Z92: 0 | AA92: 0 | AC92: 0 | AD92: 0 | AF92: 0 | AG92: 0 | AI92: 0 | AJ92: 0 | AL92: 0 | AM92: 0 | AO92: 0 | AP92: 0 | AR92: 0 | AS92: 0 | AT92: check
A93: Operational Safety | B93: O.3 | C93: Management of Induced voltages / currents / Application of additional earthing | D93: Complete | E93: Qual | G93: =$E$13 -> 0.12 | I93: 1 | J93: =I93/$I$95 -> 0.25 | L93: =G93*J93 -> 0.03 | N93: 0 | O93: 0 | Q93: 0 | R93: 0 | T93: 0 | U93: 0 | W93: 0 | X93: =W93*$L93 -> 0 | Z93: 0 | AA93: 0 | AC93: 0 | AD93: 0 | AF93: 0 | AG93: 0 | AI93: 0 | AJ93: 0 | AL93: 0 | AM93: 0 | AO93: 0 | AP93: =AO93*$L93 -> 0 | AR93: 0 | AS93: 0 | AT93: check
A94: Operational Safety | B94: O.4 | C94: Circuit Demarcation | D94: Complete | E94: Qual | G94: =$E$13 -> 0.12 | I94: 1 | J94: =I94/$I$95 -> 0.25 | L94: =G94*J94 -> 0.03 | N94: 0 | O94: 0 | Q94: 0 | R94: 0 | T94: 0 | U94: 0 | W94: 0 | X94: 0 | Z94: 0 | AA94: 0 | AC94: 0 | AD94: 0 | AF94: 0 | AG94: 0 | AI94: 0 | AJ94: 0 | AL94: 0 | AM94: 0 | AO94: 0 | AP94: =AO94*$L94 -> 0 | AR94: 0 | AS94: 0 | AT94: check
A95: Operational Safety Totals | I95: =SUM(I91:I94) -> 4 | J95: =SUM(J91:J94) -> 1 | L95: =SUM(L91:L94) -> 0.12 | N95: =SUM(O91:O94) -> 0 | Q95: =SUM(R91:R94) -> 0 | T95: =SUM(U91:U94) -> 0 | W95: =SUM(X91:X94) -> 0 | Z95: =SUM(AA91:AA94) -> 0 | AC95: =SUM(AD91:AD94) -> 0 | AF95: =SUM(AG91:AG94) -> 0 | AI95: =SUM(AJ91:AJ94) -> 0 | AL95: =SUM(AM91:AM94) -> 0 | AO95: =SUM(AP91:AP94) -> 0
A96: Environmental | B96: P.1 | C96: Height | D96: Complete | E96: Quant've | G96: =$E$15 -> 0.12 | I96: 1 | J96: =I96/$I$108 -> 0.08333333333 | L96: =G96*J96 -> 0.01 | N96: 0 | O96: =N96*$L96 -> 0 | Q96: 0 | R96: =Q96*$L96 -> 0 | T96: 0 | U96: =T96*$L96 -> 0 | W96: 0 | X96: =W96*$L96 -> 0 | Z96: 0 | AA96: =Z96*$L96 -> 0 | AC96: 0 | AD96: =AC96*$L96 -> 0 | AF96: 0 | AG96: =AF96*$L96 -> 0 | AI96: 0 | AJ96: =AI96*$L96 -> 0 | AL96: 0 | AM96: =AL96*$L96 -> 0 | AO96: 0 | AP96: =AO96*$L96 -> 0 | AR96: 0 | AS96: 0 | AT96: check
A97: Environmental | B97: P.2 | C97: Supports per km | D97: Complete | E97: Quant've | G97: 0.12 | I97: 1 | J97: 0.08333333333 | L97: 0.01 | N97: 0 | O97: 0 | Q97: 0 | R97: 0 | T97: 0 | U97: 0 | W97: 0 | X97: 0 | Z97: 0 | AA97: =Z97*$L97 -> 0 | AC97: 0 | AD97: 0 | AF97: 0 | AG97: 0 | AI97: 0 | AJ97: 0 | AL97: 0 | AM97: 0 | AO97: 0 | AP97: 0 | AR97: 0 | AS97: 0 | AT97: check
A98: Environmental | B98: P.3 | C98: Insulator Visual Impact | D98: Complete | E98: Qual | G98: 0.12 | I98: 1 | J98: 0.08333333333 | L98: 0.01 | N98: 0 | O98: 0 | Q98: 0 | R98: 0 | T98: 0 | U98: 0 | W98: 0 | X98: 0 | Z98: 0 | AA98: =Z98*$L98 -> 0 | AC98: 0 | AD98: 0 | AF98: 0 | AG98: 0 | AI98: 0 | AJ98: 0 | AL98: 0 | AM98: 0 | AO98: 0 | AP98: 0 | AR98: 0 | AS98: 0 | AT98: check
A99: Environmental | B99: P.4 | C99: Transparency (Back clothing) | D99: Complete | E99: Qual | G99: 0.12 | I99: 1 | J99: 0.08333333333 | L99: 0.01 | N99: 0 | O99: 0 | Q99: 0 | R99: 0 | T99: 0 | U99: 0 | W99: 0 | X99: 0 | Z99: 0 | AA99: 0 | AC99: 0 | AD99: 0 | AF99: 0 | AG99: 0 | AI99: 0 | AJ99: 0 | AL99: 0 | AM99: 0 | AO99: 0 | AP99: 0 | AR99: 0 | AS99: 0 | AT99: check
A100: Environmental | B100: P.5 | C100: Conductor Arrangement (Compact/ Open) | D100: Complete | E100: Qual | G100: 0.12 | I100: 1 | J100: 0.08333333333 | L100: 0.01 | N100: 0 | O100: 0 | Q100: 0 | R100: 0 | T100: 0 | U100: 0 | W100: 0 | X100: 0 | Z100: 0 | AA100: 0 | AC100: 0 | AD100: 0 | AF100: 0 | AG100: 0 | AI100: 0 | AJ100: 0 | AL100: 0 | AM100: 0 | AO100: 0 | AP100: 0 | AR100: 0 | AS100: 0 | AT100: check
A101: Environmental | B101: P.6 | C101: Support shape (eiffelised/ top heavy etc.) | D101: Complete | E101: Qual | G101: 0.12 | I101: 1 | J101: 0.08333333333 | L101: 0.01 | N101: 0 | O101: 0 | Q101: 0 | R101: 0 | T101: 0 | U101: 0 | W101: 0 | X101: 0 | Z101: 0 | AA101: 0 | AC101: 0 | AD101: 0 | AF101: 0 | AG101: 0 | AI101: 0 | AJ101: 0 | AL101: 0 | AM101: 0 | AO101: 0 | AP101: 0 | AR101: 0 | AS101: 0 | AT101: check
A102: Environmental | B102: P.7 | C102: Cross arms | D102: Complete | E102: Qual | G102: 0.12 | I102: 1 | J102: 0.08333333333 | L102: =G102*J102 -> 0.01 | N102: 0 | O102: =N102*$L102 -> 0 | Q102: 0 | R102: 0 | T102: 0 | U102: 0 | W102: 0 | X102: 0 | Z102: 0 | AA102: 0 | AC102: 0 | AD102: 0 | AF102: 0 | AG102: 0 | AI102: 0 | AJ102: 0 | AL102: 0 | AM102: 0 | AO102: 0 | AP102: =AO102*$L102 -> 0 | AR102: 0 | AS102: 0 | AT102: check
A103: Environmental | B103: P.8 | C103: Design aesthetics | D103: Complete | E103: Qual | G103: 0.12 | I103: 1 | J103: 0.08333333333 | L103: =G103*J103 -> 0.01 | N103: 0 | O103: =N103*$L103 -> 0 | Q103: 0 | R103: 0 | T103: 0 | U103: 0 | W103: 0 | X103: 0 | Z103: 0 | AA103: 0 | AC103: 0 | AD103: 0 | AF103: 0 | AG103: 0 | AI103: 0 | AJ103: 0 | AL103: 0 | AM103: 0 | AO103: 0 | AP103: =AO103*$L103 -> 0 | AR103: 0 | AS103: 0 | AT103: check
A104: Environmental | B104: P.9 | C104: Corridor Width | D104: Complete | E104: Quant've | G104: 0.12 | I104: 1 | J104: 0.08333333333 | L104: =G104*J104 -> 0.01 | N104: 0 | O104: =N104*$L104 -> 0 | Q104: 0 | R104: =Q104*$L104 -> 0 | T104: 0 | U104: =T104*$L104 -> 0 | W104: 0 | X104: =W104*$L104 -> 0 | Z104: 0 | AA104: =Z104*$L104 -> 0 | AC104: 0 | AD104: =AC104*$L104 -> 0 | AF104: 0 | AG104: =AF104*$L104 -> 0 | AI104: 0 | AJ104: =AI104*$L104 -> 0 | AL104: 0 | AM104: =AL104*$L104 -> 0 | AO104: 0 | AP104: =AO104*$L104 -> 0 | AR104: 0 | AS104: 0 | AT104: check
A105: Environmental | B105: P.10 | C105: As Built Footprint | D105: Complete | E105: Quant've | G105: 0.12 | I105: 1 | J105: 0.08333333333 | L105: 0.01 | N105: 0 | O105: =N105*$L105 -> 0 | Q105: 0 | R105: =Q105*$L105 -> 0 | T105: 0 | U105: =T105*$L105 -> 0 | W105: 0 | X105: =W105*$L105 -> 0 | Z105: 0 | AA105: =Z105*$L105 -> 0 | AC105: 0 | AD105: =AC105*$L105 -> 0 | AF105: 0 | AG105: =AF105*$L105 -> 0 | AI105: 0 | AJ105: =AI105*$L105 -> 0 | AL105: 0 | AM105: =AL105*$L105 -> 0 | AO105: 0 | AP105: 0 | AR105: 0 | AS105: 0 | AT105: check
A106: Environmental | B106: P.11 | C106: Effect on Birds | D106: Complete | E106: Semi-quant | G106: 0.12 | I106: 1 | J106: 0.08333333333 | L106: 0.01 | N106: 0 | O106: 0 | Q106: 0 | R106: =Q106*$L106 -> 0 | T106: 0 | U106: =T106*$L106 -> 0 | W106: 0 | X106: =W106*$L106 -> 0 | Z106: 0 | AA106: =Z106*$L106 -> 0 | AC106: 0 | AD106: =AC106*$L106 -> 0 | AF106: 0 | AG106: =AF106*$L106 -> 0 | AI106: 0 | AJ106: =AI106*$L106 -> 0 | AL106: 0 | AM106: =AL106*$L106 -> 0 | AO106: 0 | AP106: 0 | AR106: 0 | AS106: 0 | AT106: check
A107: Environmental | B107: P.12 | C107: Tension Support Continuity | D107: Complete | E107: Qual | G107: 0.12 | I107: 1 | J107: 0.08333333333 | L107: 0.01 | N107: 0 | O107: 0 | Q107: 0 | R107: =Q107*$L107 -> 0 | T107: 0 | U107: =T107*$L107 -> 0 | W107: 0 | X107: =W107*$L107 -> 0 | Z107: 0 | AA107: =Z107*$L107 -> 0 | AC107: 0 | AD107: =AC107*$L107 -> 0 | AF107: 0 | AG107: =AF107*$L107 -> 0 | AI107: 0 | AJ107: =AI107*$L107 -> 0 | AL107: 0 | AM107: =AL107*$L107 -> 0 | AO107: 0 | AP107: 0 | AR107: 0 | AS107: 0 | AT107: check
A108: Environmental Totals | I108: =SUM(I96:I107) -> 12 | J108: =SUM(J96:J107) -> 1 | L108: =SUM(L96:L107) -> 0.12 | N108: =SUM(O96:O107) -> 0 | Q108: =SUM(R96:R107) -> 0 | T108: =SUM(U96:U107) -> 0 | W108: =SUM(X96:X107) -> 0 | Z108: =SUM(AA96:AA107) -> 0 | AC108: =SUM(AD96:AD107) -> 0 | AF108: =SUM(AG96:AG107) -> 0 | AI108: =SUM(AJ96:AJ107) -> 0 | AL108: =SUM(AM96:AM107) -> 0 | AO108: =SUM(AP96:AP107) -> 0
A109: Other | B109: T.1 | C109: Susceptibility to damage (vandalism/accident) | D109: Provisional | E109: Qual | G109: =$E$17 -> 0.12 | I109: 1 | J109: =I109/$I$115 -> 0.1666666667 | L109: =G109*J109 -> 0.02 | N109: 0 | O109: =N109*$L109 -> 0 | Q109: 0 | R109: =Q109*$L109 -> 0 | T109: 0 | U109: =T109*$L109 -> 0 | W109: 0 | X109: =W109*$L109 -> 0 | Z109: 0 | AA109: =Z109*$L109 -> 0 | AC109: 0 | AD109: =AC109*$L109 -> 0 | AF109: 0 | AG109: =AF109*$L109 -> 0 | AI109: 0 | AJ109: =AI109*$L109 -> 0 | AL109: 0 | AM109: =AL109*$L109 -> 0 | AO109: 0 | AP109: =AO109*$L109 -> 0 | AR109: 0 | AS109: 0 | AT109: check
A110: Other | B110: T.2 | C110: Resistance of materials to deterioration/attack | D110: Provisional | E110: Qual | G110: 0.12 | I110: 1 | J110: =I110/$I$115 -> 0.1666666667 | L110: 0.02 | N110: 0 | O110: 0 | Q110: 0 | R110: 0 | T110: 0 | U110: 0 | W110: 0 | X110: 0 | Z110: 0 | AA110: 0 | AC110: 0 | AD110: 0 | AF110: 0 | AG110: 0 | AI110: 0 | AJ110: 0 | AL110: 0 | AM110: 0 | AO110: 0 | AP110: 0 | AR110: 0 | AS110: 0 | AT110: check | AU110: ok
A111: Other | B111: T.3 | C111: Number of supports per km of OHL | D111: Provisional | E111: Quant've | G111: 0.12 | I111: 1 | J111: =I111/$I$115 -> 0.1666666667 | L111: 0.02 | N111: 0 | O111: =N111*$L111 -> 0 | Q111: 0 | R111: 0 | T111: 0 | U111: 0 | W111: 0 | X111: 0 | Z111: 0 | AA111: 0 | AC111: 0 | AD111: 0 | AF111: 0 | AG111: 0 | AI111: 0 | AJ111: 0 | AL111: 0 | AM111: 0 | AO111: 0 | AP111: 0 | AR111: 0 | AS111: 0 | AT111: check
A112: Other | B112: T.4 | C112: Embodied energy (embodied carbon) | D112: Provisional | E112: Quant've | G112: 0.12 | I112: 1 | J112: =I112/$I$115 -> 0.1666666667 | L112: 0.02 | N112: 0 | O112: =N112*$L112 -> 0 | Q112: 0 | R112: 0 | T112: 0 | U112: 0 | W112: 0 | X112: 0 | Z112: 0 | AA112: 0 | AC112: 0 | AD112: 0 | AF112: 0 | AG112: 0 | AI112: 0 | AJ112: 0 | AL112: 0 | AM112: 0 | AO112: 0 | AP112: 0 | AR112: 0 | AS112: 0 | AT112: check
A113: Other | B113: T.5 | C113: Cost of supports (per km) | D113: Provisional | E113: Quant've | G113: 0.12 | I113: 1 | J113: 0.1666666667 | L113: 0.02 | N113: 0 | O113: =N113*$L113 -> 0 | Q113: 0 | R113: =Q113*$L113 -> 0 | T113: 0 | U113: =T113*$L113 -> 0 | W113: 0 | X113: =W113*$L113 -> 0 | Z113: 0 | AA113: =Z113*$L113 -> 0 | AC113: 0 | AD113: =AC113*$L113 -> 0 | AF113: 0 | AG113: =AF113*$L113 -> 0 | AI113: 0 | AJ113: =AI113*$L113 -> 0 | AL113: 0 | AM113: =AL113*$L113 -> 0 | AO113: 0 | AP113: =AO113*$L113 -> 0 | AR113: 0 | AS113: 0 | AT113: check
A114: Other | B114: T.6 | C114: Side slope - effect on height | D114: Provisional | E114: Quant've | G114: 0.12 | I114: 1 | J114: =I114/$I$115 -> 0.1666666667 | L114: 0.02 | N114: 0 | O114: 0 | Q114: 0 | R114: 0 | T114: 0 | U114: 0 | W114: 0 | X114: 0 | Z114: 0 | AA114: 0 | AC114: 0 | AD114: 0 | AF114: 0 | AG114: 0 | AI114: 0 | AJ114: 0 | AL114: 0 | AM114: 0 | AO114: 0 | AP114: 0 | AR114: 0 | AS114: 0 | AT114: check
A115: Other Totals | I115: =SUM(I109:I114) -> 6 | J115: =SUM(J109:J114) -> 1 | L115: =SUM(L109:L114) -> 0.12 | N115: =SUM(O109:O114) -> 0 | Q115: =SUM(R109:R114) -> 0 | T115: =SUM(U109:U114) -> 0 | W115: =SUM(X109:X114) -> 0 | Z115: =SUM(AA109:AA114) -> 0 | AC115: =SUM(AD109:AD114) -> 0 | AF115: =SUM(AG109:AG114) -> 0 | AI115: =SUM(AJ109:AJ114) -> 0 | AL115: =SUM(AM109:AM114) -> 0 | AO115: =SUM(AP109:AP114) -> 0
A119: Provisional
A120: Complete
A122: Quant've
A123: Semi-quant
A124: Qual
AS131: Max | AT131: Min
I132: =A3 -> Electrical | O132: =N$36*10 -> 0 | R132: =Q$36*10 -> 0 | X132: =W$36*10 -> 0 | AA132: =Z$36*10 -> 0 | AD132: =AC$36*10 -> 0 | AG132: =AF$36*10 -> 0 | AJ132: =AI$36*10 -> 0 | AM132: =AL$36*10 -> 0 | AP132: =AO$36*10 -> 0 | AS132: =MAX(O132,R132,X132,AA132,AD132,AG132,AJ132,AM132,AP132) -> 0 | AT132: =MIN(O132,R132,X132,AA132,AD132,AG132,AJ132,AM132,AP132) -> 0
I133: =A5 -> Supports & Foundations | O133: =N$52*10 -> 0 | R133: =Q$52*10 -> 0 | X133: =W$52*10 -> 0 | AA133: =Z$52*10 -> 0 | AD133: =AC$52*10 -> 0 | AG133: =AF$52*10 -> 0 | AJ133: =AI$52*10 -> 0 | AM133: =AL$52*10 -> 0 | AP133: =AO$52*10 -> 0 | AS133: 0 | AT133: 0
I134: =A7 -> Mechanical & Electrical | O134: =N62*10 -> 0 | R134: =Q62*10 -> 0 | X134: =W62*10 -> 0 | AA134: =Z62*10 -> 0 | AD134: =AC62*10 -> 0 | AG134: =AF62*10 -> 0 | AJ134: =AI62*10 -> 0 | AM134: =AL62*10 -> 0 | AP134: =AO62*10 -> 0 | AS134: 0 | AT134: 0
I135: =A9 -> Construction | O135: =N80*10 -> 0 | R135: =Q80*10 -> 0 | X135: =W80*10 -> 0 | AA135: =Z80*10 -> 0 | AD135: =AC80*10 -> 0 | AG135: =AF80*10 -> 0 | AJ135: =AI80*10 -> 0 | AM135: =AL80*10 -> 0 | AP135: =AO80*10 -> 0 | AS135: 0 | AT135: 0
I136: =A11 -> Maintenance | O136: =N90*10 -> 0 | R136: =Q90*10 -> 0 | X136: =W90*10 -> 0 | AA136: =Z90*10 -> 0 | AD136: =AC90*10 -> 0 | AG136: =AF90*10 -> 0 | AJ136: =AI90*10 -> 0 | AM136: =AL90*10 -> 0 | AP136: =AO90*10 -> 0 | AS136: 0 | AT136: 0
I137: =A13 -> Operational Safety | O137: =N95*10 -> 0 | R137: =Q95*10 -> 0 | X137: =W95*10 -> 0 | AA137: =Z95*10 -> 0 | AD137: =AC95*10 -> 0 | AG137: =AF95*10 -> 0 | AJ137: =AI95*10 -> 0 | AM137: =AL95*10 -> 0 | AP137: =AO95*10 -> 0 | AS137: 0 | AT137: 0
I138: =A15 -> Environmental | O138: =N108*10 -> 0 | R138: =Q108*10 -> 0 | X138: =W108*10 -> 0 | AA138: =Z108*10 -> 0 | AD138: =AC108*10 -> 0 | AG138: =AF108*10 -> 0 | AJ138: =AI108*10 -> 0 | AM138: =AL108*10 -> 0 | AP138: =AO108*10 -> 0 | AS138: 0 | AT138: 0
I139: =A17 -> Other | O139: =N115*10 -> 0 | R139: =Q115*10 -> 0 | X139: =W115*10 -> 0 | AA139: =Z115*10 -> 0 | AD139: =AC115*10 -> 0 | AG139: =AF115*10 -> 0 | AJ139: =AI115*10 -> 0 | AM139: =AL115*10 -> 0 | AP139: =AO115*10 -> 0 | AS139: 0 | AT139: 0
O141: =SUM(O132:O139) -> 0 | R141: =SUM(R132:R139) -> 0 | X141: =SUM(X132:X139) -> 0 | AA141: =SUM(AA132:AA139) -> 0 | AD141: =SUM(AD132:AD139) -> 0 | AG141: =SUM(AG132:AG139) -> 0 | AJ141: =SUM(AJ132:AJ139) -> 0 | AM141: =SUM(AM132:AM139) -> 0 | AP141: =SUM(AP132:AP139) -> 0
A143: Main Design Aspect summaries
C144: =A26 -> Electrical | N144: =N36 -> 0 | Q144: =Q36 -> 0 | T144: =T36 -> 0 | W144: =W36 -> 0 | Z144: =Z36 -> 0 | AC144: =AC36 -> 0 | AF144: =AF36 -> 0 | AI144: =AI36 -> 0 | AL144: =AL36 -> 0 | AO144: =AO36 -> 0
C145: =A37 -> Supports & Foundations | N145: =N52 -> 0 | Q145: =Q52 -> 0 | T145: =T52 -> 0 | W145: =W52 -> 0 | Z145: =Z52 -> 0 | AC145: =AC52 -> 0 | AF145: =AF52 -> 0 | AI145: =AI52 -> 0 | AL145: =AL52 -> 0 | AO145: =AO52 -> 0
C146: =A53 -> Mechanical & Electrical | N146: =N62 -> 0 | Q146: =Q62 -> 0 | T146: =T62 -> 0 | W146: =W62 -> 0 | Z146: =Z62 -> 0 | AC146: =AC62 -> 0 | AF146: =AF62 -> 0 | AI146: =AI62 -> 0 | AL146: =AL62 -> 0 | AO146: =AO62 -> 0
C147: =A63 -> Construction | N147: =N80 -> 0 | Q147: =Q80 -> 0 | T147: =T80 -> 0 | W147: =W80 -> 0 | Z147: =Z80 -> 0 | AC147: =AC80 -> 0 | AF147: =AF80 -> 0 | AI147: =AI80 -> 0 | AL147: =AL80 -> 0 | AO147: =AO80 -> 0
C148: =A81 -> Maintenance | N148: =N90 -> 0 | Q148: =Q90 -> 0 | T148: =T90 -> 0 | W148: =W90 -> 0 | Z148: =Z90 -> 0 | AC148: =AC90 -> 0 | AF148: =AF90 -> 0 | AI148: =AI90 -> 0 | AL148: =AL90 -> 0 | AO148: =AO90 -> 0
C149: =A91 -> Operational Safety | N149: =N95 -> 0 | Q149: =Q95 -> 0 | T149: =T95 -> 0 | W149: =W95 -> 0 | Z149: =Z95 -> 0 | AC149: =AC95 -> 0 | AF149: =AF95 -> 0 | AI149: =AI95 -> 0 | AL149: =AL95 -> 0 | AO149: =AO95 -> 0
C150: =A96 -> Environmental | N150: =N108 -> 0 | Q150: =Q108 -> 0 | T150: =T108 -> 0 | W150: =W108 -> 0 | Z150: =Z108 -> 0 | AC150: =AC108 -> 0 | AF150: =AF108 -> 0 | AI150: =AI108 -> 0 | AL150: =AL108 -> 0 | AO150: =AO108 -> 0
C151: =A109 -> Other | N151: =N115 -> 0 | Q151: =Q115 -> 0 | T151: =T115 -> 0 | W151: =W115 -> 0 | Z151: =Z115 -> 0 | AC151: =AC115 -> 0 | AF151: =AF115 -> 0 | AI151: =AI115 -> 0 | AL151: =AL115 -> 0 | AO151: =AO115 -> 0
A153: Relative changes in ratings compared to Benchmark support (L8RD M4.9)
O155: L8RD | Q155: =Q1 -> Support 1 | T155: =T1 -> Support 2 | W155: =W1 -> Support 3 | Z155: =Z1 -> Support 4 | AC155: =AC1 -> Support 5 | AF155: =AF1 -> Support 6 | AI155: =AI1 -> Support 7 | AL155: =AL1 -> Support 8 | AO155: =AO1 -> Support 9
N156: MDA | O156: Rating | Q156: Rating | R156: % Diff | T156: Rating | U156: % Diff | W156: Rating | X156: % Diff | Z156: Rating | AA156: % Diff | AC156: Rating | AD156: % Diff | AF156: Rating | AG156: % Diff | AI156: Rating | AJ156: % Diff | AL156: Rating | AM156: % Diff | AO156: Rating | AP156: % Diff
N157: Elect | O157: =N36*10 -> 0 | Q157: =Q36*10 -> 0 | R157: =IF(Q157-$O$164=0,"NoChange",(Q157-$O157)/$O157*100) -> NoChange | T157: =T36*10 -> 0 | U157: =IF(T157-$O$164=0,"NoChange",(T157-$O157)/$O157*100) -> NoChange | W157: =W36*10 -> 0 | X157: =IF(W157-$O$164=0,"NoChange",(W157-$O157)/$O157*100) -> NoChange | Z157: =Z36*10 -> 0 | AA157: =IF(Z157-$O$164=0,"NoChange",(Z157-$O157)/$O157*100) -> NoChange | AC157: =AC36*10 -> 0 | AD157: =IF(AC157-$O$164=0,"NoChange",(AC157-$O157)/$O157*100) -> NoChange | AF157: =AF36*10 -> 0 | AG157: =IF(AF157-$O$164=0,"NoChange",(AF157-$O157)/$O157*100) -> NoChange | AI157: =AI36*10 -> 0 | AJ157: =IF(AI157-$O$164=0,"NoChange",(AI157-$O157)/$O157*100) -> NoChange | AL157: =AL36*10 -> 0 | AM157: =IF(AL157-$O$164=0,"NoChange",(AL157-$O157)/$O157*100) -> NoChange | AO157: =AO36*10 -> 0 | AP157: =IF(AO157-$O$164=0,"NoChange",(AO157-$O157)/$O157*100) -> NoChange
N158: Struct&F | O158: =N52*10 -> 0 | Q158: =Q52*10 -> 0 | R158: NoChange | T158: =T52*10 -> 0 | U158: NoChange | W158: =W52*10 -> 0 | X158: NoChange | Z158: =Z52*10 -> 0 | AA158: NoChange | AC158: =AC52*10 -> 0 | AD158: NoChange | AF158: =AF52*10 -> 0 | AG158: NoChange | AI158: =AI52*10 -> 0 | AJ158: NoChange | AL158: =AL52*10 -> 0 | AM158: NoChange | AO158: =AO52*10 -> 0 | AP158: NoChange
N159: Mech&El | O159: =N62*10 -> 0 | Q159: =Q62*10 -> 0 | R159: NoChange | T159: =T62*10 -> 0 | U159: NoChange | W159: =W62*10 -> 0 | X159: NoChange | Z159: =Z62*10 -> 0 | AA159: NoChange | AC159: =AC62*10 -> 0 | AD159: NoChange | AF159: =AF62*10 -> 0 | AG159: NoChange | AI159: =AI62*10 -> 0 | AJ159: NoChange | AL159: =AL62*10 -> 0 | AM159: NoChange | AO159: =AO62*10 -> 0 | AP159: NoChange
N160: Constr | O160: =N80*10 -> 0 | Q160: =Q80*10 -> 0 | R160: NoChange | T160: =T80*10 -> 0 | U160: NoChange | W160: =W80*10 -> 0 | X160: NoChange | Z160: =Z80*10 -> 0 | AA160: NoChange | AC160: =AC80*10 -> 0 | AD160: NoChange | AF160: =AF80*10 -> 0 | AG160: NoChange | AI160: =AI80*10 -> 0 | AJ160: NoChange | AL160: =AL80*10 -> 0 | AM160: NoChange | AO160: =AO80*10 -> 0 | AP160: NoChange
N161: Maint | O161: =N90*10 -> 0 | Q161: =Q90*10 -> 0 | R161: NoChange | T161: =T90*10 -> 0 | U161: NoChange | W161: =W90*10 -> 0 | X161: NoChange | Z161: =Z90*10 -> 0 | AA161: NoChange | AC161: =AC90*10 -> 0 | AD161: NoChange | AF161: =AF90*10 -> 0 | AG161: NoChange | AI161: =AI90*10 -> 0 | AJ161: NoChange | AL161: =AL90*10 -> 0 | AM161: NoChange | AO161: =AO90*10 -> 0 | AP161: NoChange
N162: OperSafety | O162: =N95*10 -> 0 | Q162: =Q95*10 -> 0 | R162: NoChange | T162: =T95*10 -> 0 | U162: NoChange | W162: =W95*10 -> 0 | X162: NoChange | Z162: =Z95*10 -> 0 | AA162: NoChange | AC162: =AC95*10 -> 0 | AD162: NoChange | AF162: =AF95*10 -> 0 | AG162: NoChange | AI162: =AI95*10 -> 0 | AJ162: NoChange | AL162: =AL95*10 -> 0 | AM162: NoChange | AO162: =AO95*10 -> 0 | AP162: NoChange
N163: Env | O163: =N108*10 -> 0 | Q163: =Q108*10 -> 0 | R163: =IF(Q163-$O$164=0,"NoChange",(Q163-$O163)/$O163*100) -> NoChange | T163: =T108*10 -> 0 | U163: =IF(T163-$O$164=0,"NoChange",(T163-$O163)/$O163*100) -> NoChange | W163: =W108*10 -> 0 | X163: =IF(W163-$O$164=0,"NoChange",(W163-$O163)/$O163*100) -> NoChange | Z163: =Z108*10 -> 0 | AA163: =IF(Z163-$O$164=0,"NoChange",(Z163-$O163)/$O163*100) -> NoChange | AC163: =AC108*10 -> 0 | AD163: =IF(AC163-$O$164=0,"NoChange",(AC163-$O163)/$O163*100) -> NoChange | AF163: =AF108*10 -> 0 | AG163: =IF(AF163-$O$164=0,"NoChange",(AF163-$O163)/$O163*100) -> NoChange | AI163: =AI108*10 -> 0 | AJ163: =IF(AI163-$O$164=0,"NoChange",(AI163-$O163)/$O163*100) -> NoChange | AL163: =AL108*10 -> 0 | AM163: =IF(AL163-$O$164=0,"NoChange",(AL163-$O163)/$O163*100) -> NoChange | AO163: =AO108*10 -> 0 | AP163: =IF(AO163-$O$164=0,"NoChange",(AO163-$O163)/$O163*100) -> NoChange
N164: Other | O164: =N115*10 -> 0 | Q164: =Q115*10 -> 0 | R164: =IF(Q164-$O$164=0,"NoChange",(Q164-$O164)/$O164*100) -> NoChange | T164: =T115*10 -> 0 | U164: =IF(T164-$O$164=0,"NoChange",(T164-$O164)/$O164*100) -> NoChange | W164: =W115*10 -> 0 | X164: =IF(W164-$O$164=0,"NoChange",(W164-$O164)/$O164*100) -> NoChange | Z164: =Z115*10 -> 0 | AA164: =IF(Z164-$O$164=0,"NoChange",(Z164-$O164)/$O164*100) -> NoChange | AC164: =AC115*10 -> 0 | AD164: =IF(AC164-$O$164=0,"NoChange",(AC164-$O164)/$O164*100) -> NoChange | AF164: =AF115*10 -> 0 | AG164: =IF(AF164-$O$164=0,"NoChange",(AF164-$O164)/$O164*100) -> NoChange | AI164: =AI115*10 -> 0 | AJ164: =IF(AI164-$O$164=0,"NoChange",(AI164-$O164)/$O164*100) -> NoChange | AL164: =AL115*10 -> 0 | AM164: =IF(AL164-$O$164=0,"NoChange",(AL164-$O164)/$O164*100) -> NoChange | AO164: =AO115*10 -> 0 | AP164: =IF(AO164-$O$164=0,"NoChange",(AO164-$O164)/$O164*100) -> NoChange
N166: Overall | O166: =N23 -> 0 | Q166: =Q23 -> 0 | R166: =IF(Q166-O166=0,"NoChange",(Q166-$O166)/$O166*100) -> NoChange | T166: =T23 -> 0 | U166: =IF(T166-R166=0,"NoChange",(T166-$O166)/$O166*100) ->  | W166: =W23 -> 0 | X166: =IF(W166-Q166=0,"NoChange",(W166-$O166)/$O166*100) -> NoChange | Z166: =Z23 -> 0 | AA166: =IF(Z166-W166=0,"NoChange",(Z166-$O166)/$O166*100) -> NoChange | AC166: =AC23 -> 0 | AD166: =IF(AC166-Z166=0,"NoChange",(AC166-$O166)/$O166*100) -> NoChange | AF166: =AF23 -> 0 | AG166: =IF(AF166-AC166=0,"NoChange",(AF166-$O166)/$O166*100) -> NoChange | AI166: =AI23 -> 0 | AJ166: =IF(AI166-AF166=0,"NoChange",(AI166-$O166)/$O166*100) -> NoChange | AL166: =AL23 -> 0 | AM166: =IF(AL166-AI166=0,"NoChange",(AL166-$O166)/$O166*100) -> NoChange | AO166: =AO23 -> 0 | AP166: =IF(AO166-AL166=0,"NoChange",(AO166-$O166)/$O166*100) -> NoChange
A168: Relative ratings compared to highest overall rated Short-List support
O170: Max SL | Q170: =Q25 -> Score | T170: =T25 -> Score | W170: =W25 -> Score | Z170: =Z25 -> Score | AC170: =AC25 -> Score | AF170: =AF25 -> Score | AI170: =AI25 -> Score | AL170: =AL25 -> Score | AO170: =AO25 -> Score
N171: MDA | O171: Rating | Q171: Rating | R171: % Diff | W171: Rating | X171: % Diff | Z171: Rating | AA171: % Diff | AC171: Rating | AD171: % Diff | AF171: Rating | AG171: % Diff | AI171: Rating | AJ171: % Diff | AL171: Rating | AM171: % Diff | AO171: Rating | AP171: % Diff
N172: Electrical | O172: =VLOOKUP(N172,ShortListRatings,$O$184,FALSE) -> 0 | Q172: =Q36*10 -> 0 | R172: =IF(Q172-O172=0,0,(Q172-$O172)/$O172*100) -> 0 | T172: =T36*10 -> 0 | U172: =IF(T172-R172=0,0,(T172-$O172)/$O172*100) -> 0 | W172: =W36*10 -> 0 | X172: =IF(W172-Q172=0,0,(W172-$O172)/$O172*100) -> 0 | Z172: =Z36*10 -> 0 | AA172: =IF(Z172-W172=0,0,(Z172-$O172)/$O172*100) -> 0 | AC172: =AC36*10 -> 0 | AD172: =IF(AC172-Z172=0,0,(AC172-$O172)/$O172*100) -> 0 | AF172: =AF36*10 -> 0 | AG172: =IF(AF172-AC172=0,0,(AF172-$O172)/$O172*100) -> 0 | AI172: =AI36*10 -> 0 | AJ172: =IF(AI172-AF172=0,0,(AI172-$O172)/$O172*100) -> 0 | AL172: =AL36*10 -> 0 | AM172: =IF(AL172-AI172=0,0,(AL172-$O172)/$O172*100) -> 0 | AO172: =AO36*10 -> 0 | AP172: =IF(AO172-AL172=0,0,(AO172-$O172)/$O172*100) -> 0
N173: S&F | O173: 0 | Q173: =Q52*10 -> 0 | R173: =IF(Q173-O173=0,0,(Q173-$O173)/$O173) -> 0 | T173: =T52*10 -> 0 | U173: =IF(T173-R173=0,0,(T173-$O173)/$O173) -> 0 | W173: =W52*10 -> 0 | X173: =IF(W173-Q173=0,0,(W173-$O173)/$O173*100) -> 0 | Z173: =Z52*10 -> 0 | AA173: =IF(Z173-W173=0,0,(Z173-$O173)/$O173*100) -> 0 | AC173: =AC52*10 -> 0 | AD173: =IF(AC173-Z173=0,0,(AC173-$O173)/$O173*100) -> 0 | AF173: =AF52*10 -> 0 | AG173: =IF(AF173-AC173=0,0,(AF173-$O173)/$O173*100) -> 0 | AI173: =AI52*10 -> 0 | AJ173: =IF(AI173-AF173=0,0,(AI173-$O173)/$O173*100) -> 0 | AL173: =AL52*10 -> 0 | AM173: =IF(AL173-AI173=0,0,(AL173-$O173)/$O173*100) -> 0 | AO173: =AO52*10 -> 0 | AP173: =IF(AO173-AL173=0,0,(AO173-$O173)/$O173*100) -> 0
N174: M&E | O174: 0 | Q174: =Q62*10 -> 0 | R174: 0 | T174: =T62*10 -> 0 | U174: 0 | W174: =W62*10 -> 0 | X174: 0 | Z174: =Z62*10 -> 0 | AA174: 0 | AC174: =AC62*10 -> 0 | AD174: 0 | AF174: =AF62*10 -> 0 | AG174: 0 | AI174: =AI62*10 -> 0 | AJ174: 0 | AL174: =AL62*10 -> 0 | AM174: 0 | AO174: =AO62*10 -> 0 | AP174: 0
N175: Constr | O175: 0 | Q175: =Q80*10 -> 0 | R175: 0 | T175: =T80*10 -> 0 | U175: 0 | W175: =W80*10 -> 0 | X175: 0 | Z175: =Z80*10 -> 0 | AA175: 0 | AC175: =AC80*10 -> 0 | AD175: 0 | AF175: =AF80*10 -> 0 | AG175: 0 | AI175: =AI80*10 -> 0 | AJ175: 0 | AL175: =AL80*10 -> 0 | AM175: 0 | AO175: =AO80*10 -> 0 | AP175: 0
N176: Maint | O176: 0 | Q176: =Q90*10 -> 0 | R176: 0 | T176: =T90*10 -> 0 | U176: 0 | W176: =W90*10 -> 0 | X176: 0 | Z176: =Z90*10 -> 0 | AA176: 0 | AC176: =AC90*10 -> 0 | AD176: 0 | AF176: =AF90*10 -> 0 | AG176: 0 | AI176: =AI90*10 -> 0 | AJ176: 0 | AL176: =AL90*10 -> 0 | AM176: 0 | AO176: =AO90*10 -> 0 | AP176: 0
N177: OpSafety | O177: 0 | Q177: =Q95*10 -> 0 | R177: 0 | T177: =T95*10 -> 0 | U177: 0 | W177: =W95*10 -> 0 | X177: 0 | Z177: =Z95*10 -> 0 | AA177: 0 | AC177: =AC95*10 -> 0 | AD177: 0 | AF177: =AF95*10 -> 0 | AG177: 0 | AI177: =AI95*10 -> 0 | AJ177: 0 | AL177: =AL95*10 -> 0 | AM177: 0 | AO177: =AO95*10 -> 0 | AP177: 0
N178: Env | O178: 0 | Q178: =Q108*10 -> 0 | R178: 0 | T178: =T108*10 -> 0 | U178: 0 | W178: =W108*10 -> 0 | X178: 0 | Z178: =Z108*10 -> 0 | AA178: 0 | AC178: =AC108*10 -> 0 | AD178: 0 | AF178: =AF108*10 -> 0 | AG178: 0 | AI178: =AI108*10 -> 0 | AJ178: 0 | AL178: =AL108*10 -> 0 | AM178: 0 | AO178: =AO108*10 -> 0 | AP178: 0
N179: Other | O179: 0 | Q179: =Q115*10 -> 0 | R179: 0 | T179: =T115*10 -> 0 | U179: 0 | W179: =W115*10 -> 0 | X179: 0 | Z179: =Z115*10 -> 0 | AA179: =IF(Z179-W179=0,0,(Z179-$O179)/$O179*100) -> 0 | AC179: =AC115*10 -> 0 | AD179: 0 | AF179: =AF115*10 -> 0 | AG179: 0 | AI179: =AI115*10 -> 0 | AJ179: 0 | AL179: =AL115*10 -> 0 | AM179: 0 | AO179: =AO115*10 -> 0 | AP179: 0
N181: Overall | O181: =MAX(Q181,W181,Z181,AC181,AF181,AI181,AL181,AO181) -> 0 | Q181: =Q23 -> 0 | R181: =IF(Q181-$O181=0,0,(Q181-$O181)/$O181*100) -> 0 | T181: =T23 -> 0 | U181: =IF(T181-$O181=0,0,(T181-$O181)/$O181*100) -> 0 | W181: =W23 -> 0 | X181: =IF(W181-$O181=0,"NoChange",(W181-$O181)/$O181*100) -> NoChange | Z181: =Z23 -> 0 | AA181: =IF(Z181-$O181=0,"NoChange",(Z181-$O181)/$O181*100) -> NoChange | AC181: =AC23 -> 0 | AD181: =IF(AC181-$O181=0,"NoChange",(AC181-$O181)/$O181*100) -> NoChange | AF181: =AF23 -> 0 | AG181: =IF(AF181-$O181=0,"NoChange",(AF181-$O181)/$O181*100) -> NoChange | AI181: =AI23 -> 0 | AJ181: =IF(AI181-$O181=0,"NoChange",(AI181-$O181)/$O181*100) -> NoChange | AL181: =AL23 -> 0 | AM181: =IF(AL181-$O181=0,"NoChange",(AL181-$O181)/$O181*100) -> NoChange | AO181: =AO23 -> 0 | AP181: =IF(AO181-$O181=0,"NoChange",(AO181-$O181)/$O181*100) -> NoChange
O183: Lookup col
O184: =3+MATCH(O181,Q181:AP181,0) -> 4
N185: 1 | O185: 2 | P185: 4 | Q185: 5 | R185: 6 | T185: 5 | U185: 6 | V185: 7 | W185: 8 | X185: 9 | Y185: 10 | Z185: 11 | AA185: 12 | AB185: 13 | AC185: 14 | AD185: 15 | AE185: 16 | AF185: 17 | AG185: 18 | AH185: 19 | AI185: 20 | AJ185: 21 | AK185: 22 | AL185: 23 | AM185: 24 | AN185: 25 | AO185: 26 | AP185: 27

Sheet (3)Ranked List of DAs
B2: RANKING OF DESIGN ASPECTS
C4: Design aspect ranking reset
B8: DA ref | C8: Main Design Aspect (MDA) | D8: Design aspect (DA) | E8: MDA weighting | F8: DA weighting | G8: O/A weighting
A9: 78 | B9: ='(2)SupportAssessMatrix'!B103 -> P.8 | C9: ='(2)SupportAssessMatrix'!A103 -> Environmental | D9: ='(2)SupportAssessMatrix'!C103 -> Design aesthetics | E9: ='(2)SupportAssessMatrix'!G103 -> 0.12 | F9: ='(2)SupportAssessMatrix'!J103 -> 0.08333333333 | G9: ='(2)SupportAssessMatrix'!L103 -> 0.01
A10: 79 | B10: ='(2)SupportAssessMatrix'!B104 -> P.9 | C10: ='(2)SupportAssessMatrix'!A104 -> Environmental | D10: ='(2)SupportAssessMatrix'!C104 -> Corridor Width | E10: ='(2)SupportAssessMatrix'!G104 -> 0.12 | F10: ='(2)SupportAssessMatrix'!J104 -> 0.08333333333 | G10: ='(2)SupportAssessMatrix'!L104 -> 0.01
A11: 80 | B11: ='(2)SupportAssessMatrix'!B105 -> P.10 | C11: ='(2)SupportAssessMatrix'!A105 -> Environmental | D11: ='(2)SupportAssessMatrix'!C105 -> As Built Footprint | E11: ='(2)SupportAssessMatrix'!G105 -> 0.12 | F11: ='(2)SupportAssessMatrix'!J105 -> 0.08333333333 | G11: ='(2)SupportAssessMatrix'!L105 -> 0.01
A12: 66 | B12: ='(2)SupportAssessMatrix'!B91 -> O.1 | C12: ='(2)SupportAssessMatrix'!A91 -> Operational Safety | D12: ='(2)SupportAssessMatrix'!C91 -> Access/ Egress/ Rescue | E12: ='(2)SupportAssessMatrix'!G91 -> 0.12 | F12: ='(2)SupportAssessMatrix'!J91 -> 0.25 | G12: ='(2)SupportAssessMatrix'!L91 -> 0.03
A13: 15 | B13: ='(2)SupportAssessMatrix'!B40 -> S.4 | C13: ='(2)SupportAssessMatrix'!A40 -> Supports & Foundations | D13: ='(2)SupportAssessMatrix'!C40 -> Weight of structure (per km) | E13: ='(2)SupportAssessMatrix'!G40 -> 0.13 | F13: ='(2)SupportAssessMatrix'!J40 -> 0.06666666667 | G13: ='(2)SupportAssessMatrix'!L40 -> 0.008666666667
A14: 12 | B14: ='(2)SupportAssessMatrix'!B37 -> S.1 | C14: ='(2)SupportAssessMatrix'!A37 -> Supports & Foundations | D14: ='(2)SupportAssessMatrix'!C37 -> Number of elements | E14: ='(2)SupportAssessMatrix'!G37 -> 0.13 | F14: ='(2)SupportAssessMatrix'!J37 -> 0.06666666667 | G14: ='(2)SupportAssessMatrix'!L37 -> 0.008666666667
A15: 13 | B15: ='(2)SupportAssessMatrix'!B38 -> S.2 | C15: ='(2)SupportAssessMatrix'!A38 -> Supports & Foundations | D15: ='(2)SupportAssessMatrix'!C38 -> Number of joints | E15: ='(2)SupportAssessMatrix'!G38 -> 0.13 | F15: ='(2)SupportAssessMatrix'!J38 -> 0.06666666667 | G15: ='(2)SupportAssessMatrix'!L38 -> 0.008666666667
A16: 22 | B16: ='(2)SupportAssessMatrix'!B47 -> S.11 | C16: ='(2)SupportAssessMatrix'!A47 -> Supports & Foundations | D16: ='(2)SupportAssessMatrix'!C47 -> Familiarity with Form (familiar forms score high) | E16: ='(2)SupportAssessMatrix'!G47 -> 0.13 | F16: ='(2)SupportAssessMatrix'!J47 -> 0.06666666667 | G16: ='(2)SupportAssessMatrix'!L47 -> 0.008666666667
A17: 24 | B17: ='(2)SupportAssessMatrix'!B49 -> S.13 | C17: ='(2)SupportAssessMatrix'!A49 -> Supports & Foundations | D17: ='(2)SupportAssessMatrix'!C49 -> Foundations (Volume of concrete per km) | E17: ='(2)SupportAssessMatrix'!G49 -> 0.13 | F17: ='(2)SupportAssessMatrix'!J49 -> 0.06666666667 | G17: ='(2)SupportAssessMatrix'!L49 -> 0.008666666667
A18: 81 | B18: ='(2)SupportAssessMatrix'!B106 -> P.11 | C18: ='(2)SupportAssessMatrix'!A106 -> Environmental | D18: ='(2)SupportAssessMatrix'!C106 -> Effect on Birds | E18: ='(2)SupportAssessMatrix'!G106 -> 0.12 | F18: ='(2)SupportAssessMatrix'!J106 -> 0.08333333333 | G18: ='(2)SupportAssessMatrix'!L106 -> 0.01
A19: 30 | B19: ='(2)SupportAssessMatrix'!B55 -> M.3 | C19: ='(2)SupportAssessMatrix'!A55 -> Mechanical & Electrical | D19: ='(2)SupportAssessMatrix'!C55 -> Number of Insulators | E19: ='(2)SupportAssessMatrix'!G55 -> 0.13 | F19: ='(2)SupportAssessMatrix'!J55 -> 0.1111111111 | G19: ='(2)SupportAssessMatrix'!L55 -> 0.01444444444
A20: 31 | B20: ='(2)SupportAssessMatrix'!B56 -> M.4 | C20: ='(2)SupportAssessMatrix'!A56 -> Mechanical & Electrical | D20: ='(2)SupportAssessMatrix'!C56 -> Galloping (susceptibility to conductor clashing) | E20: ='(2)SupportAssessMatrix'!G56 -> 0.13 | F20: ='(2)SupportAssessMatrix'!J56 -> 0.1111111111 | G20: ='(2)SupportAssessMatrix'!L56 -> 0.01444444444
A21: 33 | B21: ='(2)SupportAssessMatrix'!B58 -> M.6 | C21: ='(2)SupportAssessMatrix'!A58 -> Mechanical & Electrical | D21: ='(2)SupportAssessMatrix'!C58 -> Angle Support Insulation | E21: ='(2)SupportAssessMatrix'!G58 -> 0.13 | F21: ='(2)SupportAssessMatrix'!J58 -> 0.1111111111 | G21: ='(2)SupportAssessMatrix'!L58 -> 0.01444444444
A22: 16 | B22: ='(2)SupportAssessMatrix'!B41 -> S.5 | C22: ='(2)SupportAssessMatrix'!A41 -> Supports & Foundations | D22: ='(2)SupportAssessMatrix'!C41 -> Suitability to use of alternative materials | E22: ='(2)SupportAssessMatrix'!G41 -> 0.13 | F22: ='(2)SupportAssessMatrix'!J41 -> 0.06666666667 | G22: ='(2)SupportAssessMatrix'!L41 -> 0.008666666667
A23: 72 | B23: ='(2)SupportAssessMatrix'!B97 -> P.2 | C23: ='(2)SupportAssessMatrix'!A97 -> Environmental | D23: ='(2)SupportAssessMatrix'!C97 -> Supports per km | E23: ='(2)SupportAssessMatrix'!G97 -> 0.12 | F23: ='(2)SupportAssessMatrix'!J97 -> 0.08333333333 | G23: ='(2)SupportAssessMatrix'!L97 -> 0.01
A24: 82 | B24: ='(2)SupportAssessMatrix'!B107 -> P.12 | C24: ='(2)SupportAssessMatrix'!A107 -> Environmental | D24: ='(2)SupportAssessMatrix'!C107 -> Tension Support Continuity | E24: ='(2)SupportAssessMatrix'!G107 -> 0.12 | F24: ='(2)SupportAssessMatrix'!J107 -> 0.08333333333 | G24: ='(2)SupportAssessMatrix'!L107 -> 0.01
A25: 67 | B25: ='(2)SupportAssessMatrix'!B92 -> O.2 | C25: ='(2)SupportAssessMatrix'!A92 -> Operational Safety | D25: ='(2)SupportAssessMatrix'!C92 -> Live line working | E25: ='(2)SupportAssessMatrix'!G92 -> 0.12 | F25: ='(2)SupportAssessMatrix'!J92 -> 0.25 | G25: ='(2)SupportAssessMatrix'!L92 -> 0.03
A26: 68 | B26: ='(2)SupportAssessMatrix'!B93 -> O.3 | C26: ='(2)SupportAssessMatrix'!A93 -> Operational Safety | D26: ='(2)SupportAssessMatrix'!C93 -> Management of Induced voltages / currents / Application of additional earthing | E26: ='(2)SupportAssessMatrix'!G93 -> 0.12 | F26: ='(2)SupportAssessMatrix'!J93 -> 0.25 | G26: ='(2)SupportAssessMatrix'!L93 -> 0.03
A27: 14 | B27: ='(2)SupportAssessMatrix'!B39 -> S.3 | C27: ='(2)SupportAssessMatrix'!A39 -> Supports & Foundations | D27: ='(2)SupportAssessMatrix'!C39 -> Side slope added complexity | E27: ='(2)SupportAssessMatrix'!G39 -> 0.13 | F27: ='(2)SupportAssessMatrix'!J39 -> 0.06666666667 | G27: ='(2)SupportAssessMatrix'!L39 -> 0.008666666667
A28: 25 | B28: ='(2)SupportAssessMatrix'!B50 -> S.14 | C28: ='(2)SupportAssessMatrix'!A50 -> Supports & Foundations | D28: ='(2)SupportAssessMatrix'!C50 -> Foundations (Volume of excavation per km) | E28: ='(2)SupportAssessMatrix'!G50 -> 0.13 | F28: ='(2)SupportAssessMatrix'!J50 -> 0.06666666667 | G28: ='(2)SupportAssessMatrix'!L50 -> 0.008666666667
A29: 1 | B29: ='(2)SupportAssessMatrix'!B26 -> E.1 | C29: ='(2)SupportAssessMatrix'!A26 -> Electrical | D29: ='(2)SupportAssessMatrix'!C26 -> Audible Noise | E29: ='(2)SupportAssessMatrix'!G26 -> 0.13 | F29: ='(2)SupportAssessMatrix'!J26 -> 0.1 | G29: ='(2)SupportAssessMatrix'!L26 -> 0.013
A30: 74 | B30: ='(2)SupportAssessMatrix'!B99 -> P.4 | C30: ='(2)SupportAssessMatrix'!A99 -> Environmental | D30: ='(2)SupportAssessMatrix'!C99 -> Transparency (Back clothing) | E30: ='(2)SupportAssessMatrix'!G99 -> 0.12 | F30: ='(2)SupportAssessMatrix'!J99 -> 0.08333333333 | G30: ='(2)SupportAssessMatrix'!L99 -> 0.01
A31: 76 | B31: ='(2)SupportAssessMatrix'!B101 -> P.6 | C31: ='(2)SupportAssessMatrix'!A101 -> Environmental | D31: ='(2)SupportAssessMatrix'!C101 -> Support shape (eiffelised/ top heavy etc.) | E31: ='(2)SupportAssessMatrix'!G101 -> 0.12 | F31: ='(2)SupportAssessMatrix'!J101 -> 0.08333333333 | G31: ='(2)SupportAssessMatrix'!L101 -> 0.01
A32: 77 | B32: ='(2)SupportAssessMatrix'!B102 -> P.7 | C32: ='(2)SupportAssessMatrix'!A102 -> Environmental | D32: ='(2)SupportAssessMatrix'!C102 -> Cross arms | E32: ='(2)SupportAssessMatrix'!G102 -> 0.12 | F32: ='(2)SupportAssessMatrix'!J102 -> 0.08333333333 | G32: ='(2)SupportAssessMatrix'!L102 -> 0.01
A33: 23 | B33: ='(2)SupportAssessMatrix'!B48 -> S.12 | C33: ='(2)SupportAssessMatrix'!A48 -> Supports & Foundations | D33: ='(2)SupportAssessMatrix'!C48 -> Foundation complexity | E33: ='(2)SupportAssessMatrix'!G48 -> 0.13 | F33: ='(2)SupportAssessMatrix'!J48 -> 0.06666666667 | G33: ='(2)SupportAssessMatrix'!L48 -> 0.008666666667
A34: 69 | B34: ='(2)SupportAssessMatrix'!B94 -> O.4 | C34: ='(2)SupportAssessMatrix'!A94 -> Operational Safety | D34: ='(2)SupportAssessMatrix'!C94 -> Circuit Demarcation | E34: ='(2)SupportAssessMatrix'!G94 -> 0.12 | F34: ='(2)SupportAssessMatrix'!J94 -> 0.25 | G34: ='(2)SupportAssessMatrix'!L94 -> 0.03
A35: 57 | B35: ='(2)SupportAssessMatrix'!B82 -> R.2 | C35: ='(2)SupportAssessMatrix'!A82 -> Maintenance | D35: ='(2)SupportAssessMatrix'!C82 -> Main Component Replacement | E35: ='(2)SupportAssessMatrix'!G82 -> 0.12 | F35: ='(2)SupportAssessMatrix'!J82 -> 0.1111111111 | G35: ='(2)SupportAssessMatrix'!L82 -> 0.01333333333
A36: 71 | B36: ='(2)SupportAssessMatrix'!B96 -> P.1 | C36: ='(2)SupportAssessMatrix'!A96 -> Environmental | D36: ='(2)SupportAssessMatrix'!C96 -> Height | E36: ='(2)SupportAssessMatrix'!G96 -> 0.12 | F36: ='(2)SupportAssessMatrix'!J96 -> 0.08333333333 | G36: ='(2)SupportAssessMatrix'!L96 -> 0.01
A37: 73 | B37: ='(2)SupportAssessMatrix'!B98 -> P.3 | C37: ='(2)SupportAssessMatrix'!A98 -> Environmental | D37: ='(2)SupportAssessMatrix'!C98 -> Insulator Visual Impact | E37: ='(2)SupportAssessMatrix'!G98 -> 0.12 | F37: ='(2)SupportAssessMatrix'!J98 -> 0.08333333333 | G37: ='(2)SupportAssessMatrix'!L98 -> 0.01
A38: 75 | B38: ='(2)SupportAssessMatrix'!B100 -> P.5 | C38: ='(2)SupportAssessMatrix'!A100 -> Environmental | D38: ='(2)SupportAssessMatrix'!C100 -> Conductor Arrangement (Compact/ Open) | E38: ='(2)SupportAssessMatrix'!G100 -> 0.12 | F38: ='(2)SupportAssessMatrix'!J100 -> 0.08333333333 | G38: ='(2)SupportAssessMatrix'!L100 -> 0.01
A39: 48 | B39: ='(2)SupportAssessMatrix'!B73 -> C.11 | C39: ='(2)SupportAssessMatrix'!A73 -> Construction | D39: ='(2)SupportAssessMatrix'!C73 -> Support access/ egress/ rescue | E39: ='(2)SupportAssessMatrix'!G73 -> 0.13 | F39: ='(2)SupportAssessMatrix'!J73 -> 0.05882352941 | G39: ='(2)SupportAssessMatrix'!L73 -> 0.007647058824
A40: 45 | B40: ='(2)SupportAssessMatrix'!B70 -> C.8 | C40: ='(2)SupportAssessMatrix'!A70 -> Construction | D40: ='(2)SupportAssessMatrix'!C70 -> Support Transport & Storage | E40: ='(2)SupportAssessMatrix'!G70 -> 0.13 | F40: ='(2)SupportAssessMatrix'!J70 -> 0.05882352941 | G40: ='(2)SupportAssessMatrix'!L70 -> 0.007647058824
A41: 44 | B41: ='(2)SupportAssessMatrix'!B69 -> C.7 | C41: ='(2)SupportAssessMatrix'!A69 -> Construction | D41: ='(2)SupportAssessMatrix'!C69 -> Area required for Assembly & Erection | E41: ='(2)SupportAssessMatrix'!G69 -> 0.13 | F41: ='(2)SupportAssessMatrix'!J69 -> 0.05882352941 | G41: ='(2)SupportAssessMatrix'!L69 -> 0.007647058824
A42: 47 | B42: ='(2)SupportAssessMatrix'!B72 -> C.10 | C42: ='(2)SupportAssessMatrix'!A72 -> Construction | D42: ='(2)SupportAssessMatrix'!C72 -> Ease of support assembly / erection | E42: ='(2)SupportAssessMatrix'!G72 -> 0.13 | F42: ='(2)SupportAssessMatrix'!J72 -> 0.05882352941 | G42: ='(2)SupportAssessMatrix'!L72 -> 0.007647058824
A43: 17 | B43: ='(2)SupportAssessMatrix'!B42 -> S.6 | C43: ='(2)SupportAssessMatrix'!A42 -> Supports & Foundations | D43: ='(2)SupportAssessMatrix'!C42 -> Reduction in reliability in single circuit configuration (i.e. strung one side) | E43: ='(2)SupportAssessMatrix'!G42 -> 0.13 | F43: ='(2)SupportAssessMatrix'!J42 -> 0.06666666667 | G43: ='(2)SupportAssessMatrix'!L42 -> 0.008666666667
A44: 19 | B44: ='(2)SupportAssessMatrix'!B44 -> S.8 | C44: ='(2)SupportAssessMatrix'!A44 -> Supports & Foundations | D44: ='(2)SupportAssessMatrix'!C44 -> Area for painting | E44: ='(2)SupportAssessMatrix'!G44 -> 0.13 | F44: ='(2)SupportAssessMatrix'!J44 -> 0.06666666667 | G44: ='(2)SupportAssessMatrix'!L44 -> 0.008666666667
A45: 54 | B45: ='(2)SupportAssessMatrix'!B79 -> C.17 | C45: ='(2)SupportAssessMatrix'!A79 -> Construction | D45: ='(2)SupportAssessMatrix'!C79 -> Tension Support (Conductor Installation) | E45: ='(2)SupportAssessMatrix'!G79 -> 0.13 | F45: ='(2)SupportAssessMatrix'!J79 -> 0.05882352941 | G45: ='(2)SupportAssessMatrix'!L79 -> 0.007647058824
A46: 2 | B46: ='(2)SupportAssessMatrix'!B27 -> E.2 | C46: ='(2)SupportAssessMatrix'!A27 -> Electrical | D46: ='(2)SupportAssessMatrix'!C27 -> Magnetic Fields (external) | E46: ='(2)SupportAssessMatrix'!G27 -> 0.13 | F46: ='(2)SupportAssessMatrix'!J27 -> 0.1 | G46: ='(2)SupportAssessMatrix'!L27 -> 0.013
A47: 3 | B47: ='(2)SupportAssessMatrix'!B28 -> E.3 | C47: ='(2)SupportAssessMatrix'!A28 -> Electrical | D47: ='(2)SupportAssessMatrix'!C28 -> Electric Fields (external) | E47: ='(2)SupportAssessMatrix'!G28 -> 0.13 | F47: ='(2)SupportAssessMatrix'!J28 -> 0.1 | G47: ='(2)SupportAssessMatrix'!L28 -> 0.013
A48: 4 | B48: ='(2)SupportAssessMatrix'!B29 -> E.4 | C48: ='(2)SupportAssessMatrix'!A29 -> Electrical | D48: ='(2)SupportAssessMatrix'!C29 -> Radio Interference | E48: ='(2)SupportAssessMatrix'!G29 -> 0.13 | F48: ='(2)SupportAssessMatrix'!J29 -> 0.1 | G48: ='(2)SupportAssessMatrix'!L29 -> 0.013
A49: 60 | B49: ='(2)SupportAssessMatrix'!B85 -> R.5 | C49: ='(2)SupportAssessMatrix'!A85 -> Maintenance | D49: ='(2)SupportAssessMatrix'!C85 -> Phase Conductor System Repairs - 1 cct live proximity | E49: ='(2)SupportAssessMatrix'!G85 -> 0.12 | F49: ='(2)SupportAssessMatrix'!J85 -> 0.1111111111 | G49: ='(2)SupportAssessMatrix'!L85 -> 0.01333333333
A50: 61 | B50: ='(2)SupportAssessMatrix'!B86 -> R.6 | C50: ='(2)SupportAssessMatrix'!A86 -> Maintenance | D50: ='(2)SupportAssessMatrix'!C86 -> Earthwire Conductor System Repairs - 1cct live proximity | E50: ='(2)SupportAssessMatrix'!G86 -> 0.12 | F50: ='(2)SupportAssessMatrix'!J86 -> 0.1111111111 | G50: ='(2)SupportAssessMatrix'!L86 -> 0.01333333333
A51: 63 | B51: ='(2)SupportAssessMatrix'!B88 -> R.8 | C51: ='(2)SupportAssessMatrix'!A88 -> Maintenance | D51: ='(2)SupportAssessMatrix'!C88 -> Condition Assessment Remote (Ground/ Aerial) | E51: ='(2)SupportAssessMatrix'!G88 -> 0.12 | F51: ='(2)SupportAssessMatrix'!J88 -> 0.1111111111 | G51: ='(2)SupportAssessMatrix'!L88 -> 0.01333333333
A52: 42 | B52: ='(2)SupportAssessMatrix'!B67 -> C.5 | C52: ='(2)SupportAssessMatrix'!A67 -> Construction | D52: ='(2)SupportAssessMatrix'!C67 -> Complexity of support (Fabrication) | E52: ='(2)SupportAssessMatrix'!G67 -> 0.13 | F52: ='(2)SupportAssessMatrix'!J67 -> 0.05882352941 | G52: ='(2)SupportAssessMatrix'!L67 -> 0.007647058824
A53: 7 | B53: ='(2)SupportAssessMatrix'!B32 -> E.7 | C53: ='(2)SupportAssessMatrix'!A32 -> Electrical | D53: ='(2)SupportAssessMatrix'!C32 -> Insulation Coordination | E53: ='(2)SupportAssessMatrix'!G32 -> 0.13 | F53: ='(2)SupportAssessMatrix'!J32 -> 0.1 | G53: ='(2)SupportAssessMatrix'!L32 -> 0.013
A54: 50 | B54: ='(2)SupportAssessMatrix'!B75 -> C.13 | C54: ='(2)SupportAssessMatrix'!A75 -> Construction | D54: ='(2)SupportAssessMatrix'!C75 -> Conductor Installation Process | E54: ='(2)SupportAssessMatrix'!G75 -> 0.13 | F54: ='(2)SupportAssessMatrix'!J75 -> 0.05882352941 | G54: ='(2)SupportAssessMatrix'!L75 -> 0.007647058824
A55: 52 | B55: ='(2)SupportAssessMatrix'!B77 -> C.15 | C55: ='(2)SupportAssessMatrix'!A77 -> Construction | D55: ='(2)SupportAssessMatrix'!C77 -> Refurbishment inc. e/w- 1 cct live proximity | E55: ='(2)SupportAssessMatrix'!G77 -> 0.13 | F55: ='(2)SupportAssessMatrix'!J77 -> 0.05882352941 | G55: ='(2)SupportAssessMatrix'!L77 -> 0.007647058824
A56: 53 | B56: ='(2)SupportAssessMatrix'!B78 -> C.16 | C56: ='(2)SupportAssessMatrix'!A78 -> Construction | D56: ='(2)SupportAssessMatrix'!C78 -> Route Dismantling | E56: ='(2)SupportAssessMatrix'!G78 -> 0.13 | F56: ='(2)SupportAssessMatrix'!J78 -> 0.05882352941 | G56: ='(2)SupportAssessMatrix'!L78 -> 0.007647058824
A57: 28 | B57: ='(2)SupportAssessMatrix'!B53 -> M.1 | C57: ='(2)SupportAssessMatrix'!A53 -> Mechanical & Electrical | D57: ='(2)SupportAssessMatrix'!C53 -> Insulation Mechanical Reliability | E57: ='(2)SupportAssessMatrix'!G53 -> 0.13 | F57: ='(2)SupportAssessMatrix'!J53 -> 0.1111111111 | G57: ='(2)SupportAssessMatrix'!L53 -> 0.01444444444
A58: 29 | B58: ='(2)SupportAssessMatrix'!B54 -> M.2 | C58: ='(2)SupportAssessMatrix'!A54 -> Mechanical & Electrical | D58: ='(2)SupportAssessMatrix'!C54 -> Insulation Material Limitation | E58: ='(2)SupportAssessMatrix'!G54 -> 0.13 | F58: ='(2)SupportAssessMatrix'!J54 -> 0.1111111111 | G58: ='(2)SupportAssessMatrix'!L54 -> 0.01444444444
A59: 32 | B59: ='(2)SupportAssessMatrix'!B57 -> M.5 | C59: ='(2)SupportAssessMatrix'!A57 -> Mechanical & Electrical | D59: ='(2)SupportAssessMatrix'!C57 -> Formation of Jumpers at Angle Supports | E59: ='(2)SupportAssessMatrix'!G57 -> 0.13 | F59: ='(2)SupportAssessMatrix'!J57 -> 0.1111111111 | G59: ='(2)SupportAssessMatrix'!L57 -> 0.01444444444
A60: 62 | B60: ='(2)SupportAssessMatrix'!B87 -> R.7 | C60: ='(2)SupportAssessMatrix'!A87 -> Maintenance | D60: ='(2)SupportAssessMatrix'!C87 -> Surface Preparation & Treatment/ Deterioration Protection | E60: ='(2)SupportAssessMatrix'!G87 -> 0.12 | F60: ='(2)SupportAssessMatrix'!J87 -> 0.1111111111 | G60: ='(2)SupportAssessMatrix'!L87 -> 0.01333333333
A61: 18 | B61: ='(2)SupportAssessMatrix'!B43 -> S.7 | C61: ='(2)SupportAssessMatrix'!A43 -> Supports & Foundations | D61: ='(2)SupportAssessMatrix'!C43 -> Ice accretion performance | E61: ='(2)SupportAssessMatrix'!G43 -> 0.13 | F61: ='(2)SupportAssessMatrix'!J43 -> 0.06666666667 | G61: ='(2)SupportAssessMatrix'!L43 -> 0.008666666667
A62: 20 | B62: ='(2)SupportAssessMatrix'!B45 -> S.9 | C62: ='(2)SupportAssessMatrix'!A45 -> Supports & Foundations | D62: ='(2)SupportAssessMatrix'!C45 -> Implications of addition of extensions | E62: ='(2)SupportAssessMatrix'!G45 -> 0.13 | F62: ='(2)SupportAssessMatrix'!J45 -> 0.06666666667 | G62: ='(2)SupportAssessMatrix'!L45 -> 0.008666666667
A63: 21 | B63: ='(2)SupportAssessMatrix'!B46 -> S.10 | C63: ='(2)SupportAssessMatrix'!A46 -> Supports & Foundations | D63: ='(2)SupportAssessMatrix'!C46 -> Length of load path | E63: ='(2)SupportAssessMatrix'!G46 -> 0.13 | F63: ='(2)SupportAssessMatrix'!J46 -> 0.06666666667 | G63: ='(2)SupportAssessMatrix'!L46 -> 0.008666666667
A64: 26 | B64: ='(2)SupportAssessMatrix'!B51 -> S.15 | C64: ='(2)SupportAssessMatrix'!A51 -> Supports & Foundations | D64: ='(2)SupportAssessMatrix'!C51 -> Suitability for application of two earthwires | E64: ='(2)SupportAssessMatrix'!G51 -> 0.13 | F64: ='(2)SupportAssessMatrix'!J51 -> 0.06666666667 | G64: ='(2)SupportAssessMatrix'!L51 -> 0.008666666667
A65: 58 | B65: ='(2)SupportAssessMatrix'!B83 -> R.3 | C65: ='(2)SupportAssessMatrix'!A83 -> Maintenance | D65: ='(2)SupportAssessMatrix'!C83 -> Suitability for operational activities (e.g. isolation) | E65: ='(2)SupportAssessMatrix'!G83 -> 0.12 | F65: ='(2)SupportAssessMatrix'!J83 -> 0.1111111111 | G65: ='(2)SupportAssessMatrix'!L83 -> 0.01333333333
A66: 59 | B66: ='(2)SupportAssessMatrix'!B84 -> R.4 | C66: ='(2)SupportAssessMatrix'!A84 -> Maintenance | D66: ='(2)SupportAssessMatrix'!C84 -> Main Component Replacement to Earthwires | E66: ='(2)SupportAssessMatrix'!G84 -> 0.12 | F66: ='(2)SupportAssessMatrix'!J84 -> 0.1111111111 | G66: ='(2)SupportAssessMatrix'!L84 -> 0.01333333333
A67: 43 | B67: ='(2)SupportAssessMatrix'!B68 -> C.6 | C67: ='(2)SupportAssessMatrix'!A68 -> Construction | D67: ='(2)SupportAssessMatrix'!C68 -> Area required for Foundation Construction | E67: ='(2)SupportAssessMatrix'!G68 -> 0.13 | F67: ='(2)SupportAssessMatrix'!J68 -> 0.05882352941 | G67: ='(2)SupportAssessMatrix'!L68 -> 0.007647058824
A68: 40 | B68: ='(2)SupportAssessMatrix'!B65 -> C.3 | C68: ='(2)SupportAssessMatrix'!A65 -> Construction | D68: ='(2)SupportAssessMatrix'!C65 -> Support Type testing | E68: ='(2)SupportAssessMatrix'!G65 -> 0.13 | F68: ='(2)SupportAssessMatrix'!J65 -> 0.05882352941 | G68: ='(2)SupportAssessMatrix'!L65 -> 0.007647058824
A69: 41 | B69: ='(2)SupportAssessMatrix'!B66 -> C.4 | C69: ='(2)SupportAssessMatrix'!A66 -> Construction | D69: ='(2)SupportAssessMatrix'!C66 -> Support check erect | E69: ='(2)SupportAssessMatrix'!G66 -> 0.13 | F69: ='(2)SupportAssessMatrix'!J66 -> 0.05882352941 | G69: ='(2)SupportAssessMatrix'!L66 -> 0.007647058824
A70: 34 | B70: ='(2)SupportAssessMatrix'!B59 -> M.7 | C70: ='(2)SupportAssessMatrix'!A59 -> Mechanical & Electrical | D70: ='(2)SupportAssessMatrix'!C59 -> Type Testing Requirements | E70: ='(2)SupportAssessMatrix'!G59 -> 0.13 | F70: ='(2)SupportAssessMatrix'!J59 -> 0.1111111111 | G70: ='(2)SupportAssessMatrix'!L59 -> 0.01444444444
A71: 35 | B71: ='(2)SupportAssessMatrix'!B60 -> M.8 | C71: ='(2)SupportAssessMatrix'!A60 -> Mechanical & Electrical | D71: ='(2)SupportAssessMatrix'!C60 -> Suitability for ICA adaption | E71: ='(2)SupportAssessMatrix'!G60 -> 0.13 | F71: ='(2)SupportAssessMatrix'!J60 -> 0.1111111111 | G71: ='(2)SupportAssessMatrix'!L60 -> 0.01444444444
A72: 49 | B72: ='(2)SupportAssessMatrix'!B74 -> C.12 | C72: ='(2)SupportAssessMatrix'!A74 -> Construction | D72: ='(2)SupportAssessMatrix'!C74 -> Need for insulator temporary restraint | E72: ='(2)SupportAssessMatrix'!G74 -> 0.13 | F72: ='(2)SupportAssessMatrix'!J74 -> 0.05882352941 | G72: ='(2)SupportAssessMatrix'!L74 -> 0.007647058824
A73: 56 | B73: ='(2)SupportAssessMatrix'!B81 -> R.1 | C73: ='(2)SupportAssessMatrix'!A81 -> Maintenance | D73: ='(2)SupportAssessMatrix'!C81 -> Ancillary equipment (including third party) | E73: ='(2)SupportAssessMatrix'!G81 -> 0.12 | F73: ='(2)SupportAssessMatrix'!J81 -> 0.1111111111 | G73: ='(2)SupportAssessMatrix'!L81 -> 0.01333333333
A74: 64 | B74: ='(2)SupportAssessMatrix'!B89 -> R.9 | C74: ='(2)SupportAssessMatrix'!A89 -> Maintenance | D74: ='(2)SupportAssessMatrix'!C89 -> Condition Assessment Intrusive (Climbing) | E74: ='(2)SupportAssessMatrix'!G89 -> 0.12 | F74: ='(2)SupportAssessMatrix'!J89 -> 0.1111111111 | G74: ='(2)SupportAssessMatrix'!L89 -> 0.01333333333
A75: 38 | B75: ='(2)SupportAssessMatrix'!B63 -> C.1 | C75: ='(2)SupportAssessMatrix'!A63 -> Construction | D75: ='(2)SupportAssessMatrix'!C63 -> Support Supply Chain Familiarity | E75: ='(2)SupportAssessMatrix'!G63 -> 0.13 | F75: ='(2)SupportAssessMatrix'!J63 -> 0.05882352941 | G75: ='(2)SupportAssessMatrix'!L63 -> 0.007647058824
A76: 39 | B76: ='(2)SupportAssessMatrix'!B64 -> C.2 | C76: ='(2)SupportAssessMatrix'!A64 -> Construction | D76: ='(2)SupportAssessMatrix'!C64 -> Insulation Supply Chain Familiarity (Composite) | E76: ='(2)SupportAssessMatrix'!G64 -> 0.13 | F76: ='(2)SupportAssessMatrix'!J64 -> 0.05882352941 | G76: ='(2)SupportAssessMatrix'!L64 -> 0.007647058824
A77: 51 | B77: ='(2)SupportAssessMatrix'!B76 -> C.14 | C77: ='(2)SupportAssessMatrix'!A76 -> Construction | D77: ='(2)SupportAssessMatrix'!C76 -> Insulator Conductor Attachment Point | E77: ='(2)SupportAssessMatrix'!G76 -> 0.13 | F77: ='(2)SupportAssessMatrix'!J76 -> 0.05882352941 | G77: ='(2)SupportAssessMatrix'!L76 -> 0.007647058824
A78: 9 | B78: ='(2)SupportAssessMatrix'!B34 -> E.9 | C78: ='(2)SupportAssessMatrix'!A34 -> Electrical | D78: ='(2)SupportAssessMatrix'!C34 -> Electric Fields within/near structure | E78: ='(2)SupportAssessMatrix'!G34 -> 0.13 | F78: ='(2)SupportAssessMatrix'!J34 -> 0.1 | G78: ='(2)SupportAssessMatrix'!L34 -> 0.013
A79: 10 | B79: ='(2)SupportAssessMatrix'!B35 -> E.10 | C79: ='(2)SupportAssessMatrix'!A35 -> Electrical | D79: ='(2)SupportAssessMatrix'!C35 -> Magnetic Fields within/ near structure | E79: ='(2)SupportAssessMatrix'!G35 -> 0.13 | F79: ='(2)SupportAssessMatrix'!J35 -> 0.1 | G79: ='(2)SupportAssessMatrix'!L35 -> 0.013
A80: 46 | B80: ='(2)SupportAssessMatrix'!B71 -> C.9 | C80: ='(2)SupportAssessMatrix'!A71 -> Construction | D80: ='(2)SupportAssessMatrix'!C71 -> Access Track Requirement | E80: ='(2)SupportAssessMatrix'!G71 -> 0.13 | F80: ='(2)SupportAssessMatrix'!J71 -> 0.05882352941 | G80: ='(2)SupportAssessMatrix'!L71 -> 0.007647058824
A81: 36 | B81: ='(2)SupportAssessMatrix'!B61 -> M.9 | C81: ='(2)SupportAssessMatrix'!A61 -> Mechanical & Electrical | D81: ='(2)SupportAssessMatrix'!C61 -> Familiarity with Attachment Arrangement | E81: ='(2)SupportAssessMatrix'!G61 -> 0.13 | F81: ='(2)SupportAssessMatrix'!J61 -> 0.1111111111 | G81: ='(2)SupportAssessMatrix'!L61 -> 0.01444444444
A82: 5 | B82: ='(2)SupportAssessMatrix'!B30 -> E.5 | C82: ='(2)SupportAssessMatrix'!A30 -> Electrical | D82: ='(2)SupportAssessMatrix'!C30 -> Earthing Performance | E82: ='(2)SupportAssessMatrix'!G30 -> 0.13 | F82: ='(2)SupportAssessMatrix'!J30 -> 0.1 | G82: ='(2)SupportAssessMatrix'!L30 -> 0.013
A83: 6 | B83: ='(2)SupportAssessMatrix'!B31 -> E.6 | C83: ='(2)SupportAssessMatrix'!A31 -> Electrical | D83: ='(2)SupportAssessMatrix'!C31 -> Lightning Performance | E83: ='(2)SupportAssessMatrix'!G31 -> 0.13 | F83: ='(2)SupportAssessMatrix'!J31 -> 0.1 | G83: ='(2)SupportAssessMatrix'!L31 -> 0.013
A84: 8 | B84: ='(2)SupportAssessMatrix'!B33 -> E.8 | C84: ='(2)SupportAssessMatrix'!A33 -> Electrical | D84: ='(2)SupportAssessMatrix'!C33 -> Surge Impedance Loading (SIL) | E84: ='(2)SupportAssessMatrix'!G33 -> 0.13 | F84: ='(2)SupportAssessMatrix'!J33 -> 0.1 | G84: ='(2)SupportAssessMatrix'!L33 -> 0.013
A85: 83 | B85: ='(2)SupportAssessMatrix'!B109 -> T.1 | C85: ='(2)SupportAssessMatrix'!A109 -> Other | D85: ='(2)SupportAssessMatrix'!C109 -> Susceptibility to damage (vandalism/accident) | E85: ='(2)SupportAssessMatrix'!G109 -> 0.12 | F85: ='(2)SupportAssessMatrix'!J109 -> 0.1666666667 | G85: ='(2)SupportAssessMatrix'!L109 -> 0.02
A86: 84 | B86: ='(2)SupportAssessMatrix'!B110 -> T.2 | C86: ='(2)SupportAssessMatrix'!A110 -> Other | D86: ='(2)SupportAssessMatrix'!C110 -> Resistance of materials to deterioration/attack | E86: ='(2)SupportAssessMatrix'!G110 -> 0.12 | F86: ='(2)SupportAssessMatrix'!J110 -> 0.1666666667 | G86: ='(2)SupportAssessMatrix'!L110 -> 0.02
A87: 85 | B87: ='(2)SupportAssessMatrix'!B111 -> T.3 | C87: ='(2)SupportAssessMatrix'!A111 -> Other | D87: ='(2)SupportAssessMatrix'!C111 -> Number of supports per km of OHL | E87: ='(2)SupportAssessMatrix'!G111 -> 0.12 | F87: ='(2)SupportAssessMatrix'!J111 -> 0.1666666667 | G87: ='(2)SupportAssessMatrix'!L111 -> 0.02
A88: 86 | B88: ='(2)SupportAssessMatrix'!B112 -> T.4 | C88: ='(2)SupportAssessMatrix'!A112 -> Other | D88: ='(2)SupportAssessMatrix'!C112 -> Embodied energy (embodied carbon) | E88: ='(2)SupportAssessMatrix'!G112 -> 0.12 | F88: ='(2)SupportAssessMatrix'!J112 -> 0.1666666667 | G88: ='(2)SupportAssessMatrix'!L112 -> 0.02
A89: 87 | B89: ='(2)SupportAssessMatrix'!B113 -> T.5 | C89: ='(2)SupportAssessMatrix'!A113 -> Other | D89: ='(2)SupportAssessMatrix'!C113 -> Cost of supports (per km) | E89: ='(2)SupportAssessMatrix'!G113 -> 0.12 | F89: ='(2)SupportAssessMatrix'!J113 -> 0.1666666667 | G89: ='(2)SupportAssessMatrix'!L113 -> 0.02
A90: 88 | B90: ='(2)SupportAssessMatrix'!B114 -> T.6 | C90: ='(2)SupportAssessMatrix'!A114 -> Other | D90: ='(2)SupportAssessMatrix'!C114 -> Side slope - effect on height | E90: ='(2)SupportAssessMatrix'!G114 -> 0.12 | F90: ='(2)SupportAssessMatrix'!J114 -> 0.1666666667 | G90: ='(2)SupportAssessMatrix'!L114 -> 0.02

Sheet (4)Assessment Rationale
A1: ASSESSMENT RATIONALE
A3: Main Design Aspect | B3: Ref | C3: Design Aspect | D3: Notes on Design Aspect
A5: Electrical | B5: E.0 | C5: General | D5: Given that the supports are designed with the same conductor the electrical aspects are mainly a function of the conductor and earthwire positions. The electrical design aspects consider the effects on system operation and environmental effects (i.e. audible noise & EMF).
A6: Electrical | B6: E.1 | C6: Audible Noise | D6: The principal driver for whether or not AN is likely is the conductor surface voltage gradient (CSVG). Therefore in order to compare and score the eight options, the highest value of CSVG for each configuration provides the relative score. For the purposes of comparison, all calculations are taken at minimum height above ground (7.1m) and assuming that the earthwire sag is the same as the phases. The same calculations for relative AN as per EL’s Stage 3 Report are used.
A7: Electrical | B7: E.2 | C7: Magnetic Fields (External) | D7: The calculated values in microteslas generated by the MAGNETO 2D modelling software (V9.3) are used to provide a relative score. The software can produce field profiles over any range and for these studies and in this case range of +/- 100m from centreline was selected. Further, the minimum height clearance of bottom phase conductor to ground of 7.1 was chose to give worst case representation of EMFs for comparison, rather than average values often quoted.
A8: Electrical | B8: E.3 | C8: Electric Fields (External) | D8: Similar to E.2, the calculated values in kV/m are presented for +/- 100m from the centreline on the support as calculated by the ELECTRO 2D modelling software (V9.3) to provide a relative score for the SAM.
A9: Electrical | B9: E.4 | C9: Radio Interference | D9: In a similar way to AN, the principal driver for whether or not RI is likely is the CSVG and using that value in formulas described in EL’s Stage 3 Interim Report (90SS545-REP-002) yields scores for the SAM.
A10: Electrical | B10: E.5 | C10: Earthing Performance | D10: The eight options include lattice steel or steel poles, with twin earthwires. On the assumption that appropriate earthing to ground through footings shall be installed for all options, this design aspect is considered to be a very minor scoring factor. The surge impedance of the tower will depend upon the volume of steel, its connected components and the interconnected paths. For the purposes of scoring, a twin pole or lattice, inter-connected support is given a higher relative score than independent single poles. This aspect has been ranked manually using engineering judgement.
A11: Electrical | B11: E.6 | C11: Lightning Performance | D11: With the application of twin earth wires, the shielding performance of all eight options will be very good when compared to single earthwire applications. All options are under 30m in height save for 570 series and so scoring is simply based upon the angle subtended between the vertical under the earthwire and the top phase, except for the twin crossarm options 540 and 560 which feature phase conductors displaced further from the vertical from the earthwire and as such most extreme phase angle is measured. For the purposes of comparison, the score for Option 570 is adjusted down manually to account for its height of 37m.
A12: Electrical | B12: E.7 | C12: Insulation Coordination | D12: Studies of IC require details of the system as a whole and as such, all options here would be considered by application. As such, scoring for SAM purposes is considered inappropriate and as such all options are scored equally.
A13: Electrical | B13: E.8 | C13: Surge Impedance Loading (Sil) | D13: Generally as conductor separations are reduced (in compact designs for example), the increase in capacitance tends to reduce the surge impedance which in turn increases the SIL. SAM scoring is based upon the geometric mean of the phase conductor separation values to give a relative comparison.
A14: Electrical | B14: E.9 | C14: Electric Fields Within/Near Structure | D14: The calculated values in kV/m provide a relative score for the SAM for the Electric Fields near the structure (on centreline). For the purposes of assessing non-outage access conditions, the maximum value of electric field at the centre of the crossarms was calculated. Such values are so far below recommended limits for workers that the impact on option selection is deemed irrelevant and so this has been weighted low.
A15: Electrical | B15: E.10 | C15: Magnetic Fields Within/Near Structure | D15: The calculated values in microteslas provide a relative score for the SAM for the Electric Fields near the structure (on centreline). For the purposes of assessing non-outage access conditions, the maximum value of electric field at the centre of the crossarms was calculated. Such vales are so far below recommended limits for workers that the impact on option selection is deemed irrelevant and so this has been weighted low.
A17: Supports & Foundations | B17: S.0 | C17: General | D17: The Supports & Foundations MDA is principally concerned with the structural performance of these two main components of an overhead line. The implications for design efficiency are a key consideration this MDA.
A18: Supports & Foundations | B18: S.1 | C18: Number of Elements | D18: Taking into account the risks associated with each member of a structure, arising from design, manufacture and construction etc., the number of elements in a structure can be taken as an indicator of the reliability of the full structure. Structures with fewer numbers of members are considered to have an inherent design advantage over structures with greater numbers of members. The 'number of elements' design aspect score for any particular Form has been calculated by comparing the corresponding number of elements in the Form to the individual totals for the other 7 short-listed Forms. Forms with numbers of elements greater than 50 have been given minimum score 1.
A19: Supports & Foundations | B19: S.2 | C19: Number of Joints | D19: Taking into account the risks associated with each joint within a structure, arising from design, manufacture and construction etc., the number of joints in a structure can be taken as an indicator of the reliability of the full structure. Structures with fewer numbers of joints are considered to have an inherent design advantage over structures with greater numbers of joints. The 'number of joints' design aspect score for any particular Form has been calculated by comparing the corresponding number of joints in the Form to the individual totals for the other 7 short-listed Forms.
A20: Supports & Foundations | B20: S.3 | C20: Side Slope Added Complexity | D20: Supports that have a wide foot print are more difficult to construct in hilly terrain due to the ground level differences. The difference in ground level across a support is an indicator of the additional measures that may be required in the design and the construction of the support. Transverse ground gradients also impact on ground to phase clearance and correspondingly on support heights. For the purposes of the study two dimensions have been noted for each Form: the maximum difference in ground level across the Form arising from a transverse slope of 30°; and the reduction in clearance to bottom phase conductors arising from the same gradient, compared to the clearance in level ground. The sum of these two 'hilly ground dimensions', the hilly terrain index, has been taken as an indicator of the implications of construction in hilly terrain. The 'hilly terrain' design aspect score for any particular Form has been calculated by comparing the hilly terrain index for the Form to the hilly terrain indices of the other 7 short-listed Forms.
A21: Supports & Foundations | B21: S.4 | C21: Weight of Structure (Per km) | D21: The overall weight of a support impacts on construction, manufacture, embodied energy and resource consumption, and as such it is considered to be a key indicator of good design. The weight of supports per km have been calculated for each form, in order to take into account differences in standard spans. The 'weight of structure' design aspect score for any particular Form has been calculated by comparing the weight/km for the Form to the weight/km values of the other 7 short-listed Forms.
A22: Supports & Foundations | B22: S.5 | C22: Suitability to use of Alternative Materials | D22: For the purposes of the study the construction material has been limited to steel. However, for each Form a subjective assessment has been made of the practicality of incorporating alternative materials into the support, such as fibre reinforced plastic tubes, glulam timber poles and crossarms, and concrete poles. Typically lattice forms of construction are not suited to the use of alternative materials, whereas poles are suited to the use of alternative materials, especially if simple connection designs can be developed. The 'alternative materials' design aspect score for any particular Form has been allocated on a subjective basis taking into account strength and manufacturing considerations. calculated by comparing the cost/km for the Form to the cost/km values of the other 7 short-listed Forms.
A23: Supports & Foundations | B23: S.6 | C23: Reduction in Reliability in Single Circuit Configuration (i.e. Strung One Side) | D23: When 2 circuits are supported circuit 1 tends to balance circuit 2; when only one circuit is supported an out of balance moment results as a consequence. In order to quantify this effect, the moment arising from dead load in the 2-circuit balanced condition has been compared to the moment arising from the 1-circuit out of balance condition. The change in gravity load, overturning moment arising from a change from double circuit to single circuit configuration is taken to be an indicator of suitability for single circuit lines. The 'single circuit' design aspect score for any particular Form has been calculated by comparing the increase in overturning moment for the Form to the increases in overturning moment for the other 7 short-listed Forms.
A24: Supports & Foundations | B24: S.7 | C24: Ice Accretion Performance | D24: OHL supports are subject to ice accretion. The weight of the ice that forms on the supports, and also the wind load that is collected by the ice augmented projected area of the support, have to be resisted by the support. Clearly, the less ice that a support attracts the better. The surface area of the supports has been taken as an indicator of proneness to icing effects. The 'ice accretion' design aspect score for any particular Form has been calculated by comparing the surface area of the Form to the surface areas of the other 7 short-listed Forms.
A25: Supports & Foundations | B25: S.8 | C25: Area for Painting | D25: Structural steel requires protection against corrosion. The cost of both initial corrosion protection measures, and maintenance of corrosion protection is determined to a large extent by the surface area to be protected. The 'surface protection' design aspect score for any particular Form has been calculated by comparing the surface area of the Form to the surface areas of the other 7 short-listed Forms.
A26: Supports & Foundations | B26: S.9 | C26: Implications of Addition of Extensions | D26: The heights of supports are typically increased from the standard height where spans exceed the standard span, this being to achieve in-span clearances to ground. The heights of supports with vertical tube legs can be easily increased by adding tube extensions, with very little increase in footprint area. The heights of typical tower supports can be increased in height by adding combinations of body and/or leg extensions; the increase in footprint area is greater than the corresponding increase in area associated with tube extensions, and the visual impact of extensions is greater also. Correspondingly lattice steel supports have lower scores than tube supports. In the case of the series 570 support (x-pylon), extensions would also not match the aesthetics of the standard height support thus attracting a further reduction in score. The 'height extension' design aspect score for any particular Form has been allocated subjectively.
A27: Supports & Foundations | B27: S.10 | C27: Length of Load Path | D27: The loads collected by the conductors and earthwire pass through the support structures to ground. The length of load-path is a structural indicator; short, direct load paths are considered to be beneficial. For the purposes of the study, main load paths have been identified by inspection and the maximum load path lengths for 6 conductors and 2 earthwires for each suspension Form have been summed. The 'load-path' design aspect score for any particular Form has been calculated by comparing the corresponding load-path total to the individual totals for the other 7 short-listed Forms.
A28: Supports & Foundations | B28: S.11 | C28: Familiarity with Form (Familiar Forms Score High) | D28: 'Familiarity of form' is considered to be advantageous to design reliability, in that testing data and historical records (relating to actual performance in service), back up the design principles and methods that have been used to design those familiar forms. The 'familiarity of form' design aspect score for any particular Form has been allocated subjectively.
A29: Supports & Foundations | B29: S.12 | C29: Foundation Complexity | D29: Foundations to traditional lattice steel towers are typically simple in concept in that they resist essentially compression and/or uplift loading; overturning moments are relatively small, these arising from residual shears at ground level. Pole supports are such that significant overturning moments are generated at ground level; foundations to poles are therefore required to resist moments as well as vertical loads, and as such the design of foundations to poles require greater design effort. For the purposes of the study, supports requiring only simple uplift/compression foundations have been scored 8; supports requiring moment resisting foundations to a standalone pole a score of 4; and supports that require moment resisting foundation to two or more closely spaced poles (shared foundation) a score of 2.
A30: Supports & Foundations | B30: S.13 | C30: Foundations (Volume of Concrete Per km) | D30: The volume of concrete in foundations to supports impacts on construction, manufacture, embodied energy and resource consumption, and as such it is considered to be a key indicator of good design. The volume of concrete required to construct foundations has been calculated on a unit line length basis to take into account differences in standard spans. The 'concrete volume' design aspect score for any particular Form has been calculated by comparing the volume/km for the Form to the volume/km values of the other 7 short-listed Forms.
A31: Supports & Foundations | B31: S.14 | C31: Foundations (Volume of Excavation Per km) | D31: The volume of excavation required to construct foundations to supports impacts on construction, manufacture, and embodied energy , and as such it is considered to be a indicator of good design. Supports that require smaller excavations for construction of foundations are considered to offer an advantage over those that require more extensive excavations. The volume of excavation required to construct foundations has been calculated on a unit line length basis to take into account differences in standard spans. The 'excavation volume' design aspect score for any particular Form has been calculated by comparing the volume/km for the Form to the volume/km values of the other 7 short-listed Forms.
A32: Supports & Foundations | B32: S.15 | C32: Suitability for the Application of Two Earthwires | D32: Three scores have been allocated on a subjective basis: 9 for two pole supports that require no modification for support of earthwires (including the X-pylon), 2 for mono-pole supports and 2-pole supports that require modification for support of earthwires, and 1 for lattice towers.
A34: Mechanical & Electrical | B34: M.0 | C34: General | D34: Given that the conductor design is a constant for the assessment. the main variable for the mechanical & electrical design aspect is the configuration of the conductor system (including insulators). The implications of the support design on the need to use new insulator arrangements and materials has also been considered.
A35: Mechanical & Electrical | B35: M.1 | C35: Insulation Mechanical Reliability | D35: Reliability of the insulation in mechanical terms will increase with the provision of more than one insulator string i.e. 'V' or horizontal vee. If an insulator were to fail in either case the conductor would not be dropped and would be upheld by the remaining insulator.
A36: Mechanical & Electrical | B36: M.2 | C36: Insulation Material Limitation | D36: Horizontal vee (and other ICA arrangements) use composite insulation exclusively. Whilst this in itself is not a negative; the inability to specify glass or ceramic insulation in some circumstances may be a disbenefit both in terms of insulation performance as well as cost.
A37: Mechanical & Electrical | B37: M.3 | C37: Number of Insulators | D37: The number of insulators used has an effect on the complexity and amount of components used. It also has a negative effect for disposal and recycling. An increased number of insulators also increases the probability of component failure. I string insulators have been marked high for their simplicity and only being one unit, followed by V and horizontal V arrangements which have double the amount of insulators.
A38: Mechanical & Electrical | B38: M.4 | C38: Galloping (Susceptibility to Conductor Clashing) | D38: Conductor galloping is a poorly understood phenomena that can affect OHL conductors: the aerodynamic lift effects of wind flowing past ice covered conductors can result in non-synchronised resonant oscillation of conductors, and this can result in contact or flashover. The susceptibility of a conductor configuration to adverse galloping effects can be studied by drawing ellipses around each conductor, to signify the positions in space that a conductor may be found during wind excited motion. There are a number of methods in use for determination of ellipse geometry, one of which is presented in CIGRE publication 322. For the purposes of the study the area of overlap between ellipses has been taken as an indicator of susceptibility to adverse galloping effects. The 'galloping' design aspect score for any particular Form has been calculated by comparing the area of ellipse overlap for the Form to the area of ellipse overlap values of the other 7 short-listed Forms.
B39: M.5 | C39: Formation of Jumpers at Angle Supports | D39: The formation of jumpers on supports with 1 x 700mm2 (single araucaria) is likely to be difficult due to the stiffness of the conductor to form short loops. In addition, the termination clamp would likely be preferred to be wedge type to avoid the formation of hotspots, it may be necessary to form the jumpers from multiple smaller diameter conductors to allow for the tight radius required. There is no discernible difference between support forms in terms of the formation of jumpers.
B40: M.6 | C40: Angle Support Insulation | D40: Insulator complexity at angle supports can be considered in terms of the number of post insulator elements required. I.e. conventional angles will score highly, angles with a post to offset the jumper will be scored in the mid range and angle supports that employ a 4 leg ICA design will be considered least favourably.
B41: M.7 | C41: Type Testing Requirements | D41: The type test requirements for horizontal vee insulation may be more onerous than that of 'I' or 'V' arrangements, it has been suggested in some sources that type testing of the individual insulator units as well as the whole horizontal vee assembly be type tested.
A42: Mechanical & Electrical | B42: M.8 | C42: Suitability for ICA Adaption | D42: The suitability is a qualitative assessment of how a design may lend itself to the adaption of ICA technology. In general, designs without ICAs already, do not lend themselves to the technology, especially those which do not have a vertical configuration of conductors.
B43: M.9 | C43: Familiarity with Attachment Arrangement | D43: The attachment of the horizontal vee assembly as opposed to conventional arrangements will be different to the norm therefore the familiarity for linesmen to the component will be low. However, this is not deemed to be a significant issue and as such has been weighted as 0.
A45: Construction | B45: C.0 | C45: General | D45: The construction assessment is based on what are currently 'conventional' activities and procedures for continuous tension stringing. There are assumptions and limitations which are common for all of the following design aspects. The construction assessment is based on existing OHL construction techniques. The design of attachment points and access fittings have not yet been developed; the basis of the construction assessment is that, in particular, the pole type supports would require further design considerations for 'in built' access facilities and rigging attachment points.
A46: Construction | B46: C.1 | C46: Support Supply Chain Familiarity | D46: Any new supplier must undergo the prequalification process with the contractor, for steel lattice supports in the UK contractors have prequalified steel suppliers. Steel pole type supports, being relatively new in the UK, may generally require additional prequalification with new suppliers, although some tubular design OHL HV structures have been erected in the UK. Consideration has been given to the increased supply chain for the guyed crossarm supports.
A47: Construction | B47: C.2 | C47: Insulation Supply Chain Familiarity (Composite) | D47: The application of new insulator technology and / or arrangements (for UK application) may require the prequalification of new suppliers and extensive test procedures. Composite insulation could be considered for all insulator arrangements therefore there is deemed to be no difference between the scoring of each support.
A48: Construction | B48: C.3 | C48: Support Type Testing | D48: An innovative support (all 8 supports) may have implications on the test methods used and/or compatibility issues with existing test facilities.
A49: Construction | B49: C.4 | C49: Support Check Erect | D49: The check erect procedure can be impacted upon by the amount of components and complexity of the support i.e. in the case of lattice steel supports the increased number of components makes structures more difficult to check/ inspect.
A50: Construction | B50: C.5 | C50: Complexity of Support (Fabrication) | D50: The complexity of the structure is a fabrication consideration and is considered in terms of the amount of elements in the structure: • Increased number of components increases the potential for mal-fabricated elements / QA issues.
A51: Construction | B51: C.6 | C51: Foundation Construction (Footprint) | D51: Foundation construction is considered in terms of the area/ number of excavation(s) as the biggest factor in increased timescales and environmental impact (development of access) to the site. As the footprint of structure increases then the working area required for foundation installation increases accordingly, again increasing the environmental impact on the area. Ground conditions would dictate the design of the foundation with a corresponding effect on the working area.
B52: C.7 | C52: Support Footprint & Assembly Area | D52: Lattice structures will generally require a large footprint of land for assembly and erection. Gradients in the site may impact on the requirement to develop the area further to make it suitable as an assembly / erection area, potentially having an increased environmental impact. Monopoles provide a more linear approach to the requirements of an assembly / erection area and reductions on the environmental impact on site.
A53: Construction | B53: C.8 | C53: Support Transport & Storage | D53: Generally, the current transportation to site and storage methods for lattice steel towers generally involve: • Delivery of steelwork to a central site / storage area • Inspection and bundling of tower components for onward delivery to the tower site for assembly / erection. The use of supports with fewer elements may negate the need to deliver to a central site for inspection and instead allow the support to be delivered directly to the support site. In the case of supports with fewer larger elements (steel poles) consideration will need to be given to the section sizes to allow standard transportation methods to be utilised. .
A54: Construction | B54: C.9 | C54: Access Track Requirement | D54: Access requirements are dictated by the equipment required for support and foundation transport and construction as well as the ground conditions. New pole type supports may offer a reduction in the effort (and cost) required for access track construction and reinstatement.
A55: Construction | B55: C.10 | C55: Ease of Support Assembly / Erection | D55: Lattice steel supports generally require more time and resource for assembly and erection. Temporary support(s) may be required to the lower sections of larger lattice structures during the erection process. Tubular supports would generally require less resource and offer stability (self stabilising) to the structure during the erection process from ground level through to completion.
A56: Construction | B56: C.11 | C56: Support Access/ Egress/ Rescue | D56: Permanent attachment/ fall arrest systems can be designed into any proposed OHL structure. Lattice structures create more of a challenge to have ‘in-built’ systems during erection as opposed to that of a tubular structure. Tubular structures could have a permanent attachment system included during the fabrication process.
A57: Construction | B57: C.12 | C57: Need for Insulator Temporary Restraint | D57: Horizontal 'V' insulators will require restraint from swinging laterally during conductor installation activities. This adds an extra process which has a corresponding time and cost element as well as additional equipment requirements.
A58: Construction | B58: C.13 | C58: Conductor Installation Process | D58: The conductor system configuration can have an effect on the pilot bond installation process which can be either ground based or utilises a helicopter. Land based activities will increase the access requirements. Vertically aligned conductor configurations, where each conductor attachment point is to the point of the conductor support, allow for the use of helicopters, providing a more efficient and timely method for pilot bond installation. It is considered that current procedures for continuous tension stringing can be used / adapted on the proposed structures although conductor access methods and equipment for work on tubular structures may have to be developed.
A59: Construction | B59: C.14 | C59: Insulator Conductor Attachment Point | D59: In this context Standard/ Non Standard relates to I and V string insulators or horizontal 'V' (ICA) respectively. Vertical ‘I’ and ‘V’ strings provide ease of access to both the structure and conductor attachment points. 'V' string insulators will require additional rigging time for installation and removal in comparison with 'I' string insulators. Methods for access to conductor attachment points may have to be developed for horizontally configured insulators but is considered to be a minor barrier to overcome
A60: Construction | B60: C.15 | C60: Refurbishment inc. E/W - 1 cct Live Proximity | D60: The activities envisaged which will require single circuit outages on double circuit systems are: • Refurbishment of circuit only • Refurbishment of circuit and earthwire • Replacement of earthwire • Replacement of damaged conductor(s) • Installation of temporary masts The key factor for consideration is the separation between circuits when conductor works are taking place adjacent to a live circuit. Structures which increase the distance between circuits are considered more favourably. Support design references 530, 540 and 560 would negate the use of a temporary mast when considering the current temporary mast designs that are available. A double earthwire system can negate clearance issues that currently exist where a single earthwire is installed on double circuit systems, and access to the earthwire is limited with live circuits.
A61: Construction | B61: C.16 | C61: Route Dismantling | D61: Current conductor removal procedures could be considered for all the proposed supports. Current procedures for the removal of insulators could be considered again for all of the proposed supports. All supports have been considered to be dismantled by the use of cranes. The removal of complete foundations is considered as part of the route dismantling and in general terms the bigger and more complex the foundation the more material there will be for removal and disposal. And subsequently increase the imported backfill quantities. The storage / disposal of all recovered materials would be in line with the regulations in force at the time of recovery.
A62: Construction | B62: C.17 | C62: Tension Support | D62: All proposed tension supports tend to lend themselves to current continuous tension stringing procedures with the exception of 4 legged insulator configuration where the area for rigging is limited.
A64: Maintenance | B64: R.0 | C64: General | D64: Access for pole type supports is likely to require the addition of permanent attachment points and/or ladders, to enable climbing and in addition suitable facilities to allow rigging for raising and lowering equipment (for example the provision of a lifting jib). It has been assumed at this stage that all pole type supports can be designed with these attachment points and that the poles are steel. In considering the various aspects of the Maintenance elements of the SAM one of the main considerations has been how these items affect Health and Safety as well as System safety and security.
A65: Maintenance | B65: R.1 | C65: Ancillary Equipment (Including Third Party) | D65: Requirements for facilities to fit satellites/ antennas.
A66: Maintenance | B66: R.2 | C66: Main Component Replacement | D66: Work on towers not involving the connection or disconnection of conductors - using conventional techniques and equipment. Examples of tasks considered: >Repair/ replacement of worn conductor fittings such as; suspension saddles, links, shackles and dampers. >Replacement of damaged insulator(s) >Replacing worn insulator fittings such as; links, shackles, arcing horns and corona rings.
A67: Maintenance | B67: R.3 | C67: Suitability for Operational Activities (E.G. Isolation) | D67: The removal of jumpers to provide electrical isolation and cross-jumpering. Tension supports with ICAs will not provide adequate clearances to facilitate electrical isolation by removing jumpers using conventional methods - this may necessitate consideration of identifying strategic tension towers that require normal crossarms. Danube configuration supports may be difficult to apply cross-jumpering due to phase to phase clearances.
A68: Maintenance | B68: R.4 | C68: Main Component Replacement to Earthwires | D68: Work not involving the lowering , raising or increasing the sag of the earthwire conductor. Examples of tasks considered; >Repair/ replacement of earthwire conductor saddles and associated fittings such as; shackles, links etc. >Repair/ replacement of earth bonds and for tension support jumpers >Replacement of damaged/ worn dampers >Repair of fibre optic systems
A69: Maintenance | B69: R.5 | C69: Phase Conductor System Repairs - 1 cct Live Proximity | D69: Standard techniques used to lower and raise phase conductors at tension and suspension supports for example to carry out repairs to damaged conductors or remove foreign objects. The primary criteria is that of safety from adjacent live circuits (i.e. larger cct-cct separation = higher score)
B70: R.6 | C70: Earthwire Conductor System Repairs - 1cct Live Proximity | D70: Standard techniques would be used to lower and raise earthwire conductors at tension supports for example to carry out repairs to damaged earthwire conductors, remove foreign objects and carry out repairs to fibre optic earthwires. The primary criteria is that of safety from adjacent live circuits (i.e. larger earthwire-cct separation = higher score)
A71: Maintenance | B71: R.7 | C71: Surface Preparation & Treatment/ Deterioration Protection | D71: Suitability of supports for surface preparation and protection using existing methods. >Surface area >Ease of access (inc. element size) >Outage requirements >Non-outage working
A72: Maintenance | B72: R.8 | C72: Condition Assessment Remote (Ground/ Aerial) | D72: Suitability for the support to be visually inspected either from ground or aerial with minimal obstruction of the full support as well as conductors, insulator and fittings. And assessment of high resistance joints.
B73: R.9 | C73: Condition Assessment Intrusive (Climbing) | D73: Suitability for the support to be visually inspected from the support body with minimal obstruction of the full support as well as conductors, insulator and fittings.
A75: Operational Safety | B75: O.0 | C75: General | D75: The safe access and egress to the supports for maintenance and/ or repair work is vital to the support design. In considering the various aspects of the Operation elements of the SAM one of the main considerations has been how these items affect Health and Safety as well as System safety and security.
A76: Maintenance | B76: O.1 | C76: Access/ Egress/ Rescue | D76: Suitability of supports to: >Give ergonomic access to the support >Accept adequate fall arrest equipment >Provide clearances to live circuits >Allow personnel rescue
A77: Maintenance | B77: O.2 | C77: Live Line Working | D77: At support live line working in all cases will require development of techniques and equipment.
A78: Maintenance | B78: O.3 | C78: Management of Induced Voltages / Currents / Application of Additional Earthing | D78: The issue of applying earthing systems / procedures for the management of induced voltages/ currents is anticipated to be similar for all supports. Provision of earth end attachment points.
A79: Maintenance | B79: O.4 | C79: Circuit Demarcation | D79: Requirements for supports to meet current industry standards for demarcation.
A81: Environmental | B81: P.0 | C81: General | D81: The impact of the support on the landscape and ecology (particularly the effect on birds) is an important consideration especially when considering planning policy and the issues which surround consenting of new routes.
A82: Environmental | B82: P.1 | C82: Height | D82: Tall supports may have a more negative visual impact than shorter ones. Shorter supports can be more easily hidden in the landscape using Holford's routing guidelines. "The use of low height towers has been successful in reducing the visual impact of towers" (Turnbull, 2004, p.69) "increased height will generally also mean visibility which (possibly) creates impact over a large area" (Bishop, 1985, p.198)
A83: Environmental | B83: P.2 | C83: Supports per km | D83: Shorter spans will increase the perceived lateral density of the route
A84: Environmental | B84: P.3 | C84: Insulator Visual Impact | D84: Insulators are often the most visible feature of a support, therefore reducing the number of insulators used on each support can help reduce the visual impact. Also Horizontal V insulators have scored lower than V due to the thickness of the posts. "because of their shape, insulator strings always present a convex surface towards the viewer…the effect of this... is often to make the insulators visible even when the towers to which they are attached are not easily seen." (Turnbull & McAulay, 2004, p.60)
A85: Environmental | B85: P.4 | C85: Transparency (Back Clothing) | D85: Some supports such as lattice steel can appear almost transparent against certain back cloths and therefore have scored highly. Solid supports do not benefit from this function. The transparency of the poles has been quantified by calculating the total area of each element with the largest area scoring the lowest. "The ratio of solid steelwork to the overall profile area in less than 1:10…making the tower take on the colour and texture of its visual background" (Turnbull & McAulay, 2004, p.27) "Generic steel pole designs were examined by two landscape architects and were judged to be more obtrusive in Irish rural landscapes (generally rolling) than lattice steel towers which were seen to have a capacity for diffusion." (Doyle et. al., 2010, p.2)
A86: Environmental | B86: P.5 | C86: Conductor Arrangement (Compact/ Open) | D86: Compacted conductor arrangements (i.e. low mean phase-phase spacing) may be more visible in the landscape than widely distributed formations. This may create a denser wirescape, similar to conductor bundling(although not as pronounced) where "bundles of conductors are generally more visible than equivalent single conductors." (Turnbull & McAulay, 2004, p. 55)
A87: Environmental | B87: P.6 | C87: Support Shape (Eiffelised/ Top Heavy Etc.) | D87: Research shows that 'top heavy' supports can be perceived as unstable. Supports with a tapered top have the opposite affect and look lighter overall so these have scored higher. "making a tower too thin, especially when top loaded…would afford the viewer a sense that the tower was unstable and unsafe (JJB, 2008, p.4)
A88: Environmental | B88: P.7 | C88: Crossarms | D88: Upturned crossarms are perceived as having a more positive visual effect than down turned crossarms. "The characteristic upturned cross arms are intended to give the tower a lighter appearance." According to Crowe, "a fault in the then current transmission tower design was that the drooping arms led the eye down instead of skywards.” (Turnbull & McAulay, 2004)
A89: Environmental | B89: P.8 | C89: Design Aesthetics | D89: Planning policy states that good design must be considered. Design aesthetics have been ranked subjectively based on criteria such as elegance and sophistication. The scoring also represents what we feel would reflect public opinion. "Applying 'good design' to energy projects should produce sustainable infrastructure sensitive to place" (DECC, 2011)
A90: Environmental | B90: P.9 | C90: Corridor Width | D90: The right of way considers the corridor width required for the whole route i.e. the conductor width (not including sag/swing). A large right of way could potentially be more difficult to get planning permission for, and cause problems in terms of loss of habitat.
A91: Environmental | B91: P.10 | C91: Footprint | D91: Land take refers specifically to the foot print of the tower. A smaller land take may be preferred by the land owner, as well as potentially effect the outcome of planning permission. "Cable stays dramatically increase the footprint of the tower relative to a lattice steel tower and present an obstacle for farm machinery" (JJB, 200b, p.5)
A92: Environmental | B92: P.11 | C92: Effect on Birds | D92: The risk of birds (in particular larger birds such as raptors, geese and swans) colliding with overhead lines may increase with the height of the support. Shorter supports can be more suitably routed, such as behind buildings, trees etc. "constructions shall obstruct only a minimum of air space in vertical direction" (Hass, 2005, p.26) The earth wire tends to be 'the highest, thinnest and most problematic component' (Eirgrid, 2012, p.31). It is often less visible than the conductors, 'in certain situations appear almost invisible because of the background or lighting conditions' (Scottish Gov.) and therefore many of the collisions take place when birds increase the height of their flight path to avoid the conductors and consequently fly into the earth wire. It is suggested that the closer the earth wire is to the rest of the conductors, the better it is for birds. "Even more favourable are those...which use no neutral cable at all" (Hass, 2005, p.16) The conductor arrangement of a support can have the most dramatic impact on bird safety. Multi-level conductor arrangements have scored low as they are considered more difficult for birds to avoid than single level arrangements. "Highest risks are posed by those power lines, where the conductors are arranged at different heights" (Hass, 2005, p.16) The scores for each of the above three aspects have been quantified, combined, and weighted, with the conductor arrangement being the most important aspect. Depending on the policy of the utility it may be possible to also include the probability of birds nesting on the structure and accounting for the negative operational effects this may have.
A93: Environmental | B93: P.12 | C93: Tension Support Continuity | D93: Tension support designs were assessed in relation to 'continuity' with the rest of the route, i.e. how well they resembled the corresponding suspension support. Overall scores were applied to a number of different aspects that were recognised as being 'similar' or 'different' from the corresponding suspension tower. The identified modifications included aspects such as change in tower height, width, & pole thickness, etc. These individual aspects were calculated and averaged to gain a relative score.

Sheet (5) NeSTS Assessment
A1: MDA Weightings | N1: L8RD M4.9 | Q1: 510 SERIES | T1: 510X SERIES | W1: 520 SERIES | Z1: 530 SERIES | AC1: 540 SERIES | AF1: 550 SERIES | AI1: 560 SERIES | AL1: 570 SERIES | AO1: 580 SERIES
A3: =A26 -> Electrical | C3: 5 | E3: =C3/(C17+C15+C11+C9+C7+C5+C3+C13) -> 0.05
A5: =A37 -> Supports & Foundations | C5: 30 | E5: =C5/(C17+C15+C11+C9+C7+C5+C3+C13) -> 0.3 | I5: Support Type | N5: L8RD M4.9 | Q5: Single Pole ICA 3-Xarm | T5: Single Pole Fixed xarms | W5: 2 Pole 3-Xarm | Z5: 2 Single Pole 3-ICA, internal | AC5: Single pole, 2-lattice xarm | AF5: 2 Single Pole 3-ICA, Ext | AI5: 2-pole, 2-lattice xarm | AL5: ICA 3-Xarm | AO5: MISC, X lattice
A7: =A53 -> Mechanical & Electrical | C7: 10 | E7: =C7/(C17+C15+C11+C9+C7+C5+C3+C13) -> 0.1
I8: Conductor configuration | N8: Vertical | Q8: Vertical | T8: Vertical | W8: Vertical | Z8: Vertical | AC8: Tri-form | AF8: Vertical | AI8: Tri-form | AL8: Vertical | AO8: Vertical
A9: =A63 -> Construction | C9: 10 | E9: =C9/(C17+C15+C11+C9+C7+C5+C3+C13) -> 0.1 | I9: Nominal standard span (m) | N9: 305 | Q9: 200 | T9: 200 | W9: 200 | Z9: 200 | AC9: 200 | AF9: 200 | AI9: 200 | AL9: 300 | AO9: 200
A11: =A81 -> Maintenance | C11: 5 | E11: =C11/(C17+C15+C11+C9+C7+C5+C3+C13) -> 0.05
A13: =A91 -> Operational Safety | C13: 10 | E13: =C13/(C3+C17+C13+C11+C9+C7+C5+C15) -> 0.1
A15: =A96 -> Environmental | C15: 30 | E15: =C15/(C17+C15+C11+C9+C7+C5+C3+C13) -> 0.3
A17: =A109 -> Other | C17: 0 | E17: =C17/(C17+C15+C11+C9+C7+C13+C5+C3) -> 0
A19: [Adjust total MDA weightings to 100] | C19: =C3+C5+C7+C9+C11+C15+C17+C13 -> 100 | N19: L8RD M4.9 | Q19: 510 SERIES | T19: 510X SERIES | W19: 520 SERIES | Z19: 530 SERIES | AC19: 540 SERIES | AF19: 550 SERIES | AI19: 560 SERIES | AL19: 570 SERIES | AO19: 580 SERIES
N20: (BENCHMARK)
C23: Totals | L23: =L36+L52+L62+L80+L90+L108+L115+L95 -> 1 | N23: =(N36+N52+N62+N80+N90+N95+N108+N115)*10 -> 56.08513354 | Q23: =(Q36+Q52+Q62+Q80+Q90+Q95+Q108+Q115)*10 -> 56.21979761 | T23: =(T36+T52+T62+T80+T90+T95+T108+T115)*10 -> 65.37368682 | W23: =(W36+W52+W62+W80+W90+W95+W108+W115)*10 -> 55.85065589 | Z23: =(Z36+Z52+Z62+Z80+Z90+Z95+Z108+Z115)*10 -> 49.24582431 | AC23: =(AC36+AC52+AC62+AC80+AC90+AC95+AC108+AC115)*10 -> 54.40757064 | AF23: =(AF36+AF52+AF62+AF80+AF90+AF95+AF108+AF115)*10 -> 51.07568292 | AI23: =(AI36+AI52+AI62+AI80+AI90+AI95+AI108+AI115)*10 -> 47.12732844 | AL23: =(AL36+AL52+AL62+AL80+AL90+AL95+AL108+AL115)*10 -> 44.53511835 | AO23: =(AO36+AO52+AO62+AO80+AO90+AO95+AO108+AO115)*10 -> 34.6460035
A25: Main Design Aspect (MDA) | C25: Design Aspect (DA) | D25: Status (Prov/ comp) | E25: Quant/ Qual | G25: MDA weighting (from top left) | I25: Sub DA adjust't | J25: Sub DA weighting | L25: Overall weighting (%) | N25: Score | O25: Weighted score | Q25: Score | R25: Weighted score | T25: Score | U25: Weighted score | W25: Score | X25: Weighted score | Z25: Score | AA25: Weighted score | AC25: Score | AD25: Weighted score | AF25: Score | AG25: Weighted score | AI25: Score | AJ25: Weighted score | AL25: Score | AM25: Weighted score | AO25: Score | AP25: Weighted score
A26: Electrical | B26: E.1 | C26: Audible Noise | D26: Complete | E26: Quant've | G26: =$E$3 -> 0.05 | I26: 100 | J26: =I26/$I$36 -> 0.3676470588 | L26: =G26*J26 -> 0.01838235294 | N26: 9 | O26: =N26*$L26 -> 0.1654411765 | Q26: 5 | R26: =Q26*$L26 -> 0.09191176471 | T26: 5 | U26: =T26*$L26 -> 0.09191176471 | W26: 6 | X26: =W26*$L26 -> 0.1102941176 | Z26: 1 | AA26: =Z26*$L26 -> 0.01838235294 | AC26: 7 | AD26: =AC26*$L26 -> 0.1286764706 | AF26: 5 | AG26: =AF26*$L26 -> 0.09191176471 | AI26: 8 | AJ26: =AI26*$L26 -> 0.1470588235 | AL26: 8 | AM26: =AL26*$L26 -> 0.1470588235 | AO26: 5 | AP26: =AO26*$L26 -> 0.09191176471 | AR26: =MIN(N26,Q26,W26,Z26,AC26,AF26,AI26,AL26,AO26) -> 1 | AS26: =MAX(N26,Q26,W26,Z26,AC26,AF26,AI26,AL26,AO26) -> 9 | AT26: =IF(AND(AR26=1,AS26=9),"","check") -> 
A27: Electrical | B27: E.2 | C27: Magnetic Fields (external) | D27: Complete | E27: Quant've | G27: 0.05 | I27: 48 | J27: =I27/$I$36 -> 0.1764705882 | L27: =G27*J27 -> 0.008823529412 | N27: 1 | O27: =N27*$L27 -> 0.008823529412 | Q27: 5 | R27: 0.04411764706 | T27: 5 | U27: 0.04411764706 | W27: 4 | X27: 0.03529411765 | Z27: 5 | AA27: 0.04411764706 | AC27: 9 | AD27: 0.07941176471 | AF27: 5 | AG27: 0.04411764706 | AI27: 9 | AJ27: 0.07941176471 | AL27: 1 | AM27: 0.008823529412 | AO27: 5 | AP27: 0.04411764706 | AR27: =MIN(N27,Q27,W27,Z27,AC27,AF27,AI27,AL27,AO27) -> 1 | AS27: =MAX(N27,Q27,W27,Z27,AC27,AF27,AI27,AL27,AO27) -> 9 | AT27: =IF(AND(AR27=1,AS27=9),"","check") -> 
A28: Electrical | B28: E.3 | C28: Electric Fields (external) | D28: Complete | E28: Quant've | G28: 0.05 | I28: 44 | J28: 0.1617647059 | L28: 0.008088235294 | N28: 1 | O28: 0.008088235294 | Q28: 3 | R28: 0.02426470588 | T28: 3 | U28: 0.02426470588 | W28: 3 | X28: 0.02426470588 | Z28: 4 | AA28: 0.03235294118 | AC28: 9 | AD28: 0.07279411765 | AF28: 3 | AG28: 0.02426470588 | AI28: 6 | AJ28: 0.04852941176 | AL28: 2 | AM28: 0.01617647059 | AO28: 2 | AP28: 0.01617647059 | AR28: 1 | AS28: 9
A29: Electrical | B29: E.4 | C29: Radio Interference | D29: Complete | E29: Quant've | G29: 0.05 | I29: 40 | J29: 0.1470588235 | L29: 0.007352941176 | N29: 9 | O29: 0.06617647059 | Q29: 5 | R29: 0.03676470588 | T29: 5 | U29: 0.03676470588 | W29: 6 | X29: 0.04411764706 | Z29: 1 | AA29: 0.007352941176 | AC29: 7 | AD29: 0.05147058824 | AF29: 5 | AG29: 0.03676470588 | AI29: 8 | AJ29: 0.05882352941 | AL29: 8 | AM29: 0.05882352941 | AO29: 5 | AP29: 0.03676470588 | AR29: 1 | AS29: 9
A30: Electrical | B30: E.5 | C30: Earthing Performance | D30: Complete | E30: Qual | G30: 0.05 | I30: 0 | J30: 0 | L30: 0 | N30: 7 | O30: 0 | Q30: 3 | R30: 0 | T30: 3 | U30: 0 | W30: 9 | X30: 0 | Z30: 1 | AA30: 0 | AC30: 3 | AD30: 0 | AF30: 2 | AG30: 0 | AI30: 8 | AJ30: 0 | AL30: 7 | AM30: 0 | AO30: 6 | AP30: 0 | AR30: 1 | AS30: 9
A31: Electrical | B31: E.6 | C31: Lightning Performance | D31: Complete | E31: Quant've | G31: 0.05 | I31: 0 | J31: 0 | L31: 0 | N31: 1 | O31: 0 | Q31: 9 | R31: 0 | T31: 9 | U31: 0 | W31: 5 | X31: 0 | Z31: 7 | AA31: 0 | AC31: 6 | AD31: 0 | AF31: 3 | AG31: 0 | AI31: 5 | AJ31: 0 | AL31: 6 | AM31: 0 | AO31: 5 | AP31: 0 | AR31: 1 | AS31: 9
A32: Electrical | B32: E.7 | C32: Insulation Coordination | D32: Complete | E32: Quant've | G32: 0.05 | I32: 32 | J32: 0.1176470588 | L32: 0.005882352941 | N32: 5 | O32: 0.02941176471 | Q32: 5 | R32: 0.02941176471 | T32: 5 | U32: 0.02941176471 | W32: 5 | X32: 0.02941176471 | Z32: 5 | AA32: 0.02941176471 | AC32: 5 | AD32: 0.02941176471 | AF32: 5 | AG32: 0.02941176471 | AI32: 5 | AJ32: 0.02941176471 | AL32: 5 | AM32: 0.02941176471 | AO32: 5 | AP32: 0.02941176471 | AR32: 5 | AS32: 5 | AT32: check
A33: Electrical | B33: E.8 | C33: Surge Impedance Loading (SIL) | D33: Complete | E33: Quant've | G33: 0.05 | I33: 0 | J33: 0 | L33: 0 | N33: 1 | O33: 0 | Q33: 7 | R33: 0 | T33: 7 | U33: 0 | W33: 5 | X33: 0 | Z33: 7 | AA33: 0 | AC33: 7 | AD33: 0 | AF33: 7 | AG33: 0 | AI33: 7 | AJ33: 0 | AL33: 1 | AM33: 0 | AO33: 9 | AP33: 0 | AR33: 1 | AS33: 9
A34: Electrical | B34: E.9 | C34: Electric Fields within/near structure | D34: Complete | E34: Quant've | G34: 0.05 | I34: 4 | J34: 0.01470588235 | L34: 0.0007352941176 | N34: 2 | O34: 0.001470588235 | Q34: 3 | R34: 0.002205882353 | T34: 3 | U34: 0.002205882353 | W34: 3 | X34: 0.002205882353 | Z34: 5 | AA34: 0.003676470588 | AC34: 9 | AD34: 0.006617647059 | AF34: 2 | AG34: 0.001470588235 | AI34: 5 | AJ34: 0.003676470588 | AL34: 1 | AM34: 0.0007352941176 | AO34: 3 | AP34: 0.002205882353 | AR34: 1 | AS34: 9
A35: Electrical | B35: E.10 | C35: Magnetic Fields within/ near structure | D35: Complete | E35: Quant've | G35: 0.05 | I35: 4 | J35: 0.01470588235 | L35: 0.0007352941176 | N35: 4 | O35: 0.002941176471 | Q35: 6 | R35: 0.004411764706 | T35: 6 | U35: 0.004411764706 | W35: 5 | X35: 0.003676470588 | Z35: 7 | AA35: 0.005147058824 | AC35: 1 | AD35: 0.0007352941176 | AF35: 7 | AG35: 0.005147058824 | AI35: 1 | AJ35: 0.0007352941176 | AL35: 4 | AM35: 0.002941176471 | AO35: 9 | AP35: 0.006617647059 | AR35: 1 | AS35: 9
A36: Electrical Totals | I36: =SUM(I26:I35) -> 272 | J36: =SUM(J26:J35) -> 1 | L36: =SUM(L26:L35) -> 0.05 | N36: =SUM(O26:O35) -> 0.2823529412 | Q36: =SUM(R26:R35) -> 0.2330882353 | T36: =SUM(U26:U35) -> 0.2330882353 | W36: =SUM(X26:X35) -> 0.2492647059 | Z36: =SUM(AA26:AA35) -> 0.1404411765 | AC36: =SUM(AD26:AD35) -> 0.3691176471 | AF36: =SUM(AG26:AG35) -> 0.2330882353 | AI36: =SUM(AJ26:AJ35) -> 0.3676470588 | AL36: =SUM(AM26:AM35) -> 0.2639705882 | AO36: =SUM(AP26:AP35) -> 0.2272058824
A37: Supports & Foundations | B37: S.1 | C37: Number of elements | D37: Complete | E37: Quant've | G37: =$E$5 -> 0.3 | I37: 50 | J37: =I37/$I$52 -> 0.1234567901 | L37: =G37*J37 -> 0.03703703704 | N37: 1 | O37: =N37*$L37 -> 0.03703703704 | Q37: 8 | R37: =Q37*$L37 -> 0.2962962963 | T37: 9 | U37: =T37*$L37 -> 0.3333333333 | W37: 9 | X37: =W37*$L37 -> 0.3333333333 | Z37: 7 | AA37: =Z37*$L37 -> 0.2592592593 | AC37: 8 | AD37: =AC37*$L37 -> 0.2962962963 | AF37: 7 | AG37: =AF37*$L37 -> 0.2592592593 | AI37: 5 | AJ37: =AI37*$L37 -> 0.1851851852 | AL37: 1 | AM37: =AL37*$L37 -> 0.03703703704 | AO37: 1 | AP37: =AO37*$L37 -> 0.03703703704 | AR37: 1 | AS37: 9
A38: Supports & Foundations | B38: S.2 | C38: Number of joints | D38: Complete | E38: Quant've | G38: 0.3 | I38: 50 | J38: 0.1234567901 | L38: =G38*J38 -> 0.03703703704 | N38: 1 | O38: =N38*$L38 -> 0.03703703704 | Q38: 5 | R38: =Q38*$L38 -> 0.1851851852 | T38: 6 | U38: =T38*$L38 -> 0.2222222222 | W38: 9 | X38: =W38*$L38 -> 0.3333333333 | Z38: 4 | AA38: =Z38*$L38 -> 0.1481481481 | AC38: 2 | AD38: =AC38*$L38 -> 0.07407407407 | AF38: 4 | AG38: =AF38*$L38 -> 0.1481481481 | AI38: 1 | AJ38: =AI38*$L38 -> 0.03703703704 | AL38: 1 | AM38: =AL38*$L38 -> 0.03703703704 | AO38: 1 | AP38: =AO38*$L38 -> 0.03703703704 | AR38: 1 | AS38: 9
A39: Supports & Foundations | B39: S.3 | C39: Side slope added complexity | D39: Complete | E39: Quant've | G39: 0.3 | I39: 25 | J39: 0.06172839506 | L39: =G39*J39 -> 0.01851851852 | N39: 6 | O39: =N39*$L39 -> 0.1111111111 | Q39: 9 | R39: =Q39*$L39 -> 0.1666666667 | T39: 9 | U39: =T39*$L39 -> 0.1666666667 | W39: 7 | X39: =W39*$L39 -> 0.1296296296 | Z39: 1 | AA39: =Z39*$L39 -> 0.01851851852 | AC39: 9 | AD39: =AC39*$L39 -> 0.1666666667 | AF39: 7 | AG39: =AF39*$L39 -> 0.1296296296 | AI39: 7 | AJ39: =AI39*$L39 -> 0.1296296296 | AL39: 5 | AM39: =AL39*$L39 -> 0.09259259259 | AO39: 5 | AP39: =AO39*$L39 -> 0.09259259259 | AR39: 1 | AS39: 9
A40: Supports & Foundations | B40: S.4 | C40: Weight of structure (per km) | D40: Complete | E40: Quant've | G40: 0.3 | I40: 50 | J40: 0.1234567901 | L40: =G40*J40 -> 0.03703703704 | N40: 8.602978932 | O40: =N40*$L40 -> 0.3186288493 | Q40: 7 | R40: =Q40*$L40 -> 0.2592592593 | T40: 6 | U40: =T40*$L40 -> 0.2222222222 | W40: 1 | X40: =W40*$L40 -> 0.03703703704 | Z40: 2.22341752 | AA40: =Z40*$L40 -> 0.08234879702 | AC40: 4.93748369 | AD40: =AC40*$L40 -> 0.1828697663 | AF40: 2.22341752 | AG40: =AF40*$L40 -> 0.08234879702 | AI40: 5.038391278 | AJ40: =AI40*$L40 -> 0.1866070844 | AL40: 9 | AM40: =AL40*$L40 -> 0.3333333333 | AO40: 8.829037028 | AP40: =AO40*$L40 -> 0.3270013714 | AR40: 1 | AS40: 9
A41: Supports & Foundations | B41: S.5 | C41: Suitability to use of alternative materials | D41: Complete | E41: Qual | G41: 0.3 | I41: 35 | J41: 0.08641975309 | L41: 0.02592592593 | N41: 2 | O41: 0.05185185185 | Q41: 7 | R41: 0.1814814815 | T41: 7 | U41: 0.1814814815 | W41: 9 | X41: 0.2333333333 | Z41: 8 | AA41: 0.2074074074 | AC41: 5 | AD41: 0.1296296296 | AF41: 8 | AG41: 0.2074074074 | AI41: 5 | AJ41: 0.1296296296 | AL41: 2 | AM41: 0.05185185185 | AO41: 1 | AP41: 0.02592592593 | AR41: 1 | AS41: 9
A42: Supports & Foundations | B42: S.6 | C42: Reduction in reliability in single circuit configuration (i.e. strung one side) | D42: Complete | E42: Quant've | G42: 0.3 | I42: 15 | J42: 0.03703703704 | L42: 0.01111111111 | N42: 4.133333333 | O42: 0.04592592593 | Q42: 4 | R42: 0.04444444444 | T42: 4 | U42: 0.04444444444 | W42: 4.1 | X42: 0.04555555556 | Z42: 9 | AA42: 0.1 | AC42: 2.966666667 | AD42: 0.03296296296 | AF42: 9 | AG42: 0.1 | AI42: 1 | AJ42: 0.01111111111 | AL42: 3.5 | AM42: 0.03888888889 | AO42: 1.233333333 | AP42: 0.0137037037 | AR42: 1 | AS42: 9
A43: Supports & Foundations | B43: S.7 | C43: Ice accretion performance | D43: Complete | E43: Quant've | G43: 0.3 | I43: 5 | J43: 0.01234567901 | L43: 0.003703703704 | N43: 1.349665788 | O43: 0.004998762178 | Q43: 9 | R43: 0.03333333333 | T43: 9 | U43: 0.03333333333 | W43: 8.778964002 | X43: 0.03251468149 | Z43: 7.3897417 | AA43: 0.0273694137 | AC43: 4.724486584 | AD43: 0.01749809846 | AF43: 7.3897417 | AG43: 0.0273694137 | AI43: 5.316765498 | AJ43: 0.01969172407 | AL43: 3.47875351 | AM43: 0.01288427226 | AO43: 1 | AP43: 0.003703703704 | AR43: 1 | AS43: 9
A44: Supports & Foundations | B44: S.8 | C44: Area for painting | D44: Complete | E44: Quant've | G44: 0.3 | I44: 15 | J44: 0.03703703704 | L44: 0.01111111111 | N44: 1.349665788 | O44: 0.01499628653 | Q44: 9 | R44: 0.1 | T44: 9 | U44: 0.1 | W44: 8.778964002 | X44: 0.09754404446 | Z44: 7.3897417 | AA44: 0.08210824111 | AC44: 4.724486584 | AD44: 0.05249429537 | AF44: 7.3897417 | AG44: 0.08210824111 | AI44: 5.316765498 | AJ44: 0.0590751722 | AL44: 3.47875351 | AM44: 0.03865281677 | AO44: 1 | AP44: 0.01111111111 | AR44: 1 | AS44: 9
A45: Supports & Foundations | B45: S.9 | C45: Implications of addition of extensions | D45: Complete | E45: Quant've | G45: 0.3 | I45: 5 | J45: 0.01234567901 | L45: 0.003703703704 | N45: 5 | O45: 0.01851851852 | Q45: 9 | R45: 0.03333333333 | T45: 9 | U45: 0.03333333333 | W45: 8 | X45: 0.02962962963 | Z45: 8 | AA45: 0.02962962963 | AC45: 9 | AD45: 0.03333333333 | AF45: 8 | AG45: 0.02962962963 | AI45: 8 | AJ45: 0.02962962963 | AL45: 5 | AM45: 0.01851851852 | AO45: 1 | AP45: 0.003703703704 | AR45: 1 | AS45: 9
A46: Supports & Foundations | B46: S.10 | C46: Length of load path | D46: Complete | E46: Quant've | G46: 0.3 | I46: 5 | J46: 0.01234567901 | L46: 0.003703703704 | N46: 5.865177939 | O46: 0.02172288126 | Q46: 8 | R46: 0.02962962963 | T46: 8 | U46: 0.02962962963 | W46: 1.849475513 | X46: 0.006849909308 | Z46: 8 | AA46: 0.02962962963 | AC46: 4.089001866 | AD46: 0.01514445136 | AF46: 8 | AG46: 0.02962962963 | AI46: 1 | AJ46: 0.003703703704 | AL46: 4 | AM46: 0.01481481481 | AO46: 9 | AP46: 0.03333333333 | AR46: 1 | AS46: 9
A47: Supports & Foundations | B47: S.11 | C47: Familiarity with Form (familiar forms score high) | D47: Complete | E47: Qual | G47: 0.3 | I47: 50 | J47: 0.1234567901 | L47: =G47*J47 -> 0.03703703704 | N47: 9 | O47: =N47*$L47 -> 0.3333333333 | Q47: 4 | R47: =Q47*$L47 -> 0.1481481481 | T47: 6 | U47: =T47*$L47 -> 0.2222222222 | W47: 5 | X47: =W47*$L47 -> 0.1851851852 | Z47: 4 | AA47: =Z47*$L47 -> 0.1481481481 | AC47: 2 | AD47: =AC47*$L47 -> 0.07407407407 | AF47: 4 | AG47: =AF47*$L47 -> 0.1481481481 | AI47: 2 | AJ47: =AI47*$L47 -> 0.07407407407 | AL47: 8 | AM47: =AL47*$L47 -> 0.2962962963 | AO47: 1 | AP47: =AO47*$L47 -> 0.03703703704 | AR47: 1 | AS47: 9
A48: Supports & Foundations | B48: S.12 | C48: Foundation complexity | D48: Complete | E48: Qual | G48: 0.3 | I48: 20 | J48: 0.04938271605 | L48: =G48*J48 -> 0.01481481481 | N48: 9 | O48: =N48*$L48 -> 0.1333333333 | Q48: 4 | R48: =Q48*$L48 -> 0.05925925926 | T48: 4 | U48: =T48*$L48 -> 0.05925925926 | W48: 1 | X48: =W48*$L48 -> 0.01481481481 | Z48: 4 | AA48: =Z48*$L48 -> 0.05925925926 | AC48: 4 | AD48: =AC48*$L48 -> 0.05925925926 | AF48: 1 | AG48: =AF48*$L48 -> 0.01481481481 | AI48: 1 | AJ48: =AI48*$L48 -> 0.01481481481 | AL48: 9 | AM48: =AL48*$L48 -> 0.1333333333 | AO48: 9 | AP48: =AO48*$L48 -> 0.1333333333 | AR48: 1 | AS48: 9
A49: Supports & Foundations | B49: S.13 | C49: Foundations (Volume of concrete per km) | D49: Complete | E49: Quant've | G49: 0.3 | I49: 50 | J49: 0.1234567901 | L49: =G49*J49 -> 0.03703703704 | N49: 5.971145659 | O49: =N49*$L49 -> 0.2211535429 | Q49: 8 | R49: =Q49*$L49 -> 0.2962962963 | T49: 8 | U49: =T49*$L49 -> 0.2962962963 | W49: 1 | X49: =W49*$L49 -> 0.03703703704 | Z49: 3.000819905 | AA49: =Z49*$L49 -> 0.111141478 | AC49: 9 | AD49: =AC49*$L49 -> 0.3333333333 | AF49: 4.994828293 | AG49: =AF49*$L49 -> 0.1849936405 | AI49: 4.655009303 | AJ49: =AI49*$L49 -> 0.172407752 | AL49: 6.484448088 | AM49: =AL49*$L49 -> 0.240164744 | AO49: 4.974646022 | AP49: =AO49*$L49 -> 0.184246149 | AR49: 1 | AS49: 9
A50: Supports & Foundations | B50: S.14 | C50: Foundations (Volume of excavation per km) | D50: Complete | E50: Quant've | G50: 0.3 | I50: 25 | J50: 0.06172839506 | L50: =G50*J50 -> 0.01851851852 | N50: 7.551546392 | O50: =N50*$L50 -> 0.1398434517 | Q50: 7 | R50: =Q50*$L50 -> 0.1296296296 | T50: 7 | U50: =T50*$L50 -> 0.1296296296 | W50: 2.680412371 | X50: =W50*$L50 -> 0.04963726613 | Z50: 1 | AA50: =Z50*$L50 -> 0.01851851852 | AC50: 8.75257732 | AD50: =AC50*$L50 -> 0.1620847652 | AF50: 7.268041237 | AG50: =AF50*$L50 -> 0.1345933562 | AI50: 9 | AJ50: =AI50*$L50 -> 0.1666666667 | AL50: 7.570446735 | AM50: =AL50*$L50 -> 0.1401934581 | AO50: 3.492268041 | AP50: =AO50*$L50 -> 0.06467163039 | AR50: 1 | AS50: 9
A51: Supports & Foundations | B51: S.15 | C51: Suitability for application of two earthwires | D51: Complete | E51: Qual | G51: 0.3 | I51: 5 | J51: =I51/$I$52 -> 0.01234567901 | L51: =G51*J51 -> 0.003703703704 | N51: 1 | O51: =N51*$L51 -> 0.003703703704 | Q51: 2 | R51: =Q51*$L51 -> 0.007407407407 | T51: 2 | U51: =T51*$L51 -> 0.007407407407 | W51: 9 | X51: =W51*$L51 -> 0.03333333333 | Z51: 9 | AA51: =Z51*$L51 -> 0.03333333333 | AC51: 2 | AD51: =AC51*$L51 -> 0.007407407407 | AF51: 2 | AG51: =AF51*$L51 -> 0.007407407407 | AI51: 2 | AJ51: =AI51*$L51 -> 0.007407407407 | AL51: 1 | AM51: =AL51*$L51 -> 0.003703703704 | AO51: 9 | AP51: =AO51*$L51 -> 0.03333333333 | AR51: 1 | AS51: 9
A52: Supports & Foundations Totals | I52: =SUM(I37:I51) -> 405 | J52: =SUM(J37:J51) -> 1 | L52: =SUM(L37:L51) -> 0.3 | N52: =SUM(O37:O51) -> 1.493195626 | Q52: =SUM(R37:R51) -> 1.97037037 | T52: =SUM(U37:U51) -> 2.081481481 | W52: =SUM(X37:X51) -> 1.598768124 | Z52: =SUM(AA37:AA51) -> 1.354819782 | AC52: =SUM(AD37:AD51) -> 1.637128414 | AF52: =SUM(AG37:AG51) -> 1.585487523 | AI52: =SUM(AJ37:AJ51) -> 1.226670621 | AL52: =SUM(AM37:AM51) -> 1.489302699 | AO52: =SUM(AP37:AP51) -> 1.037771003
A53: Mechanical & Electrical | B53: M.1 | C53: Insulation Mechanical Reliability | D53: Complete | E53: Qual | G53: =$E$7 -> 0.1 | I53: 20 | J53: =I53/$I$62 -> 0.05262880901 | L53: =G53*J53 -> 0.005262880901 | N53: 1 | O53: =N53*$L53 -> 0.005262880901 | Q53: 9 | R53: =Q53*$L53 -> 0.04736592811 | T53: 1 | U53: =T53*$L53 -> 0.005262880901 | W53: 9 | X53: =W53*$L53 -> 0.04736592811 | Z53: 9 | AA53: =Z53*$L53 -> 0.04736592811 | AC53: 9 | AD53: =AC53*$L53 -> 0.04736592811 | AF53: 9 | AG53: =AF53*$L53 -> 0.04736592811 | AI53: 9 | AJ53: =AI53*$L53 -> 0.04736592811 | AL53: 9 | AM53: =AL53*$L53 -> 0.04736592811 | AO53: 9 | AP53: =AO53*$L53 -> 0.04736592811 | AR53: 1 | AS53: 9
A54: Mechanical & Electrical | B54: M.2 | C54: Insulation Material Limitation | D54: Complete | E54: Qual | G54: 0.1 | I54: 20 | J54: =I54/$I$62 -> 0.05262880901 | L54: 0.005262880901 | N54: 9 | O54: 0.04736592811 | Q54: 1 | R54: =Q54*$L54 -> 0.005262880901 | T54: 9 | U54: =T54*$L54 -> 0.04736592811 | W54: 9 | X54: =W54*$L54 -> 0.04736592811 | Z54: 1 | AA54: =Z54*$L54 -> 0.005262880901 | AC54: 9 | AD54: =AC54*$L54 -> 0.04736592811 | AF54: 1 | AG54: =AF54*$L54 -> 0.005262880901 | AI54: 9 | AJ54: =AI54*$L54 -> 0.04736592811 | AL54: 1 | AM54: =AL54*$L54 -> 0.005262880901 | AO54: 1 | AP54: =AO54*$L54 -> 0.005262880901 | AR54: 1 | AS54: 9
A55: Mechanical & Electrical | B55: M.3 | C55: Number of Insulators | D55: Complete | E55: Qual | G55: 0.1 | I55: 100 | J55: 0.2631440451 | L55: 0.02631440451 | N55: 9 | O55: 0.2368296405 | Q55: 1 | R55: =Q55*$L55 -> 0.02631440451 | T55: 9 | U55: =T55*$L55 -> 0.2368296405 | W55: 1 | X55: =W55*$L55 -> 0.02631440451 | Z55: 1 | AA55: =Z55*$L55 -> 0.02631440451 | AC55: 1 | AD55: =AC55*$L55 -> 0.02631440451 | AF55: 1 | AG55: =AF55*$L55 -> 0.02631440451 | AI55: 1 | AJ55: =AI55*$L55 -> 0.02631440451 | AL55: 1 | AM55: =AL55*$L55 -> 0.02631440451 | AO55: 1 | AP55: =AO55*$L55 -> 0.02631440451 | AR55: 1 | AS55: 9
A56: Mechanical & Electrical | B56: M.4 | C56: Galloping (susceptibility to conductor clashing) | D56: Complete | E56: Qual | G56: 0.1 | I56: 100 | J56: =I56/$I$62 -> 0.2631440451 | L56: 0.02631440451 | N56: 7 | O56: 0.1842008315 | Q56: 5 | R56: =Q56*$L56 -> 0.1315720225 | T56: 5 | U56: =T56*$L56 -> 0.1315720225 | W56: 5 | X56: =W56*$L56 -> 0.1315720225 | Z56: 5 | AA56: =Z56*$L56 -> 0.1315720225 | AC56: 9 | AD56: =AC56*$L56 -> 0.2368296405 | AF56: 5 | AG56: =AF56*$L56 -> 0.1315720225 | AI56: 9 | AJ56: =AI56*$L56 -> 0.2368296405 | AL56: 1 | AM56: =AL56*$L56 -> 0.02631440451 | AO56: 6 | AP56: =AO56*$L56 -> 0.157886427 | AR56: 1 | AS56: 9
A57: Mechanical & Electrical | B57: M.5 | C57: Formation of Jumpers at Angle Supports | D57: Complete | E57: Qual | G57: 0.1 | I57: 20 | J57: =I57/$I$62 -> 0.05262880901 | L57: 0.005262880901 | N57: 5 | O57: 0.02631440451 | Q57: 5 | R57: 0.02631440451 | T57: 5 | U57: 0.02631440451 | W57: 5 | X57: 0.02631440451 | Z57: 5 | AA57: 0.02631440451 | AC57: 5 | AD57: 0.02631440451 | AF57: 5 | AG57: 0.02631440451 | AI57: 5 | AJ57: 0.02631440451 | AL57: 5 | AM57: 0.02631440451 | AO57: 5 | AP57: 0.02631440451 | AR57: 5 | AS57: 5 | AT57: check
A58: Mechanical & Electrical | B58: M.6 | C58: Angle Support Insulation | D58: Complete | E58: Qual | G58: 0.1 | I58: 100 | J58: =I58/$I$62 -> 0.2631440451 | L58: 0.02631440451 | N58: 9 | O58: 0.2368296405 | Q58: 1 | R58: 0.02631440451 | T58: 5 | U58: 0.1315720225 | W58: 9 | X58: 0.2368296405 | Z58: 5 | AA58: 0.1315720225 | AC58: 9 | AD58: 0.2368296405 | AF58: 5 | AG58: 0.1315720225 | AI58: 9 | AJ58: 0.2368296405 | AL58: 1 | AM58: 0.02631440451 | AO58: 1 | AP58: 0.02631440451 | AR58: 1 | AS58: 9
A59: Mechanical & Electrical | B59: M.7 | C59: Type Testing Requirements | D59: Complete | E59: Qual | G59: 0.1 | I59: 10 | J59: =I59/$I$62 -> 0.02631440451 | L59: 0.002631440451 | N59: 9 | O59: 0.02368296405 | Q59: 1 | R59: =Q59*$L59 -> 0.002631440451 | T59: 9 | U59: =T59*$L59 -> 0.02368296405 | W59: 9 | X59: =W59*$L59 -> 0.02368296405 | Z59: 1 | AA59: =Z59*$L59 -> 0.002631440451 | AC59: 9 | AD59: =AC59*$L59 -> 0.02368296405 | AF59: 1 | AG59: =AF59*$L59 -> 0.002631440451 | AI59: 9 | AJ59: =AI59*$L59 -> 0.02368296405 | AL59: 1 | AM59: =AL59*$L59 -> 0.002631440451 | AO59: 1 | AP59: =AO59*$L59 -> 0.002631440451 | AR59: 1 | AS59: 9
A60: Mechanical & Electrical | B60: M.8 | C60: Suitability for ICA adaption | D60: Complete | E60: Qual | G60: 0.1 | I60: 10 | J60: =I60/$I$62 -> 0.02631440451 | L60: 0.002631440451 | N60: 5 | O60: 0.01315720225 | Q60: 9 | R60: =Q60*$L60 -> 0.02368296405 | T60: 3 | U60: =T60*$L60 -> 0.007894321352 | W60: 3 | X60: =W60*$L60 -> 0.007894321352 | Z60: 9 | AA60: =Z60*$L60 -> 0.02368296405 | AC60: 1 | AD60: =AC60*$L60 -> 0.002631440451 | AF60: 9 | AG60: =AF60*$L60 -> 0.02368296405 | AI60: 1 | AJ60: =AI60*$L60 -> 0.002631440451 | AL60: 9 | AM60: =AL60*$L60 -> 0.02368296405 | AO60: 9 | AP60: =AO60*$L60 -> 0.02368296405 | AR60: 1 | AS60: 9
A61: Mechanical & Electrical | B61: M.9 | C61: Familiarity with Attachment Arrangement | D61: Complete | E61: Qual | G61: 0.1 | I61: 0.02 | J61: 5.262880901e-05 | L61: 5.262880901e-06 | N61: 9 | O61: 4.736592811e-05 | Q61: 1 | R61: =Q61*$L61 -> 5.262880901e-06 | T61: 9 | U61: =T61*$L61 -> 4.736592811e-05 | W61: 9 | X61: =W61*$L61 -> 4.736592811e-05 | Z61: 1 | AA61: =Z61*$L61 -> 5.262880901e-06 | AC61: 9 | AD61: =AC61*$L61 -> 4.736592811e-05 | AF61: 1 | AG61: =AF61*$L61 -> 5.262880901e-06 | AI61: 9 | AJ61: =AI61*$L61 -> 4.736592811e-05 | AL61: 1 | AM61: =AL61*$L61 -> 5.262880901e-06 | AO61: 1 | AP61: =AO61*$L61 -> 5.262880901e-06 | AR61: 1 | AS61: 9
A62: Mechanical & Electrical Totals | I62: =SUM(I53:I61) -> 380.02 | J62: =SUM(J53:J61) -> 1 | L62: =SUM(L53:L61) -> 0.1 | N62: =SUM(O53:O61) -> 0.7736908584 | Q62: =SUM(R53:R61) -> 0.2894637124 | T62: =SUM(U53:U61) -> 0.6105415504 | W62: =SUM(X53:X61) -> 0.5473869796 | Z62: =SUM(AA53:AA61) -> 0.3947213305 | AC62: =SUM(AD53:AD61) -> 0.6473817168 | AF62: =SUM(AG53:AG61) -> 0.3947213305 | AI62: =SUM(AJ53:AJ61) -> 0.6473817168 | AL62: =SUM(AM53:AM61) -> 0.1842060944 | AO62: =SUM(AP53:AP61) -> 0.3157781169
A63: Construction | B63: C.1 | C63: Support Supply Chain Familiarity | D63: Complete | E63: Qual | G63: =$E$9 -> 0.1 | I63: 11.11111111 | J63: =I63/$I$80 -> 0.01386962552 | L63: =G63*J63 -> 0.001386962552 | N63: 9 | O63: =N63*$L63 -> 0.01248266297 | Q63: 3 | R63: =Q63*$L63 -> 0.004160887656 | T63: 3 | U63: =T63*$L63 -> 0.004160887656 | W63: 3 | X63: =W63*$L63 -> 0.004160887656 | Z63: 3 | AA63: =Z63*$L63 -> 0.004160887656 | AC63: 1 | AD63: =AC63*$L63 -> 0.001386962552 | AF63: 3 | AG63: =AF63*$L63 -> 0.004160887656 | AI63: 1 | AJ63: =AI63*$L63 -> 0.001386962552 | AL63: 9 | AM63: =AL63*$L63 -> 0.01248266297 | AO63: 9 | AP63: =AO63*$L63 -> 0.01248266297 | AR63: 1 | AS63: 9
A64: Construction | B64: C.2 | C64: Insulation Supply Chain Familiarity (Composite) | D64: Complete | E64: Qual | G64: 0.1 | I64: 11.11111111 | J64: 0.01386962552 | L64: =G64*J64 -> 0.001386962552 | N64: 5 | O64: =N64*$L64 -> 0.00693481276 | Q64: 5 | R64: =Q64*$L64 -> 0.00693481276 | T64: 5 | U64: =T64*$L64 -> 0.00693481276 | W64: 5 | X64: =W64*$L64 -> 0.00693481276 | Z64: 5 | AA64: =Z64*$L64 -> 0.00693481276 | AC64: 5 | AD64: =AC64*$L64 -> 0.00693481276 | AF64: 5 | AG64: =AF64*$L64 -> 0.00693481276 | AI64: 5 | AJ64: =AI64*$L64 -> 0.00693481276 | AL64: 5 | AM64: =AL64*$L64 -> 0.00693481276 | AO64: 5 | AP64: 0.00693481276 | AR64: 5 | AS64: 5 | AT64: check | AU64: OK | AV64: 510 1, L8RD 9
A65: Construction | B65: C.3 | C65: Support Type testing | D65: Complete | E65: Qual | G65: 0.1 | I65: 22.22222222 | J65: 0.02773925104 | L65: =G65*J65 -> 0.002773925104 | N65: 5 | O65: =N65*$L65 -> 0.01386962552 | Q65: 5 | R65: =Q65*$L65 -> 0.01386962552 | T65: 5 | U65: =T65*$L65 -> 0.01386962552 | W65: 5 | X65: =W65*$L65 -> 0.01386962552 | Z65: 5 | AA65: =Z65*$L65 -> 0.01386962552 | AC65: 5 | AD65: =AC65*$L65 -> 0.01386962552 | AF65: 5 | AG65: =AF65*$L65 -> 0.01386962552 | AI65: 5 | AJ65: =AI65*$L65 -> 0.01386962552 | AL65: 5 | AM65: =AL65*$L65 -> 0.01386962552 | AO65: 5 | AP65: 0.01386962552 | AR65: 5 | AS65: 5 | AT65: check | AU65: ok | AV65: Differentiate
A66: Construction | B66: C.4 | C66: Support check erect | D66: Complete | E66: Qual | G66: 0.1 | I66: 22.22222222 | J66: 0.02773925104 | L66: =G66*J66 -> 0.002773925104 | N66: 1 | O66: =N66*$L66 -> 0.002773925104 | Q66: 9 | R66: =Q66*$L66 -> 0.02496532594 | T66: 9 | U66: =T66*$L66 -> 0.02496532594 | W66: 6 | X66: =W66*$L66 -> 0.01664355062 | Z66: 8 | AA66: =Z66*$L66 -> 0.02219140083 | AC66: 6 | AD66: =AC66*$L66 -> 0.01664355062 | AF66: 8 | AG66: =AF66*$L66 -> 0.02219140083 | AI66: 6 | AJ66: =AI66*$L66 -> 0.01664355062 | AL66: 1 | AM66: =AL66*$L66 -> 0.002773925104 | AO66: 1 | AP66: 0.002773925104 | AR66: 1 | AS66: 9
A67: Construction | B67: C.5 | C67: Complexity of support (Fabrication) | D67: Complete | E67: Qual | G67: 0.1 | I67: 55.55555556 | J67: 0.0693481276 | L67: 0.00693481276 | N67: 3 | O67: 0.02080443828 | Q67: 9 | R67: 0.06241331484 | T67: 9 | U67: 0.06241331484 | W67: 7 | X67: 0.04854368932 | Z67: 8 | AA67: 0.05547850208 | AC67: 6 | AD67: 0.04160887656 | AF67: 8 | AG67: 0.05547850208 | AI67: 6 | AJ67: 0.04160887656 | AL67: 3 | AM67: 0.02080443828 | AO67: 1 | AP67: 0.00693481276 | AR67: 1 | AS67: 9
A68: Construction | B68: C.6 | C68: Area required for Foundation Construction | D68: Complete | E68: Qual | G68: 0.1 | I68: 27.77777778 | J68: 0.0346740638 | L68: =G68*J68 -> 0.00346740638 | N68: 1 | O68: =N68*$L68 -> 0.00346740638 | Q68: 9 | R68: =Q68*$L68 -> 0.03120665742 | T68: 9 | U68: =T68*$L68 -> 0.03120665742 | W68: 3 | X68: =W68*$L68 -> 0.01040221914 | Z68: 2 | AA68: =Z68*$L68 -> 0.00693481276 | AC68: 9 | AD68: =AC68*$L68 -> 0.03120665742 | AF68: 4 | AG68: =AF68*$L68 -> 0.01386962552 | AI68: 3 | AJ68: =AI68*$L68 -> 0.01040221914 | AL68: 1 | AM68: =AL68*$L68 -> 0.00346740638 | AO68: 1 | AP68: 0.00346740638 | AR68: 1 | AS68: 9
A69: Construction | B69: C.7 | C69: Area required for Assembly & Erection | D69: Complete | E69: Qual | G69: 0.1 | I69: 100 | J69: 0.1248266297 | L69: =G69*J69 -> 0.01248266297 | N69: 1 | O69: =N69*$L69 -> 0.01248266297 | Q69: 9 | R69: =Q69*$L69 -> 0.1123439667 | T69: 9 | U69: =T69*$L69 -> 0.1123439667 | W69: 7 | X69: =W69*$L69 -> 0.08737864078 | Z69: 6 | AA69: =Z69*$L69 -> 0.07489597781 | AC69: 6 | AD69: =AC69*$L69 -> 0.07489597781 | AF69: 8 | AG69: =AF69*$L69 -> 0.09986130374 | AI69: 4 | AJ69: =AI69*$L69 -> 0.04993065187 | AL69: 1 | AM69: =AL69*$L69 -> 0.01248266297 | AO69: 1 | AP69: 0.01248266297 | AR69: 1 | AS69: 9
A70: Construction | B70: C.8 | C70: Support Transport & Storage | D70: Complete | E70: Qual | G70: 0.1 | I70: 100 | J70: 0.1248266297 | L70: 0.01248266297 | N70: 1 | O70: 0.01248266297 | Q70: 9 | R70: 0.1123439667 | T70: 9 | U70: 0.1123439667 | W70: 6 | X70: 0.07489597781 | Z70: 7 | AA70: 0.08737864078 | AC70: 6 | AD70: 0.07489597781 | AF70: 7 | AG70: 0.08737864078 | AI70: 5 | AJ70: 0.06241331484 | AL70: 1 | AM70: 0.01248266297 | AO70: 1 | AP70: 0.01248266297 | AR70: 1 | AS70: 9
A71: Construction | B71: C.9 | C71: Access Track Requirement | D71: Complete | E71: Qual | G71: 0.1 | I71: 1.111111111 | J71: 0.001386962552 | L71: 0.0001386962552 | N71: 1 | O71: 0.0001386962552 | Q71: 9 | R71: 0.001248266297 | T71: 9 | U71: 0.001248266297 | W71: 9 | X71: 0.001248266297 | Z71: 9 | AA71: 0.001248266297 | AC71: 9 | AD71: 0.001248266297 | AF71: 9 | AG71: 0.001248266297 | AI71: 9 | AJ71: 0.001248266297 | AL71: 1 | AM71: 0.0001386962552 | AO71: 1 | AP71: 0.0001386962552 | AR71: 1 | AS71: 9
A72: Construction | B72: C.10 | C72: Ease of support assembly / erection | D72: Complete | E72: Qual | G72: 0.1 | I72: 100 | J72: 0.1248266297 | L72: 0.01248266297 | N72: 2 | O72: 0.02496532594 | Q72: 9 | R72: 0.1123439667 | T72: 9 | U72: 0.1123439667 | W72: 7 | X72: 0.08737864078 | Z72: 8 | AA72: 0.09986130374 | AC72: 7 | AD72: 0.08737864078 | AF72: 8 | AG72: 0.09986130374 | AI72: 6 | AJ72: 0.07489597781 | AL72: 2 | AM72: 0.02496532594 | AO72: 1 | AP72: 0.01248266297 | AR72: 1 | AS72: 9
A73: Construction | B73: C.11 | C73: Support access/ egress/ rescue | D73: Complete | E73: Qual | G73: 0.1 | I73: 100 | J73: 0.1248266297 | L73: =G73*J73 -> 0.01248266297 | N73: 9 | O73: =N73*$L73 -> 0.1123439667 | Q73: 5 | R73: =Q73*$L73 -> 0.06241331484 | T73: 5 | U73: =T73*$L73 -> 0.06241331484 | W73: 7 | X73: =W73*$L73 -> 0.08737864078 | Z73: 5 | AA73: =Z73*$L73 -> 0.06241331484 | AC73: 1 | AD73: =AC73*$L73 -> 0.01248266297 | AF73: 5 | AG73: =AF73*$L73 -> 0.06241331484 | AI73: 1 | AJ73: =AI73*$L73 -> 0.01248266297 | AL73: 7 | AM73: =AL73*$L73 -> 0.08737864078 | AO73: 4 | AP73: =AO73*$L73 -> 0.04993065187 | AR73: 1 | AS73: 9
A74: Construction | B74: C.12 | C74: Need for insulator temporary restraint | D74: Complete | E74: Qual | G74: 0.1 | I74: 16.66666667 | J74: 0.02080443828 | L74: =G74*J74 -> 0.002080443828 | N74: 9 | O74: =N74*$L74 -> 0.01872399445 | Q74: 1 | R74: =Q74*$L74 -> 0.002080443828 | T74: 9 | U74: =T74*$L74 -> 0.01872399445 | W74: 9 | X74: =W74*$L74 -> 0.01872399445 | Z74: 1 | AA74: =Z74*$L74 -> 0.002080443828 | AC74: 9 | AD74: =AC74*$L74 -> 0.01872399445 | AF74: 1 | AG74: =AF74*$L74 -> 0.002080443828 | AI74: 9 | AJ74: =AI74*$L74 -> 0.01872399445 | AL74: 1 | AM74: =AL74*$L74 -> 0.002080443828 | AO74: 1 | AP74: =AO74*$L74 -> 0.002080443828 | AR74: 1 | AS74: 9
A75: Construction | B75: C.13 | C75: Conductor Installation Process | D75: Complete | E75: Qual | G75: 0.1 | I75: 44.44444444 | J75: 0.05547850208 | L75: 0.005547850208 | N75: 9 | O75: 0.04993065187 | Q75: 9 | R75: 0.04993065187 | T75: 9 | U75: 0.04993065187 | W75: 9 | X75: 0.04993065187 | Z75: 9 | AA75: 0.04993065187 | AC75: 1 | AD75: 0.005547850208 | AF75: 9 | AG75: 0.04993065187 | AI75: 1 | AJ75: 0.005547850208 | AL75: 9 | AM75: 0.04993065187 | AO75: 4 | AP75: 0.02219140083 | AR75: 1 | AS75: 9
A76: Construction | B76: C.14 | C76: Insulator Conductor Attachment Point | D76: Complete | E76: Qual | G76: 0.1 | I76: 11.11111111 | J76: 0.01386962552 | L76: 0.001386962552 | N76: 9 | O76: 0.01248266297 | Q76: 3 | R76: 0.004160887656 | T76: 9 | U76: 0.01248266297 | W76: 7 | X76: 0.009708737864 | Z76: 3 | AA76: 0.004160887656 | AC76: 1 | AD76: 0.001386962552 | AF76: 3 | AG76: 0.004160887656 | AI76: 1 | AJ76: 0.001386962552 | AL76: 3 | AM76: 0.004160887656 | AO76: 1 | AP76: 0.001386962552 | AR76: 1 | AS76: 9
A77: Construction | B77: C.15 | C77: Refurbishment inc. e/w- 1 cct live proximity | D77: Complete | E77: Qual | G77: 0.1 | I77: 44.44444444 | J77: 0.05547850208 | L77: =G77*J77 -> 0.005547850208 | N77: 1 | O77: =N77*$L77 -> 0.005547850208 | Q77: 7 | R77: 0.03883495146 | T77: 7 | U77: 0.03883495146 | W77: 9 | X77: 0.04993065187 | Z77: 3 | AA77: 0.01664355062 | AC77: 7 | AD77: 0.03883495146 | AF77: 9 | AG77: 0.04993065187 | AI77: 8 | AJ77: 0.04438280166 | AL77: 9 | AM77: 0.04993065187 | AO77: 9 | AP77: =AO77*$L77 -> 0.04993065187 | AR77: 1 | AS77: 9
A78: Construction | B78: C.16 | C78: Route Dismantling | D78: Complete | E78: Qual | G78: 0.1 | I78: 44.44444444 | J78: 0.05547850208 | L78: =G78*J78 -> 0.005547850208 | N78: 9 | O78: =N78*$L78 -> 0.04993065187 | Q78: 5 | R78: 0.02773925104 | T78: 5 | U78: 0.02773925104 | W78: 1 | X78: 0.005547850208 | Z78: 3 | AA78: 0.01664355062 | AC78: 3 | AD78: 0.01664355062 | AF78: 3 | AG78: 0.01664355062 | AI78: 1 | AJ78: 0.005547850208 | AL78: 9 | AM78: 0.04993065187 | AO78: 9 | AP78: =AO78*$L78 -> 0.04993065187 | AR78: 1 | AS78: 9
A79: Construction | B79: C.17 | C79: Tension Support (Conductor Installation) | D79: Complete | E79: Qual | G79: 0.1 | I79: 88.88888889 | J79: 0.1109570042 | L79: =G79*J79 -> 0.01109570042 | N79: 9 | O79: =N79*$L79 -> 0.09986130374 | Q79: 4 | R79: 0.04438280166 | T79: 4 | U79: 0.04438280166 | W79: 9 | X79: 0.09986130374 | Z79: 4 | AA79: 0.04438280166 | AC79: 1 | AD79: 0.01109570042 | AF79: 4 | AG79: 0.04438280166 | AI79: 1 | AJ79: 0.01109570042 | AL79: 1 | AM79: 0.01109570042 | AO79: 1 | AP79: =AO79*$L79 -> 0.01109570042 | AR79: 1 | AS79: 9
A80: Construction Totals | I80: =SUM(I63:I79) -> 801.1111111 | J80: =SUM(J63:J79) -> 1 | L80: =SUM(L63:L79) -> 0.1 | N80: =SUM(O63:O79) -> 0.459223301 | Q80: =SUM(R63:R79) -> 0.7113730929 | T80: =SUM(U63:U79) -> 0.7363384189 | W80: =SUM(X63:X79) -> 0.6725381415 | Z80: =SUM(AA63:AA79) -> 0.5692094313 | AC80: =SUM(AD63:AD79) -> 0.4547850208 | AF80: =SUM(AG63:AG79) -> 0.6343966713 | AI80: =SUM(AJ63:AJ79) -> 0.3785020804 | AL80: =SUM(AM63:AM79) -> 0.3649098474 | AO80: =SUM(AP63:AP79) -> 0.2705963939
A81: Maintenance | B81: R.1 | C81: Ancillary equipment (including third party) | D81: Complete | E81: Qual | G81: =$E$11 -> 0.05 | I81: 14.28571429 | J81: =I81/$I$90 -> 0.03636363636 | L81: =G81*J81 -> 0.001818181818 | N81: 9 | O81: =N81*$L81 -> 0.01636363636 | Q81: 1 | R81: =Q81*$L81 -> 0.001818181818 | T81: 1 | U81: =T81*$L81 -> 0.001818181818 | W81: 1 | X81: =W81*$L81 -> 0.001818181818 | Z81: 1 | AA81: =Z81*$L81 -> 0.001818181818 | AC81: 1 | AD81: =AC81*$L81 -> 0.001818181818 | AF81: 1 | AG81: =AF81*$L81 -> 0.001818181818 | AI81: 1 | AJ81: =AI81*$L81 -> 0.001818181818 | AL81: 9 | AM81: =AL81*$L81 -> 0.01636363636 | AO81: 9 | AP81: =AO81*$L81 -> 0.01636363636 | AR81: 1 | AS81: 9
A82: Maintenance | B82: R.2 | C82: Main Component Replacement | D82: Complete | E82: Qual | G82: 0.05 | I82: 100 | J82: 0.2545454545 | L82: 0.01272727273 | N82: 9 | O82: 0.1145454545 | Q82: 1 | R82: 0.01272727273 | T82: 1 | U82: 0.01272727273 | W82: 6 | X82: 0.07636363636 | Z82: 1 | AA82: 0.01272727273 | AC82: 3 | AD82: 0.03818181818 | AF82: 1 | AG82: 0.01272727273 | AI82: 3 | AJ82: 0.03818181818 | AL82: 1 | AM82: 0.01272727273 | AO82: 1 | AP82: 0.01272727273 | AR82: 1 | AS82: 9
A83: Maintenance | B83: R.3 | C83: Suitability for operational activities (e.g. isolation) | D83: Complete | E83: Qual | G83: 0.05 | I83: 28.57142857 | J83: 0.07272727273 | L83: 0.003636363636 | N83: 9 | O83: 0.03272727273 | Q83: 9 | R83: 0.03272727273 | T83: 9 | U83: 0.03272727273 | W83: 9 | X83: 0.03272727273 | Z83: 9 | AA83: 0.03272727273 | AC83: 1 | AD83: 0.003636363636 | AF83: 9 | AG83: 0.03272727273 | AI83: 1 | AJ83: 0.003636363636 | AL83: 9 | AM83: 0.03272727273 | AO83: 9 | AP83: 0.03272727273 | AR83: 1 | AS83: 9
A84: Maintenance | B84: R.4 | C84: Main Component Replacement to Earthwires | D84: Complete | E84: Qual | G84: 0.05 | I84: 28.57142857 | J84: 0.07272727273 | L84: 0.003636363636 | N84: 9 | O84: =N84*$L84 -> 0.03272727273 | Q84: 9 | R84: 0.03272727273 | T84: 9 | U84: 0.03272727273 | W84: 1 | X84: 0.003636363636 | Z84: 1 | AA84: 0.003636363636 | AC84: 9 | AD84: 0.03272727273 | AF84: 1 | AG84: 0.003636363636 | AI84: 1 | AJ84: 0.003636363636 | AL84: 9 | AM84: 0.03272727273 | AO84: 9 | AP84: =AO84*$L84 -> 0.03272727273 | AR84: 1 | AS84: 9
A85: Maintenance | B85: R.5 | C85: Phase Conductor System Repairs - 1 cct live proximity | D85: Complete | E85: Qual | G85: 0.05 | I85: 57.14285714 | J85: 0.1454545455 | L85: 0.007272727273 | N85: 6 | O85: =N85*$L85 -> 0.04363636364 | Q85: 5 | R85: 0.03636363636 | T85: 6 | U85: 0.04363636364 | W85: 6 | X85: 0.04363636364 | Z85: 1 | AA85: 0.007272727273 | AC85: 5 | AD85: 0.03636363636 | AF85: 8 | AG85: 0.05818181818 | AI85: 9 | AJ85: 0.06545454545 | AL85: 6 | AM85: 0.04363636364 | AO85: 9 | AP85: =AO85*$L85 -> 0.06545454545 | AR85: 1 | AS85: 9
A86: Maintenance | B86: R.6 | C86: Earthwire Conductor System Repairs - 1cct live proximity | D86: Complete | E86: Qual | G86: 0.05 | I86: 57.14285714 | J86: 0.1454545455 | L86: 0.007272727273 | N86: 1 | O86: 0.007272727273 | Q86: 4 | R86: 0.02909090909 | T86: 6 | U86: 0.04363636364 | W86: 8 | X86: 0.05818181818 | Z86: 9 | AA86: 0.06545454545 | AC86: 6 | AD86: 0.04363636364 | AF86: 8 | AG86: 0.05818181818 | AI86: 8 | AJ86: 0.05818181818 | AL86: 2 | AM86: 0.01454545455 | AO86: 1 | AP86: 0.007272727273 | AR86: 1 | AS86: 9
A87: Maintenance | B87: R.7 | C87: Surface Preparation & Treatment/ Deterioration Protection | D87: Complete | E87: Qual | G87: 0.05 | I87: 35.71428571 | J87: 0.09090909091 | L87: 0.004545454545 | N87: 9 | O87: 0.04090909091 | Q87: 1 | R87: 0.004545454545 | T87: 1 | U87: 0.004545454545 | W87: 1 | X87: 0.004545454545 | Z87: 6 | AA87: 0.02727272727 | AC87: 1 | AD87: 0.004545454545 | AF87: 6 | AG87: 0.02727272727 | AI87: 1 | AJ87: 0.004545454545 | AL87: 9 | AM87: 0.04090909091 | AO87: 6 | AP87: 0.02727272727 | AR87: 1 | AS87: 9
A88: Maintenance | B88: R.8 | C88: Condition Assessment Remote (Ground/ Aerial) | D88: Complete | E88: Qual | G88: 0.05 | I88: 57.14285714 | J88: 0.1454545455 | L88: 0.007272727273 | N88: 1 | O88: 0.007272727273 | Q88: 9 | R88: 0.06545454545 | T88: 9 | U88: 0.06545454545 | W88: 6 | X88: 0.04363636364 | Z88: 9 | AA88: 0.06545454545 | AC88: 6 | AD88: 0.04363636364 | AF88: 9 | AG88: 0.06545454545 | AI88: 6 | AJ88: 0.04363636364 | AL88: 1 | AM88: 0.007272727273 | AO88: 1 | AP88: 0.007272727273 | AR88: 1 | AS88: 9
A89: Maintenance | B89: R.9 | C89: Condition Assessment Intrusive (Climbing) | D89: Complete | E89: Qual | G89: 0.05 | I89: 14.28571429 | J89: 0.03636363636 | L89: 0.001818181818 | N89: 9 | O89: 0.01636363636 | Q89: 1 | R89: 0.001818181818 | T89: 1 | U89: 0.001818181818 | W89: 9 | X89: 0.01636363636 | Z89: 9 | AA89: 0.01636363636 | AC89: 1 | AD89: 0.001818181818 | AF89: 9 | AG89: 0.01636363636 | AI89: 1 | AJ89: 0.001818181818 | AL89: 9 | AM89: 0.01636363636 | AO89: 1 | AP89: 0.001818181818 | AR89: 1 | AS89: 9
A90: Maintenance Totals | I90: =SUM(I81:I89) -> 392.8571429 | J90: =SUM(J81:J89) -> 1 | L90: =SUM(L81:L89) -> 0.05 | N90: =SUM(O81:O89) -> 0.3118181818 | Q90: =SUM(R81:R89) -> 0.2172727273 | T90: =SUM(U81:U89) -> 0.2390909091 | W90: =SUM(X81:X89) -> 0.2809090909 | Z90: =SUM(AA81:AA89) -> 0.2327272727 | AC90: =SUM(AD81:AD89) -> 0.2063636364 | AF90: =SUM(AG81:AG89) -> 0.2763636364 | AI90: =SUM(AJ81:AJ89) -> 0.2209090909 | AL90: =SUM(AM81:AM89) -> 0.2172727273 | AO90: =SUM(AP81:AP89) -> 0.2036363636
A91: Operational Safety | B91: O.1 | C91: Access/ Egress/ Rescue | D91: Complete | E91: Qual | G91: =$E$13 -> 0.1 | I91: 100 | J91: =I91/$I$95 -> 0.4 | L91: =G91*J91 -> 0.04 | N91: 9 | O91: =N91*$L91 -> 0.36 | Q91: 4 | R91: =Q91*$L91 -> 0.16 | T91: 5 | U91: =T91*$L91 -> 0.2 | W91: 7 | X91: =W91*$L91 -> 0.28 | Z91: 5 | AA91: =Z91*$L91 -> 0.2 | AC91: 1 | AD91: =AC91*$L91 -> 0.04 | AF91: 5 | AG91: =AF91*$L91 -> 0.2 | AI91: 1 | AJ91: =AI91*$L91 -> 0.04 | AL91: 7 | AM91: =AL91*$L91 -> 0.28 | AO91: 4 | AP91: =AO91*$L91 -> 0.16 | AR91: =MIN(N91,Q91,W91,Z91,AC91,AF91,AI91,AL91,AO91) -> 1 | AS91: =MAX(N91,Q91,W91,Z91,AC91,AF91,AI91,AL91,AO91) -> 9 | AT91: =IF(AND(AR91=1,AS91=9),"","check") -> 
A92: Operational Safety | B92: O.2 | C92: Live line working | D92: Complete | E92: Qual | G92: =$E$13 -> 0.1 | I92: 57.14285714 | J92: =I92/$I$95 -> 0.2285714286 | L92: 0.02285714286 | N92: 5 | O92: 0.1142857143 | Q92: 5 | R92: 0.1142857143 | T92: 5 | U92: 0.1142857143 | W92: 5 | X92: =W92*$L92 -> 0.1142857143 | Z92: 5 | AA92: 0.1142857143 | AC92: 5 | AD92: 0.1142857143 | AF92: 5 | AG92: 0.1142857143 | AI92: 5 | AJ92: 0.1142857143 | AL92: 5 | AM92: 0.1142857143 | AO92: 5 | AP92: 0.1142857143 | AR92: 5 | AS92: 5 | AT92: check
A93: Operational Safety | B93: O.3 | C93: Management of Induced voltages / currents / Application of additional earthing | D93: Complete | E93: Qual | G93: =$E$13 -> 0.1 | I93: 57.14285714 | J93: =I93/$I$95 -> 0.2285714286 | L93: =G93*J93 -> 0.02285714286 | N93: 9 | O93: 0.2057142857 | Q93: 1 | R93: 0.02285714286 | T93: 9 | U93: 0.2057142857 | W93: 9 | X93: =W93*$L93 -> 0.2057142857 | Z93: 1 | AA93: 0.02285714286 | AC93: 9 | AD93: 0.2057142857 | AF93: 1 | AG93: 0.02285714286 | AI93: 9 | AJ93: 0.2057142857 | AL93: 1 | AM93: 0.02285714286 | AO93: 1 | AP93: =AO93*$L93 -> 0.02285714286 | AR93: 1 | AS93: 9
A94: Operational Safety | B94: O.4 | C94: Circuit Demarcation | D94: Complete | E94: Qual | G94: =$E$13 -> 0.1 | I94: 35.71428571 | J94: =I94/$I$95 -> 0.1428571429 | L94: =G94*J94 -> 0.01428571429 | N94: 9 | O94: 0.1285714286 | Q94: 1 | R94: 0.01428571429 | T94: 1 | U94: 0.01428571429 | W94: 9 | X94: 0.1285714286 | Z94: 9 | AA94: 0.1285714286 | AC94: 1 | AD94: 0.01428571429 | AF94: 9 | AG94: 0.1285714286 | AI94: 9 | AJ94: 0.1285714286 | AL94: 9 | AM94: 0.1285714286 | AO94: 9 | AP94: =AO94*$L94 -> 0.1285714286 | AR94: 1 | AS94: 9
A95: Operational Safety Totals | I95: =SUM(I91:I94) -> 250 | J95: =SUM(J91:J94) -> 1 | L95: =SUM(L91:L94) -> 0.1 | N95: =SUM(O91:O94) -> 0.8085714286 | Q95: =SUM(R91:R94) -> 0.3114285714 | T95: =SUM(U91:U94) -> 0.5342857143 | W95: =SUM(X91:X94) -> 0.7285714286 | Z95: =SUM(AA91:AA94) -> 0.4657142857 | AC95: =SUM(AD91:AD94) -> 0.3742857143 | AF95: =SUM(AG91:AG94) -> 0.4657142857 | AI95: =SUM(AJ91:AJ94) -> 0.4885714286 | AL95: =SUM(AM91:AM94) -> 0.5457142857 | AO95: =SUM(AP91:AP94) -> 0.4257142857
A96: Environmental | B96: P.1 | C96: Height | D96: Complete | E96: Quant've | G96: =$E$15 -> 0.3 | I96: 25 | J96: =I96/$I$108 -> 0.04237288136 | L96: =G96*J96 -> 0.01271186441 | N96: 1 | O96: =N96*$L96 -> 0.01271186441 | Q96: 6 | R96: =Q96*$L96 -> 0.07627118644 | T96: 6 | U96: =T96*$L96 -> 0.07627118644 | W96: 6 | X96: =W96*$L96 -> 0.07627118644 | Z96: 6 | AA96: =Z96*$L96 -> 0.07627118644 | AC96: 9 | AD96: =AC96*$L96 -> 0.1144067797 | AF96: 6 | AG96: =AF96*$L96 -> 0.07627118644 | AI96: 9 | AJ96: =AI96*$L96 -> 0.1144067797 | AL96: 1 | AM96: =AL96*$L96 -> 0.01271186441 | AO96: 8 | AP96: =AO96*$L96 -> 0.1016949153 | AR96: 1 | AS96: 9
A97: Environmental | B97: P.2 | C97: Supports per km | D97: Complete | E97: Quant've | G97: 0.3 | I97: 50 | J97: 0.08474576271 | L97: 0.02542372881 | N97: 9 | O97: 0.2288135593 | Q97: 1 | R97: 0.02542372881 | T97: 1 | U97: 0.02542372881 | W97: 1 | X97: 0.02542372881 | Z97: 1 | AA97: =Z97*$L97 -> 0.02542372881 | AC97: 1 | AD97: 0.02542372881 | AF97: 1 | AG97: 0.02542372881 | AI97: 1 | AJ97: 0.02542372881 | AL97: 9 | AM97: 0.2288135593 | AO97: 1 | AP97: 0.02542372881 | AR97: 1 | AS97: 9
A98: Environmental | B98: P.3 | C98: Insulator Visual Impact | D98: Complete | E98: Qual | G98: 0.3 | I98: 25 | J98: 0.04237288136 | L98: 0.01271186441 | N98: 9 | O98: 0.1144067797 | Q98: 1 | R98: 0.01271186441 | T98: 9 | U98: 0.1144067797 | W98: 3 | X98: 0.03813559322 | Z98: 1 | AA98: =Z98*$L98 -> 0.01271186441 | AC98: 3 | AD98: 0.03813559322 | AF98: 1 | AG98: 0.01271186441 | AI98: 3 | AJ98: 0.03813559322 | AL98: 1 | AM98: 0.01271186441 | AO98: 1 | AP98: 0.01271186441 | AR98: 1 | AS98: 9
A99: Environmental | B99: P.4 | C99: Transparency (Back clothing) | D99: Complete | E99: Qual | G99: 0.3 | I99: 35 | J99: 0.0593220339 | L99: 0.01779661017 | N99: 9 | O99: 0.1601694915 | Q99: 5 | R99: 0.08898305085 | T99: 5 | U99: 0.08898305085 | W99: 1 | X99: 0.01779661017 | Z99: 3 | AA99: 0.05338983051 | AC99: 4 | AD99: 0.07118644068 | AF99: 3 | AG99: 0.05338983051 | AI99: 3 | AJ99: 0.05338983051 | AL99: 9 | AM99: 0.1601694915 | AO99: 9 | AP99: 0.1601694915 | AR99: 1 | AS99: 9
A100: Environmental | B100: P.5 | C100: Conductor Arrangement (Compact/ Open) | D100: Complete | E100: Qual | G100: 0.3 | I100: 25 | J100: 0.04237288136 | L100: 0.01271186441 | N100: 9 | O100: 0.1144067797 | Q100: 7 | R100: 0.08898305085 | T100: 7 | U100: 0.08898305085 | W100: 7 | X100: 0.08898305085 | Z100: 7 | AA100: 0.08898305085 | AC100: 1 | AD100: 0.01271186441 | AF100: 7 | AG100: 0.08898305085 | AI100: 1 | AJ100: 0.01271186441 | AL100: 9 | AM100: 0.1144067797 | AO100: 7 | AP100: 0.08898305085 | AR100: 1 | AS100: 9
A101: Environmental | B101: P.6 | C101: Support shape (eiffelised/ top heavy etc.) | D101: Complete | E101: Qual | G101: 0.3 | I101: 30 | J101: 0.05084745763 | L101: 0.01525423729 | N101: 7 | O101: 0.106779661 | Q101: 9 | R101: 0.1372881356 | T101: 8 | U101: 0.1220338983 | W101: 7 | X101: 0.106779661 | Z101: 9 | AA101: 0.1372881356 | AC101: 7 | AD101: 0.106779661 | AF101: 9 | AG101: 0.1372881356 | AI101: 7 | AJ101: 0.106779661 | AL101: 5 | AM101: 0.07627118644 | AO101: 1 | AP101: 0.01525423729 | AR101: 1 | AS101: 9
A102: Environmental | B102: P.7 | C102: Cross arms | D102: Complete | E102: Qual | G102: 0.3 | I102: 30 | J102: 0.05084745763 | L102: =G102*J102 -> 0.01525423729 | N102: 7 | O102: =N102*$L102 -> 0.106779661 | Q102: 3 | R102: 0.04576271186 | T102: 9 | U102: 0.1372881356 | W102: 4 | X102: 0.06101694915 | Z102: 3 | AA102: 0.04576271186 | AC102: 4 | AD102: 0.06101694915 | AF102: 3 | AG102: 0.04576271186 | AI102: 4 | AJ102: 0.06101694915 | AL102: 1 | AM102: 0.01525423729 | AO102: 7 | AP102: =AO102*$L102 -> 0.106779661 | AR102: 1 | AS102: 7 | AT102: check
A103: Environmental | B103: P.8 | C103: Design aesthetics | D103: Complete | E103: Qual | G103: 0.3 | I103: 100 | J103: 0.1694915254 | L103: =G103*J103 -> 0.05084745763 | N103: 3 | O103: =N103*$L103 -> 0.1525423729 | Q103: 8 | R103: 0.406779661 | T103: 9 | U103: 0.4576271186 | W103: 3 | X103: 0.1525423729 | Z103: 7 | AA103: 0.3559322034 | AC103: 7 | AD103: 0.3559322034 | AF103: 6 | AG103: 0.3050847458 | AI103: 4 | AJ103: 0.2033898305 | AL103: 1 | AM103: 0.05084745763 | AO103: 2 | AP103: =AO103*$L103 -> 0.1016949153 | AR103: 1 | AS103: 8 | AT103: check
A104: Environmental | B104: P.9 | C104: Corridor Width | D104: Complete | E104: Quant've | G104: 0.3 | I104: 80 | J104: 0.1355932203 | L104: =G104*J104 -> 0.0406779661 | N104: 6 | O104: =N104*$L104 -> 0.2440677966 | Q104: 7 | R104: =Q104*$L104 -> 0.2847457627 | T104: 6 | U104: =T104*$L104 -> 0.2440677966 | W104: 7 | X104: =W104*$L104 -> 0.2847457627 | Z104: 9 | AA104: =Z104*$L104 -> 0.3661016949 | AC104: 3 | AD104: =AC104*$L104 -> 0.1220338983 | AF104: 6 | AG104: =AF104*$L104 -> 0.2440677966 | AI104: 1 | AJ104: =AI104*$L104 -> 0.0406779661 | AL104: 6 | AM104: =AL104*$L104 -> 0.2440677966 | AO104: 3 | AP104: =AO104*$L104 -> 0.1220338983 | AR104: 1 | AS104: 9
A105: Environmental | B105: P.10 | C105: As Built Footprint | D105: Complete | E105: Quant've | G105: 0.3 | I105: 80 | J105: 0.1355932203 | L105: 0.0406779661 | N105: 2 | O105: =N105*$L105 -> 0.0813559322 | Q105: 9 | R105: =Q105*$L105 -> 0.3661016949 | T105: 9 | U105: =T105*$L105 -> 0.3661016949 | W105: 8 | X105: =W105*$L105 -> 0.3254237288 | Z105: 8 | AA105: =Z105*$L105 -> 0.3254237288 | AC105: 9 | AD105: =AC105*$L105 -> 0.3661016949 | AF105: 8 | AG105: =AF105*$L105 -> 0.3254237288 | AI105: 8 | AJ105: =AI105*$L105 -> 0.3254237288 | AL105: 3 | AM105: =AL105*$L105 -> 0.1220338983 | AO105: 1 | AP105: 0.0406779661 | AR105: 1 | AS105: 9
A106: Environmental | B106: P.11 | C106: Effect on Birds | D106: Complete | E106: Semi-quant | G106: 0.3 | I106: 60 | J106: 0.1016949153 | L106: 0.03050847458 | N106: 1 | O106: 0.03050847458 | Q106: 5 | R106: =Q106*$L106 -> 0.1525423729 | T106: 5 | U106: =T106*$L106 -> 0.1525423729 | W106: 5 | X106: =W106*$L106 -> 0.1525423729 | Z106: 5 | AA106: =Z106*$L106 -> 0.1525423729 | AC106: 9 | AD106: =AC106*$L106 -> 0.2745762712 | AF106: 5 | AG106: =AF106*$L106 -> 0.1525423729 | AI106: 9 | AJ106: =AI106*$L106 -> 0.2745762712 | AL106: 4 | AM106: =AL106*$L106 -> 0.1220338983 | AO106: 6 | AP106: 0.1830508475 | AR106: 1 | AS106: 9
A107: Environmental | B107: P.12 | C107: Tension Support Continuity | D107: Complete | E107: Qual | G107: 0.3 | I107: 50 | J107: 0.08474576271 | L107: 0.02542372881 | N107: 5 | O107: 0.1271186441 | Q107: 8 | R107: =Q107*$L107 -> 0.2033898305 | T107: 9 | U107: =T107*$L107 -> 0.2288135593 | W107: 7 | X107: =W107*$L107 -> 0.1779661017 | Z107: 5 | AA107: =Z107*$L107 -> 0.1271186441 | AC107: 8 | AD107: =AC107*$L107 -> 0.2033898305 | AF107: 2 | AG107: =AF107*$L107 -> 0.05084745763 | AI107: 5 | AJ107: =AI107*$L107 -> 0.1271186441 | AL107: 9 | AM107: =AL107*$L107 -> 0.2288135593 | AO107: 1 | AP107: 0.02542372881 | AR107: 1 | AS107: 9
A108: Environmental Totals | I108: =SUM(I96:I107) -> 590 | J108: =SUM(J96:J107) -> 1 | L108: =SUM(L96:L107) -> 0.3 | N108: =SUM(O96:O107) -> 1.479661017 | Q108: =SUM(R96:R107) -> 1.888983051 | T108: =SUM(U96:U107) -> 2.102542373 | W108: =SUM(X96:X107) -> 1.507627119 | Z108: =SUM(AA96:AA107) -> 1.766949153 | AC108: =SUM(AD96:AD107) -> 1.751694915 | AF108: =SUM(AG96:AG107) -> 1.51779661 | AI108: =SUM(AJ96:AJ107) -> 1.383050847 | AL108: =SUM(AM96:AM107) -> 1.388135593 | AO108: =SUM(AP96:AP107) -> 0.9838983051
A109: Other | B109: T.1 | C109: Susceptibility to damage (vandalism/accident) | D109: Provisional | E109: Qual | G109: =$E$17 -> 0 | I109: 33.33333333 | J109: =I109/$I$115 -> 0.138885031 | L109: =G109*J109 -> 0 | N109: 1 | O109: =N109*$L109 -> 0 | Q109: 9 | R109: =Q109*$L109 -> 0 | T109: 9 | U109: =T109*$L109 -> 0 | W109: 7 | X109: =W109*$L109 -> 0 | Z109: 9 | AA109: =Z109*$L109 -> 0 | AC109: 9 | AD109: =AC109*$L109 -> 0 | AF109: 9 | AG109: =AF109*$L109 -> 0 | AI109: 9 | AJ109: =AI109*$L109 -> 0 | AL109: 1 | AM109: =AL109*$L109 -> 0 | AO109: 1 | AP109: =AO109*$L109 -> 0 | AR109: 1 | AS109: 9
A110: Other | B110: T.2 | C110: Resistance of materials to deterioration/attack | D110: Provisional | E110: Qual | G110: 0 | I110: 33.33333333 | J110: =I110/$I$115 -> 0.138885031 | L110: 0 | N110: 5 | O110: 0 | Q110: 5 | R110: 0 | T110: 5 | U110: 0 | W110: 5 | X110: 0 | Z110: 5 | AA110: 0 | AC110: 5 | AD110: 0 | AF110: 5 | AG110: 0 | AI110: 5 | AJ110: 0 | AL110: 5 | AM110: 0 | AO110: 5 | AP110: 0 | AR110: 5 | AS110: 5 | AT110: check | AU110: ok
A111: Other | B111: T.3 | C111: Number of supports per km of OHL | D111: Provisional | E111: Quant've | G111: 0 | I111: 6.666666667 | J111: =I111/$I$115 -> 0.02777700619 | L111: 0 | N111: 9 | O111: =N111*$L111 -> 0 | Q111: 1 | R111: 0 | T111: 1 | U111: 0 | W111: 1 | X111: 0 | Z111: 1 | AA111: 0 | AC111: 1 | AD111: 0 | AF111: 1 | AG111: 0 | AI111: 1 | AJ111: 0 | AL111: 9 | AM111: 0 | AO111: 1 | AP111: 0 | AR111: 1 | AS111: 9
A112: Other | B112: T.4 | C112: Embodied energy (embodied carbon) | D112: Provisional | E112: Quant've | G112: 0 | I112: 0.006666666667 | J112: =I112/$I$115 -> 2.777700619e-05 | L112: 0 | N112: 9 | O112: =N112*$L112 -> 0 | Q112: 1 | R112: 0 | T112: 1 | U112: 0 | W112: 1 | X112: 0 | Z112: 1 | AA112: 0 | AC112: 1 | AD112: 0 | AF112: 1 | AG112: 0 | AI112: 1 | AJ112: 0 | AL112: 9 | AM112: 0 | AO112: 9 | AP112: 0 | AR112: 1 | AS112: 9
A113: Other | B113: T.5 | C113: Cost of supports (per km) | D113: Provisional | E113: Quant've | G113: 0 | I113: 100 | J113: 0.4166550929 | L113: 0 | N113: 9 | O113: =N113*$L113 -> 0 | Q113: 6 | R113: =Q113*$L113 -> 0 | T113: 6 | U113: =T113*$L113 -> 0 | W113: 1 | X113: =W113*$L113 -> 0 | Z113: 2 | AA113: =Z113*$L113 -> 0 | AC113: 5 | AD113: =AC113*$L113 -> 0 | AF113: 2 | AG113: =AF113*$L113 -> 0 | AI113: 5 | AJ113: =AI113*$L113 -> 0 | AL113: 9 | AM113: =AL113*$L113 -> 0 | AO113: 9 | AP113: =AO113*$L113 -> 0 | AR113: 1 | AS113: 9
A114: Other | B114: T.6 | C114: Side slope - effect on height | D114: Provisional | E114: Quant've | G114: 0 | I114: 66.66666667 | J114: =I114/$I$115 -> 0.2777700619 | L114: 0 | N114: 4 | O114: 0 | Q114: 7 | R114: 0 | T114: 7 | U114: 0 | W114: 7 | X114: 0 | Z114: 9 | AA114: 0 | AC114: 3 | AD114: 0 | AF114: 6 | AG114: 0 | AI114: 1 | AJ114: 0 | AL114: 6 | AM114: 0 | AO114: 6 | AP114: 0 | AR114: 1 | AS114: 9
A115: Other Totals | I115: =SUM(I109:I114) -> 240.0066667 | J115: =SUM(J109:J114) -> 1 | L115: =SUM(L109:L114) -> 0 | N115: =SUM(O109:O114) -> 0 | Q115: =SUM(R109:R114) -> 0 | T115: =SUM(U109:U114) -> 0 | W115: =SUM(X109:X114) -> 0 | Z115: =SUM(AA109:AA114) -> 0 | AC115: =SUM(AD109:AD114) -> 0 | AF115: =SUM(AG109:AG114) -> 0 | AI115: =SUM(AJ109:AJ114) -> 0 | AL115: =SUM(AM109:AM114) -> 0 | AO115: =SUM(AP109:AP114) -> 0
A119: Provisional
A120: Complete
A122: Quant've
A123: Semi-quant
A124: Qual
AS131: Max | AT131: Min
I132: =A3 -> Electrical | O132: =N$36*10 -> 2.823529412 | R132: =Q$36*10 -> 2.330882353 | X132: =W$36*10 -> 2.492647059 | AA132: =Z$36*10 -> 1.404411765 | AD132: =AC$36*10 -> 3.691176471 | AG132: =AF$36*10 -> 2.330882353 | AJ132: =AI$36*10 -> 3.676470588 | AM132: =AL$36*10 -> 2.639705882 | AP132: =AO$36*10 -> 2.272058824 | AS132: =MAX(O132,R132,X132,AA132,AD132,AG132,AJ132,AM132,AP132) -> 3.691176471 | AT132: =MIN(O132,R132,X132,AA132,AD132,AG132,AJ132,AM132,AP132) -> 1.404411765
I133: =A5 -> Supports & Foundations | O133: =N$52*10 -> 14.93195626 | R133: =Q$52*10 -> 19.7037037 | X133: =W$52*10 -> 15.98768124 | AA133: =Z$52*10 -> 13.54819782 | AD133: =AC$52*10 -> 16.37128414 | AG133: =AF$52*10 -> 15.85487523 | AJ133: =AI$52*10 -> 12.26670621 | AM133: =AL$52*10 -> 14.89302699 | AP133: =AO$52*10 -> 10.37771003 | AS133: 19.7037037 | AT133: 10.37771003
I134: =A7 -> Mechanical & Electrical | O134: =N62*10 -> 7.736908584 | R134: =Q62*10 -> 2.894637124 | X134: =W62*10 -> 5.473869796 | AA134: =Z62*10 -> 3.947213305 | AD134: =AC62*10 -> 6.473817168 | AG134: =AF62*10 -> 3.947213305 | AJ134: =AI62*10 -> 6.473817168 | AM134: =AL62*10 -> 1.842060944 | AP134: =AO62*10 -> 3.157781169 | AS134: 7.736908584 | AT134: 1.842060944
I135: =A9 -> Construction | O135: =N80*10 -> 4.59223301 | R135: =Q80*10 -> 7.113730929 | X135: =W80*10 -> 6.725381415 | AA135: =Z80*10 -> 5.692094313 | AD135: =AC80*10 -> 4.547850208 | AG135: =AF80*10 -> 6.343966713 | AJ135: =AI80*10 -> 3.785020804 | AM135: =AL80*10 -> 3.649098474 | AP135: =AO80*10 -> 2.705963939 | AS135: 7.113730929 | AT135: 2.705963939
I136: =A11 -> Maintenance | O136: =N90*10 -> 3.118181818 | R136: =Q90*10 -> 2.172727273 | X136: =W90*10 -> 2.809090909 | AA136: =Z90*10 -> 2.327272727 | AD136: =AC90*10 -> 2.063636364 | AG136: =AF90*10 -> 2.763636364 | AJ136: =AI90*10 -> 2.209090909 | AM136: =AL90*10 -> 2.172727273 | AP136: =AO90*10 -> 2.036363636 | AS136: 3.118181818 | AT136: 2.036363636
I137: =A13 -> Operational Safety | O137: =N95*10 -> 8.085714286 | R137: =Q95*10 -> 3.114285714 | X137: =W95*10 -> 7.285714286 | AA137: =Z95*10 -> 4.657142857 | AD137: =AC95*10 -> 3.742857143 | AG137: =AF95*10 -> 4.657142857 | AJ137: =AI95*10 -> 4.885714286 | AM137: =AL95*10 -> 5.457142857 | AP137: =AO95*10 -> 4.257142857 | AS137: 8.085714286 | AT137: 3.114285714
I138: =A15 -> Environmental | O138: =N108*10 -> 14.79661017 | R138: =Q108*10 -> 18.88983051 | X138: =W108*10 -> 15.07627119 | AA138: =Z108*10 -> 17.66949153 | AD138: =AC108*10 -> 17.51694915 | AG138: =AF108*10 -> 15.1779661 | AJ138: =AI108*10 -> 13.83050847 | AM138: =AL108*10 -> 13.88135593 | AP138: =AO108*10 -> 9.838983051 | AS138: 18.88983051 | AT138: 9.838983051
I139: =A17 -> Other | O139: =N115*10 -> 0 | R139: =Q115*10 -> 0 | X139: =W115*10 -> 0 | AA139: =Z115*10 -> 0 | AD139: =AC115*10 -> 0 | AG139: =AF115*10 -> 0 | AJ139: =AI115*10 -> 0 | AM139: =AL115*10 -> 0 | AP139: =AO115*10 -> 0 | AS139: 0 | AT139: 0
O141: =SUM(O132:O139) -> 56.08513354 | R141: =SUM(R132:R139) -> 56.21979761 | X141: =SUM(X132:X139) -> 55.85065589 | AA141: =SUM(AA132:AA139) -> 49.24582431 | AD141: =SUM(AD132:AD139) -> 54.40757064 | AG141: =SUM(AG132:AG139) -> 51.07568292 | AJ141: =SUM(AJ132:AJ139) -> 47.12732844 | AM141: =SUM(AM132:AM139) -> 44.53511835 | AP141: =SUM(AP132:AP139) -> 34.6460035
A143: Main Design Aspect summaries
C144: =A26 -> Electrical | N144: =N36 -> 0.2823529412 | Q144: =Q36 -> 0.2330882353 | T144: =T36 -> 0.2330882353 | W144: =W36 -> 0.2492647059 | Z144: =Z36 -> 0.1404411765 | AC144: =AC36 -> 0.3691176471 | AF144: =AF36 -> 0.2330882353 | AI144: =AI36 -> 0.3676470588 | AL144: =AL36 -> 0.2639705882 | AO144: =AO36 -> 0.2272058824
C145: =A37 -> Supports & Foundations | N145: =N52 -> 1.493195626 | Q145: =Q52 -> 1.97037037 | T145: =T52 -> 2.081481481 | W145: =W52 -> 1.598768124 | Z145: =Z52 -> 1.354819782 | AC145: =AC52 -> 1.637128414 | AF145: =AF52 -> 1.585487523 | AI145: =AI52 -> 1.226670621 | AL145: =AL52 -> 1.489302699 | AO145: =AO52 -> 1.037771003
C146: =A53 -> Mechanical & Electrical | N146: =N62 -> 0.7736908584 | Q146: =Q62 -> 0.2894637124 | T146: =T62 -> 0.6105415504 | W146: =W62 -> 0.5473869796 | Z146: =Z62 -> 0.3947213305 | AC146: =AC62 -> 0.6473817168 | AF146: =AF62 -> 0.3947213305 | AI146: =AI62 -> 0.6473817168 | AL146: =AL62 -> 0.1842060944 | AO146: =AO62 -> 0.3157781169
C147: =A63 -> Construction | N147: =N80 -> 0.459223301 | Q147: =Q80 -> 0.7113730929 | T147: =T80 -> 0.7363384189 | W147: =W80 -> 0.6725381415 | Z147: =Z80 -> 0.5692094313 | AC147: =AC80 -> 0.4547850208 | AF147: =AF80 -> 0.6343966713 | AI147: =AI80 -> 0.3785020804 | AL147: =AL80 -> 0.3649098474 | AO147: =AO80 -> 0.2705963939
C148: =A81 -> Maintenance | N148: =N90 -> 0.3118181818 | Q148: =Q90 -> 0.2172727273 | T148: =T90 -> 0.2390909091 | W148: =W90 -> 0.2809090909 | Z148: =Z90 -> 0.2327272727 | AC148: =AC90 -> 0.2063636364 | AF148: =AF90 -> 0.2763636364 | AI148: =AI90 -> 0.2209090909 | AL148: =AL90 -> 0.2172727273 | AO148: =AO90 -> 0.2036363636
C149: =A91 -> Operational Safety | N149: =N95 -> 0.8085714286 | Q149: =Q95 -> 0.3114285714 | T149: =T95 -> 0.5342857143 | W149: =W95 -> 0.7285714286 | Z149: =Z95 -> 0.4657142857 | AC149: =AC95 -> 0.3742857143 | AF149: =AF95 -> 0.4657142857 | AI149: =AI95 -> 0.4885714286 | AL149: =AL95 -> 0.5457142857 | AO149: =AO95 -> 0.4257142857
C150: =A96 -> Environmental | N150: =N108 -> 1.479661017 | Q150: =Q108 -> 1.888983051 | T150: =T108 -> 2.102542373 | W150: =W108 -> 1.507627119 | Z150: =Z108 -> 1.766949153 | AC150: =AC108 -> 1.751694915 | AF150: =AF108 -> 1.51779661 | AI150: =AI108 -> 1.383050847 | AL150: =AL108 -> 1.388135593 | AO150: =AO108 -> 0.9838983051
C151: =A109 -> Other | N151: =N115 -> 0 | Q151: =Q115 -> 0 | T151: =T115 -> 0 | W151: =W115 -> 0 | Z151: =Z115 -> 0 | AC151: =AC115 -> 0 | AF151: =AF115 -> 0 | AI151: =AI115 -> 0 | AL151: =AL115 -> 0 | AO151: =AO115 -> 0
A153: Relative changes in ratings compared to Benchmark support (L8RD M4.9)
O155: L8RD | Q155: =Q1 -> 510 SERIES | T155: =T1 -> 510X SERIES | W155: =W1 -> 520 SERIES | Z155: =Z1 -> 530 SERIES | AC155: =AC1 -> 540 SERIES | AF155: =AF1 -> 550 SERIES | AI155: =AI1 -> 560 SERIES | AL155: =AL1 -> 570 SERIES | AO155: =AO1 -> 580 SERIES
N156: MDA | O156: Rating | Q156: Rating | R156: % Diff | T156: Rating | U156: % Diff | W156: Rating | X156: % Diff | Z156: Rating | AA156: % Diff | AC156: Rating | AD156: % Diff | AF156: Rating | AG156: % Diff | AI156: Rating | AJ156: % Diff | AL156: Rating | AM156: % Diff | AO156: Rating | AP156: % Diff
N157: Elect | O157: =N36*10 -> 2.823529412 | Q157: =Q36*10 -> 2.330882353 | R157: =IF(Q157-$O$164=0,"NoChange",(Q157-$O157)/$O157*100) -> -17.44791667 | T157: =T36*10 -> 2.330882353 | U157: =IF(T157-$O$164=0,"NoChange",(T157-$O157)/$O157*100) -> -17.44791667 | W157: =W36*10 -> 2.492647059 | X157: =IF(W157-$O$164=0,"NoChange",(W157-$O157)/$O157*100) -> -11.71875 | Z157: =Z36*10 -> 1.404411765 | AA157: =IF(Z157-$O$164=0,"NoChange",(Z157-$O157)/$O157*100) -> -50.26041667 | AC157: =AC36*10 -> 3.691176471 | AD157: =IF(AC157-$O$164=0,"NoChange",(AC157-$O157)/$O157*100) -> 30.72916667 | AF157: =AF36*10 -> 2.330882353 | AG157: =IF(AF157-$O$164=0,"NoChange",(AF157-$O157)/$O157*100) -> -17.44791667 | AI157: =AI36*10 -> 3.676470588 | AJ157: =IF(AI157-$O$164=0,"NoChange",(AI157-$O157)/$O157*100) -> 30.20833333 | AL157: =AL36*10 -> 2.639705882 | AM157: =IF(AL157-$O$164=0,"NoChange",(AL157-$O157)/$O157*100) -> -6.510416667 | AO157: =AO36*10 -> 2.272058824 | AP157: =IF(AO157-$O$164=0,"NoChange",(AO157-$O157)/$O157*100) -> -19.53125
N158: Struct&F | O158: =N52*10 -> 14.93195626 | Q158: =Q52*10 -> 19.7037037 | R158: 31.95661281 | T158: =T52*10 -> 20.81481481 | U158: 39.39777518 | W158: =W52*10 -> 15.98768124 | X158: 7.070238889 | Z158: =Z52*10 -> 13.54819782 | AA158: -9.267094127 | AC158: =AC52*10 -> 16.37128414 | AD158: 9.639245214 | AF158: =AF52*10 -> 15.85487523 | AG158: 6.180830915 | AI158: =AI52*10 -> 12.26670621 | AJ158: -17.84930251 | AL158: =AL52*10 -> 14.89302699 | AM158: -0.2607111353 | AO158: =AO52*10 -> 10.37771003 | AP158: -30.49999714
N159: Mech&El | O159: =N62*10 -> 7.736908584 | Q159: =Q62*10 -> 2.894637124 | R159: -62.58664436 | T159: =T62*10 -> 6.105415504 | U159: -21.08714432 | W159: =W62*10 -> 5.473869796 | X159: -29.24990987 | Z159: =Z62*10 -> 3.947213305 | AA159: -48.98203511 | AC159: =AC62*10 -> 6.473817168 | AD159: -16.32553109 | AF159: =AF62*10 -> 3.947213305 | AG159: -48.98203511 | AI159: =AI62*10 -> 6.473817168 | AJ159: -16.32553109 | AL159: =AL62*10 -> 1.842060944 | AM159: -76.1912536 | AO159: =AO62*10 -> 3.157781169 | AP159: -59.18549204
N160: Constr | O160: =N80*10 -> 4.59223301 | Q160: =Q80*10 -> 7.113730929 | R160: 54.90788281 | T160: =T80*10 -> 7.363384189 | U160: 60.34430686 | W160: =W80*10 -> 6.725381415 | X160: 46.4512232 | Z160: =Z80*10 -> 5.692094313 | AA160: 23.95046814 | AC160: =AC80*10 -> 4.547850208 | AD160: -0.9664753851 | AF160: =AF80*10 -> 6.343966713 | AG160: 38.14557535 | AI160: =AI80*10 -> 3.785020804 | AJ160: -17.57777107 | AL160: =AL80*10 -> 3.649098474 | AM160: -20.53760193 | AO160: =AO80*10 -> 2.705963939 | AP160: -41.07520387
N161: Maint | O161: =N90*10 -> 3.118181818 | Q161: =Q90*10 -> 2.172727273 | R161: -30.32069971 | T161: =T90*10 -> 2.390909091 | U161: -23.32361516 | W161: =W90*10 -> 2.809090909 | X161: -9.912536443 | Z161: =Z90*10 -> 2.327272727 | AA161: -25.36443149 | AC161: =AC90*10 -> 2.063636364 | AD161: -33.81924198 | AF161: =AF90*10 -> 2.763636364 | AG161: -11.37026239 | AI161: =AI90*10 -> 2.209090909 | AJ161: -29.15451895 | AL161: =AL90*10 -> 2.172727273 | AM161: -30.32069971 | AO161: =AO90*10 -> 2.036363636 | AP161: -34.69387755
N162: OperSafety | O162: =N95*10 -> 8.085714286 | Q162: =Q95*10 -> 3.114285714 | R162: -61.48409894 | T162: =T95*10 -> 5.342857143 | U162: -33.92226148 | W162: =W95*10 -> 7.285714286 | X162: -9.893992933 | Z162: =Z95*10 -> 4.657142857 | AA162: -42.40282686 | AC162: =AC95*10 -> 3.742857143 | AD162: -53.71024735 | AF162: =AF95*10 -> 4.657142857 | AG162: -42.40282686 | AI162: =AI95*10 -> 4.885714286 | AJ162: -39.57597173 | AL162: =AL95*10 -> 5.457142857 | AM162: -32.50883392 | AO162: =AO95*10 -> 4.257142857 | AP162: -47.34982332
N163: Env | O163: =N108*10 -> 14.79661017 | Q163: =Q108*10 -> 18.88983051 | R163: =IF(Q163-$O$164=0,"NoChange",(Q163-$O163)/$O163*100) -> 27.66323024 | T163: =T108*10 -> 21.02542373 | U163: =IF(T163-$O$164=0,"NoChange",(T163-$O163)/$O163*100) -> 42.09621993 | W163: =W108*10 -> 15.07627119 | X163: =IF(W163-$O$164=0,"NoChange",(W163-$O163)/$O163*100) -> 1.890034364 | Z163: =Z108*10 -> 17.66949153 | AA163: =IF(Z163-$O$164=0,"NoChange",(Z163-$O163)/$O163*100) -> 19.41580756 | AC163: =AC108*10 -> 17.51694915 | AD163: =IF(AC163-$O$164=0,"NoChange",(AC163-$O163)/$O163*100) -> 18.38487973 | AF163: =AF108*10 -> 15.1779661 | AG163: =IF(AF163-$O$164=0,"NoChange",(AF163-$O163)/$O163*100) -> 2.577319588 | AI163: =AI108*10 -> 13.83050847 | AJ163: =IF(AI163-$O$164=0,"NoChange",(AI163-$O163)/$O163*100) -> -6.529209622 | AL163: =AL108*10 -> 13.88135593 | AM163: =IF(AL163-$O$164=0,"NoChange",(AL163-$O163)/$O163*100) -> -6.18556701 | AO163: =AO108*10 -> 9.838983051 | AP163: =IF(AO163-$O$164=0,"NoChange",(AO163-$O163)/$O163*100) -> -33.50515464
N164: Other | O164: =N115*10 -> 0 | Q164: =Q115*10 -> 0 | R164: =IF(Q164-$O$164=0,"NoChange",(Q164-$O164)/$O164*100) -> NoChange | T164: =T115*10 -> 0 | U164: =IF(T164-$O$164=0,"NoChange",(T164-$O164)/$O164*100) -> NoChange | W164: =W115*10 -> 0 | X164: =IF(W164-$O$164=0,"NoChange",(W164-$O164)/$O164*100) -> NoChange | Z164: =Z115*10 -> 0 | AA164: =IF(Z164-$O$164=0,"NoChange",(Z164-$O164)/$O164*100) -> NoChange | AC164: =AC115*10 -> 0 | AD164: =IF(AC164-$O$164=0,"NoChange",(AC164-$O164)/$O164*100) -> NoChange | AF164: =AF115*10 -> 0 | AG164: =IF(AF164-$O$164=0,"NoChange",(AF164-$O164)/$O164*100) -> NoChange | AI164: =AI115*10 -> 0 | AJ164: =IF(AI164-$O$164=0,"NoChange",(AI164-$O164)/$O164*100) -> NoChange | AL164: =AL115*10 -> 0 | AM164: =IF(AL164-$O$164=0,"NoChange",(AL164-$O164)/$O164*100) -> NoChange | AO164: =AO115*10 -> 0 | AP164: =IF(AO164-$O$164=0,"NoChange",(AO164-$O164)/$O164*100) -> NoChange
N166: Overall | O166: =N23 -> 56.08513354 | Q166: =Q23 -> 56.21979761 | R166: =IF(Q166-O166=0,"NoChange",(Q166-$O166)/$O166*100) -> 0.2401065323 | T166: =T23 -> 65.37368682 | U166: =IF(T166-R166=0,"NoChange",(T166-$O166)/$O166*100) -> 16.56152478 | W166: =W23 -> 55.85065589 | X166: =IF(W166-Q166=0,"NoChange",(W166-$O166)/$O166*100) -> -0.4180745136 | Z166: =Z23 -> 49.24582431 | AA166: =IF(Z166-W166=0,"NoChange",(Z166-$O166)/$O166*100) -> -12.19451358 | AC166: =AC23 -> 54.40757064 | AD166: =IF(AC166-Z166=0,"NoChange",(AC166-$O166)/$O166*100) -> -2.99110083 | AF166: =AF23 -> 51.07568292 | AG166: =IF(AF166-AC166=0,"NoChange",(AF166-$O166)/$O166*100) -> -8.931868931 | AI166: =AI23 -> 47.12732844 | AJ166: =IF(AI166-AF166=0,"NoChange",(AI166-$O166)/$O166*100) -> -15.97179953 | AL166: =AL23 -> 44.53511835 | AM166: =IF(AL166-AI166=0,"NoChange",(AL166-$O166)/$O166*100) -> -20.59371969 | AO166: =AO23 -> 34.6460035 | AP166: =IF(AO166-AL166=0,"NoChange",(AO166-$O166)/$O166*100) -> -38.22604794
A168: Relative ratings compared to highest overall rated Short-List support
O170: Max SL | Q170: =Q25 -> Score | T170: =T25 -> Score | W170: =W25 -> Score | Z170: =Z25 -> Score | AC170: =AC25 -> Score | AF170: =AF25 -> Score | AI170: =AI25 -> Score | AL170: =AL25 -> Score | AO170: =AO25 -> Score
N171: MDA | O171: Rating | Q171: Rating | R171: % Diff | W171: Rating | X171: % Diff | Z171: Rating | AA171: % Diff | AC171: Rating | AD171: % Diff | AF171: Rating | AG171: % Diff | AI171: Rating | AJ171: % Diff | AL171: Rating | AM171: % Diff | AO171: Rating | AP171: % Diff
N172: Electrical | O172: =VLOOKUP(N172,ShortListRatings,$O$184,FALSE) -> 2.330882353 | Q172: =Q36*10 -> 2.330882353 | R172: =IF(Q172-O172=0,0,(Q172-$O172)/$O172*100) -> 0 | T172: =T36*10 -> 2.330882353 | U172: =IF(T172-R172=0,0,(T172-$O172)/$O172*100) -> 0 | W172: =W36*10 -> 2.492647059 | X172: =IF(W172-Q172=0,0,(W172-$O172)/$O172*100) -> 6.940063091 | Z172: =Z36*10 -> 1.404411765 | AA172: =IF(Z172-W172=0,0,(Z172-$O172)/$O172*100) -> -39.74763407 | AC172: =AC36*10 -> 3.691176471 | AD172: =IF(AC172-Z172=0,0,(AC172-$O172)/$O172*100) -> 58.35962145 | AF172: =AF36*10 -> 2.330882353 | AG172: =IF(AF172-AC172=0,0,(AF172-$O172)/$O172*100) -> 0 | AI172: =AI36*10 -> 3.676470588 | AJ172: =IF(AI172-AF172=0,0,(AI172-$O172)/$O172*100) -> 57.72870662 | AL172: =AL36*10 -> 2.639705882 | AM172: =IF(AL172-AI172=0,0,(AL172-$O172)/$O172*100) -> 13.24921136 | AO172: =AO36*10 -> 2.272058824 | AP172: =IF(AO172-AL172=0,0,(AO172-$O172)/$O172*100) -> -2.523659306
N173: S&F | O173: 19.7037037 | Q173: =Q52*10 -> 19.7037037 | R173: =IF(Q173-O173=0,0,(Q173-$O173)/$O173) -> 0 | T173: =T52*10 -> 20.81481481 | U173: =IF(T173-R173=0,0,(T173-$O173)/$O173) -> 0.05639097744 | W173: =W52*10 -> 15.98768124 | X173: =IF(W173-Q173=0,0,(W173-$O173)/$O173*100) -> -18.85951252 | Z173: =Z52*10 -> 13.54819782 | AA173: =IF(Z173-W173=0,0,(Z173-$O173)/$O173*100) -> -31.24034943 | AC173: =AC52*10 -> 16.37128414 | AD173: =IF(AC173-Z173=0,0,(AC173-$O173)/$O173*100) -> -16.9126557 | AF173: =AF52*10 -> 15.85487523 | AG173: =IF(AF173-AC173=0,0,(AF173-$O173)/$O173*100) -> -19.53352799 | AI173: =AI52*10 -> 12.26670621 | AJ173: =IF(AI173-AF173=0,0,(AI173-$O173)/$O173*100) -> -37.74416019 | AL173: =AL52*10 -> 14.89302699 | AM173: =IF(AL173-AI173=0,0,(AL173-$O173)/$O173*100) -> -24.41508861 | AO173: =AO52*10 -> 10.37771003 | AP173: =IF(AO173-AL173=0,0,(AO173-$O173)/$O173*100) -> -47.33117092
N174: M&E | O174: 2.894637124 | Q174: =Q62*10 -> 2.894637124 | R174: 0 | T174: =T62*10 -> 6.105415504 | U174: 1.109216196 | W174: =W62*10 -> 5.473869796 | X174: 89.10383448 | Z174: =Z62*10 -> 3.947213305 | AA174: 36.36297522 | AC174: =AC62*10 -> 6.473817168 | AD174: 123.6486609 | AF174: =AF62*10 -> 3.947213305 | AG174: 36.36297522 | AI174: =AI62*10 -> 6.473817168 | AJ174: 123.6486609 | AL174: =AL62*10 -> 1.842060944 | AM174: -36.36297522 | AO174: =AO62*10 -> 3.157781169 | AP174: 9.090743805
N175: Constr | O175: 7.113730929 | Q175: =Q80*10 -> 7.113730929 | R175: 0 | T175: =T80*10 -> 7.363384189 | U175: 0.03509456034 | W175: =W80*10 -> 6.725381415 | X175: -5.459153831 | Z175: =Z80*10 -> 5.692094313 | AA175: -19.98440242 | AC175: =AC80*10 -> 4.547850208 | AD175: -36.06940924 | AF175: =AF80*10 -> 6.343966713 | AG175: -10.82082277 | AI175: =AI80*10 -> 3.785020804 | AJ175: -46.79274712 | AL175: =AL80*10 -> 3.649098474 | AM175: -48.70345097 | AO175: =AO80*10 -> 2.705963939 | AP175: -61.96139598
N176: Maint | O176: 2.172727273 | Q176: =Q90*10 -> 2.172727273 | R176: 0 | T176: =T90*10 -> 2.390909091 | U176: 0.10041841 | W176: =W90*10 -> 2.809090909 | X176: 29.28870293 | Z176: =Z90*10 -> 2.327272727 | AA176: 7.112970711 | AC176: =AC90*10 -> 2.063636364 | AD176: -5.020920502 | AF176: =AF90*10 -> 2.763636364 | AG176: 27.19665272 | AI176: =AI90*10 -> 2.209090909 | AJ176: 1.673640167 | AL176: =AL90*10 -> 2.172727273 | AM176: -2.043925234e-14 | AO176: =AO90*10 -> 2.036363636 | AP176: -6.276150628
N177: OpSafety | O177: 3.114285714 | Q177: =Q95*10 -> 3.114285714 | R177: 0 | T177: =T95*10 -> 5.342857143 | U177: 0.7155963303 | W177: =W95*10 -> 7.285714286 | X177: 133.9449541 | Z177: =Z95*10 -> 4.657142857 | AA177: 49.5412844 | AC177: =AC95*10 -> 3.742857143 | AD177: 20.18348624 | AF177: =AF95*10 -> 4.657142857 | AG177: 49.5412844 | AI177: =AI95*10 -> 4.885714286 | AJ177: 56.88073394 | AL177: =AL95*10 -> 5.457142857 | AM177: 75.2293578 | AO177: =AO95*10 -> 4.257142857 | AP177: 36.69724771
N178: Env | O178: 18.88983051 | Q178: =Q108*10 -> 18.88983051 | R178: 0 | T178: =T108*10 -> 21.02542373 | U178: 0.1130551817 | W178: =W108*10 -> 15.07627119 | X178: -20.1884253 | Z178: =Z108*10 -> 17.66949153 | AA178: -6.460296097 | AC178: =AC108*10 -> 17.51694915 | AD178: -7.267833109 | AF178: =AF108*10 -> 15.1779661 | AG178: -19.65006729 | AI178: =AI108*10 -> 13.83050847 | AJ178: -26.7833109 | AL178: =AL108*10 -> 13.88135593 | AM178: -26.5141319 | AO178: =AO108*10 -> 9.838983051 | AP178: -47.91386272
N179: Other | O179: 0 | Q179: =Q115*10 -> 0 | R179: 0 | T179: =T115*10 -> 0 | U179: 0 | W179: =W115*10 -> 0 | X179: 0 | Z179: =Z115*10 -> 0 | AA179: =IF(Z179-W179=0,0,(Z179-$O179)/$O179*100) -> 0 | AC179: =AC115*10 -> 0 | AD179: 0 | AF179: =AF115*10 -> 0 | AG179: 0 | AI179: =AI115*10 -> 0 | AJ179: 0 | AL179: =AL115*10 -> 0 | AM179: 0 | AO179: =AO115*10 -> 0 | AP179: 0
N181: Overall | O181: =MAX(Q181,W181,Z181,AC181,AF181,AI181,AL181,AO181) -> 56.21979761 | Q181: =Q23 -> 56.21979761 | R181: =IF(Q181-$O181=0,0,(Q181-$O181)/$O181*100) -> 0 | T181: =T23 -> 65.37368682 | U181: =IF(T181-$O181=0,0,(T181-$O181)/$O181*100) -> 16.28232332 | W181: =W23 -> 55.85065589 | X181: =IF(W181-$O181=0,"NoChange",(W181-$O181)/$O181*100) -> -0.6566044956 | Z181: =Z23 -> 49.24582431 | AA181: =IF(Z181-$O181=0,"NoChange",(Z181-$O181)/$O181*100) -> -12.4048353 | AC181: =AC23 -> 54.40757064 | AD181: =IF(AC181-$O181=0,"NoChange",(AC181-$O181)/$O181*100) -> -3.223467606 | AF181: =AF23 -> 51.07568292 | AG181: =IF(AF181-$O181=0,"NoChange",(AF181-$O181)/$O181*100) -> -9.150005702 | AI181: =AI23 -> 47.12732844 | AJ181: =IF(AI181-$O181=0,"NoChange",(AI181-$O181)/$O181*100) -> -16.17307345 | AL181: =AL23 -> 44.53511835 | AM181: =IF(AL181-$O181=0,"NoChange",(AL181-$O181)/$O181*100) -> -20.78392267 | AO181: =AO23 -> 34.6460035 | AP181: =IF(AO181-$O181=0,"NoChange",(AO181-$O181)/$O181*100) -> -38.37401596
O183: Lookup col
O184: =3+MATCH(O181,Q181:AP181,0) -> 4
N185: 1 | O185: 2 | P185: 4 | Q185: 5 | R185: 6 | T185: 5 | U185: 6 | V185: 7 | W185: 8 | X185: 9 | Y185: 10 | Z185: 11 | AA185: 12 | AB185: 13 | AC185: 14 | AD185: 15 | AE185: 16 | AF185: 17 | AG185: 18 | AH185: 19 | AI185: 20 | AJ185: 21 | AK185: 22 | AL185: 23 | AM185: 24 | AN185: 25 | AO185: 26 | AP185: 27
